{"text_format":"1","workbook":"xlsx","n_sheets":2,"sheets":["SOURCE","SAUVEGARDE"],"not_rendered":{"charts":0,"images":1,"macros":1,"external_links":0,"defined_names":7,"comments":0,"pivot_tables":0},"unopened":[],"bounds":{"document_bytes":16777216,"sheet_cells":100000,"rows_first":2000,"rows_last":500,"rows_between":2000,"halvings":0,"cell_chars":16384,"cell_head_chars":4096},"cells_cut":0,"cells_raw":0,"read":"whole","date_system":"1900"}

{"sheet":"SOURCE","index":0,"n_rows":4745,"n_cols":52,"rows_kept":1125,"cut":true,"hidden":false,"merged":[[3,5,3,14],[0,7,0,13],[1,0,2,3]],"bounds":{"rows_first":500,"rows_last":125,"rows_between":500,"halvings":2}}
["0"]
["HISTORIQUE DES DEVIS DES CLIENTS"]
[]
[null,null,null,null,null,"Détails du devis"]
["N° DEVIS","DATE DU DEVIS","CLIENTS","Montants  TTC devis","Etat Devis","Produit1","Qt1","P.U1","Produit2","Qt2","P.U2","Produit3","Qt3","P.U3","Produit4","Qt4","P.U4","Produit5","Qt5","P.U5","Produit6","Qt6","P.U6","Produit7","Qt7","P.U7","Produit8","Qt8","P.U8","Produit9","Qt9","P.U9",null,"Remises accordees","Collaborateurs demandeurs","Conditions economiques du mois de …"]
["PF/326/1/2021","2021-01-21","2I TRA",584373760,null,null,null,null,null,null,null,null,null,null,null,null,null,null,null,null,null,null,null,null,null,null,null,null,null,null,null,null,0,null,null,null,null,null,null,null,null,null,null,null,null,null,null,null,null,null,{"$f":"MONTH(B6)","v":1},{"$f":"YEAR(B6)","v":2021}]
["PF/325/1/2021","2021-01-21","2I TRA",56608376,null,null,null,null,null,null,null,null,null,null,null,null,null,null,null,null,null,null,null,null,null,null,null,null,null,null,null,null,0,null,null,null,null,null,null,null,null,null,null,null,null,null,null,null,null,null,1,2021]
["PF/324/1/2021","2021-01-21","2I TRA",288067882.31999999,null,null,null,null,null,null,null,null,null,null,null,null,null,null,null,null,null,null,null,null,null,null,null,null,null,null,null,null,0,null,null,null,null,null,null,null,null,null,null,null,null,null,null,null,null,null,1,2021]
["PF/324/1/2021","2021-01-21","2I TRA",288067882.31999999,null,null,null,null,null,null,null,null,null,null,null,null,null,null,null,null,null,null,null,null,null,null,null,null,null,null,null,null,0,null,null,null,null,null,null,null,null,null,null,null,null,null,null,null,null,null,1,2021]
["PF/319/1/2021","2021-01-21","2KJ CONSTRUCTION ",65607924.479999997,"Ouvert",null,null,"",null,null,"","Fourniture d'émulsions d'accrochage de type ECR 65 - 0.45 Kg/m2",123,452032,null,null,"",null,null,"",null,null,"",null,null,"",null,null,"",null,null,"","PF/319/1/2021",null,"ABJ-LO06","mars 2020",null,null,null,null,null,null,null,null,null,null,null,null,null,null,1,2021]
["PF/317/1/2021","2021-01-21","2KJ CONSTRUCTION ",62319321.119999997,"Ouvert",null,null,"",null,null,"","Fourniture d'émulsions d'accrochage de type ECR65 - 0.3 Kg/m2",98,538908,null,null,"",null,null,"",null,null,"",null,null,"",null,null,"",null,null,"","PF/317/1/2021",null,"ABJ-LO06","mars 2020",null,null,null,null,null,null,null,null,null,null,null,null,null,null,1,2021]
["PF/275/12/2020","2020-12-28","KIRABAT AGENCY",18478800,"Ouvert","Fourniture d'enrobés type BB 010_",270,58000,null,null,"",null,null,"",null,null,"",null,null,"",null,null,"",null,null,"",null,null,"",null,null,"","PF/275/12/2020",0,null,null,null,null,null,null,null,null,null,null,null,null,null,null,null,null,12,2020]
["PF/273/12/2020","2020-12-28","KIRABAT AGENCY",18478800,"Ouvert","Fourniture d'enrobés type BB 010_",270,58000,null,null,"",null,null,"",null,null,"",null,null,"",null,null,"",null,null,"",null,null,"",null,null,"","PF/273/12/2020",0,null,null,null,null,null,null,null,null,null,null,null,null,null,null,null,null,12,2020]
["PF/272/12/2020","2020-12-22","KROM & CO IMMOBILIER",194454560,"Ouvert","Fourniture d'enrobés type BB 0/10",2400,61000,"Fourniture d'émulsions d'imprégnation de type I55–1.2 kg/m2",30,509000,"Fourniture d'émulsions d'accrochage de type ECR 65-0.3 kg/m2",7,446000,null,null,"",null,null,"",null,null,"",null,null,"",null,null,"",null,null,"","PF/272/12/2020",0,null,null,null,null,null,null,null,null,null,null,null,null,null,null,null,null,12,2020]
["PF/271/12/2020","2020-12-22","IMMOBILIARE",29927313.399999999,"Ouvert","Fourniture d'enrobés type BB010",400,59500,"Fourniture d'émulsions d'imprégnation de type I55–1.2 kg/m2",4,509000,"Fourniture d'émulsions d'accrochage de type ECR 65-0.3 kg/m2",1,446000,null,null,"",null,null,"",null,null,"",null,null,"",null,null,"",null,null,"","PF/271/12/2020",3.5000000000000003E-2,null,null,null,null,null,null,null,null,null,null,null,null,null,null,null,null,12,2020]
["PF/270/12/2020","2020-12-22","M TA BI SENE RICHARD",6118300,"Ouvert","Fourniture d'enrobés type BB 0/10",85,61000,null,null,"",null,null,"",null,null,"",null,null,"",null,null,"",null,null,"",null,null,"",null,null,"","PF/270/12/2020",0,null,null,null,null,null,null,null,null,null,null,null,null,null,null,null,null,12,2020]
["PF/269/12/2020","2020-12-22","SOTASERV-CI",141613452,"Ouvert","Fourniture d'enrobés type BB 0/10",2000,61000,null,null,"",null,null,"",null,null,"",null,null,"",null,null,"",null,null,"",null,null,"",null,null,"","PF/269/12/2020",1.6299999999999999E-2,null,null,null,null,null,null,null,null,null,null,null,null,null,null,null,null,12,2020]
["PF/267/12/2020","2020-12-18","AGENCE FATY SERVICES",256800096,"Ouvert","Fourniture d'enrobés type BBSG 0/10",3400,57000,"Fourniture d'émulsions d'imprégnation de type I55–1.2 kg/m2",38.4,509000,"Fourniture d'émulsions d'accrochage de type ECR 65-0.3 kg/m2",9.6,446000,null,null,"",null,null,"",null,null,"",null,null,"",null,null,"",null,null,"","PF/267/12/2020",0,null,null,null,null,null,null,null,null,null,null,null,null,null,null,null,null,12,2020]
["PF/266/12/2020","2020-12-16","QORNUS SARL",10831810,"Ouvert","Fourniture d'enrobés type BB 0-10",137,60500,"Fourniture d'émulsions d'imprégnation de type I55–1.2 kg/m2",1.4,509000,"Fourniture d'émulsions d'accrochage de type ECR 65-0.3 kg/m2",0.4,446000,null,null,"",null,null,"",null,null,"",null,null,"",null,null,"",null,null,"","PF/266/12/2020",0,null,null,null,null,null,null,null,null,null,null,null,null,null,null,null,null,12,2020]
["PF/265/12/2020","2020-12-16","ECOROUBAT-CI",3933990.1999999997,"Ouvert","Fourniture d'émulsions d'imprégnation de type I55–1.2 kg/m2",5,509000,"Fourniture d'émulsions d'accrochage de type ECR 65-0.3 kg/m2",2,446000,null,null,"",null,null,"",null,null,"",null,null,"",null,null,"",null,null,"",null,null,"","PF/265/12/2020",0.03,null,null,null,null,null,null,null,null,null,null,null,null,null,null,null,null,12,2020]
["PF/264/12/2020","2020-12-16","ECOROUBAT-CI",34220000,"Ouvert","Fourniture d'enrobés type BB 010_",500,58000,null,null,"",null,null,"",null,null,"",null,null,"",null,null,"",null,null,"",null,null,"",null,null,"","PF/264/12/2020",0,null,null,null,null,null,null,null,null,null,null,null,null,null,null,null,null,12,2020]
["PF/263/12/2020","2020-12-15","UNISERV SARL",9749750,"Ouvert","Fourniture d'enrobés type BB 0-10",125,60500,"Fourniture d'émulsions d'imprégnation de type I55–1.2 kg/m2",1.2,509000,"Fourniture d'émulsions d'accrochage de type ECR 65-0.3 kg/m2",0.2,446000,null,null,"",null,null,"",null,null,"",null,null,"",null,null,"",null,null,"","PF/263/12/2020",0,null,null,null,null,null,null,null,null,null,null,null,null,null,null,null,null,12,2020]
["PF/262/12/2020","2020-12-15","FCRS IMPEX ET DIVERS SERVICES",93638900,"Ouvert","Fourniture d'enrobés type BB 010",1345,59000,null,null,"",null,null,"",null,null,"",null,null,"",null,null,"",null,null,"",null,null,"",null,null,"","PF/262/12/2020",0,null,null,null,null,null,null,null,null,null,null,null,null,null,null,null,null,12,2020]
["PF/261/12/2020","2020-12-15","TSO-NGE CONTRACTING ",23602832,"Ouvert","Fourniture d'enrobés type BB 010",295,59000,"Fourniture d'émulsions d'imprégnation de type I55–1.2 kg/m2",3,509000,"Fourniture d'émulsions d'accrochage de type ECR 65-0.3 kg/m2",2.4,446000,null,null,"",null,null,"",null,null,"",null,null,"",null,null,"",null,null,"","PF/261/12/2020",0,null,null,null,null,null,null,null,null,null,null,null,null,null,null,null,null,12,2020]
["PF/260/12/2020","2020-12-15","SONITRA",2911036.4,"Ouvert","Fourniture d'enrobés type BB 0/10",38.979999999999997,61000,"Fourniture d'émulsions d'accrochage de type ECR 65-0.3 kg/m2",0.2,446000,null,null,"",null,null,"",null,null,"",null,null,"",null,null,"",null,null,"",null,null,"","PF/260/12/2020",0,null,null,null,null,null,null,null,null,null,null,null,null,null,null,null,null,12,2020]
["PF/259/12/2020","2020-12-15","ISYBAT SARL",185779.19999999998,"Ouvert","Fourniture + livraison Béton type C30/37 (350 kg/m3) CPA-42.5",2,82000,null,null,"",null,null,"",null,null,"",null,null,"",null,null,"",null,null,"",null,null,"",null,null,"","PF/259/12/2020",0.04,null,null,null,null,null,null,null,null,null,null,null,null,null,null,null,null,12,2020]
["PF/258/12/2020","2020-12-14","SETAO CI ",4011528,"Ouvert","Fourniture d'enrobés type BB 0/10",55,61000,"Fourniture d'émulsions d'accrochage de type ECR 65-0.3 kg/m2",0.1,446000,null,null,"",null,null,"",null,null,"",null,null,"",null,null,"",null,null,"",null,null,"","PF/258/12/2020",0,null,null,null,null,null,null,null,null,null,null,null,null,null,null,null,null,12,2020]
["PF/257/12/2020","2020-12-14","2I TRA",33610884,"Ouvert","Fourniture d'enrobés type BBSG 010",420,60000,"Fourniture d'émulsions d'imprégnation de type I55–1.2 kg/m2",5.4,509000,"Fourniture d'émulsions d'accrochage de type ECR 65-0.3 kg/m2",1.2,446000,null,null,"",null,null,"",null,null,"",null,null,"",null,null,"",null,null,"","PF/257/12/2020",0,null,null,null,null,null,null,null,null,null,null,null,null,null,null,null,null,12,2020]
["PF/256/12/2020","2020-12-14","BNG TRAVAUX SARL",4005628,"Ouvert","Fourniture d'enrobés type BBSG 010",50,60000,"Fourniture d'émulsions d'imprégnation de type I55–1.2 kg/m2",0.6,509000,"Fourniture d'émulsions d'accrochage de type ECR 65-0.3 kg/m2",0.2,446000,null,null,"",null,null,"",null,null,"",null,null,"",null,null,"",null,null,"","PF/256/12/2020",0,null,null,null,null,null,null,null,null,null,null,null,null,null,null,null,null,12,2020]
["PF/255/12/2020","2020-12-11","ETS NKS et FILS SARL",9928756,"Ouvert","Fourniture d'enrobés type BB 0/10",125,61000,"Fourniture d'émulsions d'imprégnation de type I55–1.2 kg/m2",1.2,509000,"Fourniture d'émulsions d'accrochage de type ECR 65-0.3 kg/m2",0.4,446000,null,null,"",null,null,"",null,null,"",null,null,"",null,null,"",null,null,"","PF/255/12/2020",0,null,null,null,null,null,null,null,null,null,null,null,null,null,null,null,null,12,2020]
["PF/254/12/2020","2020-12-09","BGL",6227551.0079999994,"Ouvert","Fourniture d'enrobés type BB 0/10",85,61000,"Fourniture d'émulsions d'accrochage de type ECR 65-0.3 kg/m2",0.4,446000,null,null,"",null,null,"",null,null,"",null,null,"",null,null,"",null,null,"",null,null,"","PF/254/12/2020",1.6E-2,null,null,null,null,null,null,null,null,null,null,null,null,null,null,null,null,12,2020]
["PF/253/12/2020","2020-12-07","CITRAC S.A",52404272,"Ouvert","Fourniture d'enrobés type BB 0/10",650,61000,"Fourniture d'émulsions d'imprégnation de type I55–1.2 kg/m2",7.6,509000,"Fourniture d'émulsions d'accrochage de type ECR 65-0.3 kg/m2",2,446000,null,null,"",null,null,"",null,null,"",null,null,"",null,null,"",null,null,"","PF/253/12/2020",0,null,null,null,null,null,null,null,null,null,null,null,null,null,null,null,null,12,2020]
["PF/252/12/2020","2020-12-07","SONITRA",1544856,"Ouvert","Fourniture d'enrobés type BB 0/10",20,61000,"Fourniture d'émulsions d'accrochage de type ECR 65-0.3 kg/m2",0.2,446000,null,null,"",null,null,"",null,null,"",null,null,"",null,null,"",null,null,"",null,null,"","PF/252/12/2020",0,null,null,null,null,null,null,null,null,null,null,null,null,null,null,null,null,12,2020]
["PF/251/12/2020","2020-12-03","CDE (CONSORTIUM D'ENTREPRISES)",18755628,"Ouvert","Fourniture d'enrobés type BBSG 010",235,60000,"Fourniture d'émulsions d'accrochage de type ECR 65-0.3 kg/m2",0.6,446000,"Fourniture d'émulsions d'imprégnation de type I55–1.2 kg/m2",3,509000,null,null,"",null,null,"",null,null,"",null,null,"",null,null,"",null,null,"","PF/251/12/2020",0,null,null,null,null,null,null,null,null,null,null,null,null,null,null,null,null,12,2020]
["PF/250/12/2020","2020-12-03","GAMCI SARL",64905900,"Ouvert","Fourniture d'enrobés type BB 0/10",800,61000,"Fourniture d'émulsions d'accrochage de type ECR 65-0.3 kg/m2",2.5,446000,"Fourniture d'émulsions d'imprégnation de type I55–1.2 kg/m2",10,509000,null,null,"",null,null,"",null,null,"",null,null,"",null,null,"",null,null,"","PF/250/12/2020",0,null,null,null,null,null,null,null,null,null,null,null,null,null,null,null,null,12,2020]
["PF/249/12/2020","2020-12-03","SQUARE CONSTRUCTION",390285000,"Ouvert","Fourniture + livraison Béton type C30/37 (350 kg/m3) CPJ-42.5",5000,67500,null,null,"",null,null,"",null,null,"",null,null,"",null,null,"",null,null,"",null,null,"",null,null,"","PF/249/12/2020",0.02,null,null,null,null,null,null,null,null,null,null,null,null,null,null,null,null,12,2020]
["PF/248/12/2020","2020-12-01","LCD ( LES CONSTRUCTIONS DIABAGATE )",3599000,"Ouvert","Fourniture + livraison Béton type C20/25 (330 kg/m3) CPJ-42.5",50,61000,null,null,"",null,null,"",null,null,"",null,null,"",null,null,"",null,null,"",null,null,"",null,null,"","PF/248/12/2020",0,null,null,null,null,null,null,null,null,null,null,null,null,null,null,null,null,12,2020]
["PF/247/12/2020","2020-12-01","SNP CI",77952924,"Ouvert","Fourniture d'enrobés type BB010",1000,59500,"Fourniture d'émulsions d'accrochage de type ECR 65-0.3 kg/m2",3.3,446000,"Fourniture d'émulsions d'imprégnation de type I55–1.2 kg/m2",10,509000,null,null,"",null,null,"",null,null,"",null,null,"",null,null,"",null,null,"","PF/247/12/2020",0,null,null,null,null,null,null,null,null,null,null,null,null,null,null,null,null,12,2020]
["PF/246/11/2020","2020-11-30","SQUARE CONSTRUCTION",390285000,"Ouvert","Fourniture + livraison Béton type C30/37 (350 kg/m3) CPJ-42.5",5000,67500,null,null,"",null,null,"",null,null,"",null,null,"",null,null,"",null,null,"",null,null,"",null,null,"","PF/246/11/2020",0.02,null,null,null,null,null,null,null,null,null,null,null,null,null,null,null,null,11,2020]
["PF/245/11/2020","2020-11-30","2KJ CONSTRUCTION ",32694732,"Ouvert","Fourniture d'enrobés type BB 0/10",420,61000,"Fourniture d'émulsions d'accrochage de type ECR 65-0.3 kg/m2",0.8,446000,"Fourniture d'émulsions d'imprégnation de type I55–1.2 kg/m2",3.4,509000,null,null,"",null,null,"",null,null,"",null,null,"",null,null,"",null,null,"","PF/245/11/2020",0,null,null,null,null,null,null,null,null,null,null,null,null,null,null,null,null,11,2020]
["PF/244/11/2020","2020-11-30","MARCOOL INDUSTRIE",2784800,"Ouvert","Fourniture d'enrobés type BB 010",40,59000,null,null,"",null,null,"",null,null,"",null,null,"",null,null,"",null,null,"",null,null,"",null,null,"","PF/244/11/2020",0,null,null,null,null,null,null,null,null,null,null,null,null,null,null,null,null,11,2020]
["PF/243/11/2020","2020-11-30","BESIX-CI",6913756.8799999999,"Ouvert","Fourniture d'émulsions d'accrochage de type ECR 65-0.3 kg/m2",2.8,446000,"Fourniture d'émulsions d'imprégnation de type I55–1.2 kg/m2",9.6,509000,null,null,"",null,null,"",null,null,"",null,null,"",null,null,"",null,null,"",null,null,"","PF/243/11/2020",4.4999999999999998E-2,null,null,null,null,null,null,null,null,null,null,null,null,null,null,null,null,11,2020]
["PF/242/11/2020","2020-11-30","BESIX-CI",64166040,"Ouvert","Fourniture d'enrobés type BBSG 0/14",954,60000,null,null,"",null,null,"",null,null,"",null,null,"",null,null,"",null,null,"",null,null,"",null,null,"","PF/242/11/2020",0.05,null,null,null,null,null,null,null,null,null,null,null,null,null,null,null,null,11,2020]
["PF/241/11/2020","2020-11-30","BESIX-CI",6913756.8799999999,"Ouvert","Fourniture d'émulsions d'accrochage de type ECR 65-0.3 kg/m2",2.8,446000,"Fourniture d'émulsions d'imprégnation de type I55–1.2 kg/m2",9.6,509000,null,null,"",null,null,"",null,null,"",null,null,"",null,null,"",null,null,"",null,null,"","PF/241/11/2020",4.4999999999999998E-2,null,null,null,null,null,null,null,null,null,null,null,null,null,null,null,null,11,2020]
["PF/240/11/2020","2020-11-30","GROUPE MANAHIM MULTI-SERVICES",20992300.300000001,"Ouvert","Fourniture d'enrobés type BB 0/10",270,61000,"Fourniture d'émulsions d'imprégnation de type I55–1.2 kg/m2",2.6,509000,"Fourniture d'émulsions d'accrochage de type ECR 65-0.3 kg/m2",0.6,446000,null,null,"",null,null,"",null,null,"",null,null,"",null,null,"",null,null,"","PF/240/11/2020",1.4999999999999999E-2,null,null,null,null,null,null,null,null,null,null,null,null,null,null,null,null,11,2020]
["PF/239/11/2020","2020-11-30","ECOROUBAT-CI",39483699.513999999,"Ouvert","Fourniture d'enrobés type BB 0/10",500,61000,"Fourniture d'émulsions d'accrochage de type ECR 65-0.3 kg/m2",2,446000,"Fourniture d'émulsions d'imprégnation de type I55 – 1.2 kg/m2",5,550327,null,null,"",null,null,"",null,null,"",null,null,"",null,null,"",null,null,"","PF/239/11/2020",0.02,null,null,null,null,null,null,null,null,null,null,null,null,null,null,null,null,11,2020]
["PF/238/11/2020","2020-11-30","ORIBAT  ",80631406,"Ouvert","Fourniture d'enrobés type BB010",1025,59500,"Fourniture d'émulsions d'accrochage de type ECR 65-0.3 kg/m2",3,446000,"Fourniture d'émulsions d'imprégnation de type I55–1.2 kg/m2",11.8,509000,null,null,"",null,null,"",null,null,"",null,null,"",null,null,"",null,null,"","PF/238/11/2020",0,null,null,null,null,null,null,null,null,null,null,null,null,null,null,null,null,11,2020]
["PF/237/11/2020","2020-11-30","ECOROUBAT-CI",39026187.199999996,"Ouvert","Fourniture d'enrobés type BB 0/10",500,61000,"Fourniture d'émulsions d'accrochage de type ECR 65-0.3 kg/m2",5,446000,"Fourniture d'émulsions d'imprégnation de type I55–1.2 kg/m2",2,509000,null,null,"",null,null,"",null,null,"",null,null,"",null,null,"",null,null,"","PF/237/11/2020",0.02,null,null,null,null,null,null,null,null,null,null,null,null,null,null,null,null,11,2020]
["PF/236/11/2020","2020-11-27","OGCI PRESTIGE",1755232.2999999998,"Ouvert","Fourniture d'enrobés type BBSG 0-14",25,61000,null,null,"",null,null,"",null,null,"",null,null,"",null,null,"",null,null,"",null,null,"",null,null,"","PF/236/11/2020",2.46E-2,null,null,null,null,null,null,null,null,null,null,null,null,null,null,null,null,11,2020]
["PF/235/11/2020","2020-11-27","ETPS",1416000,"Ouvert","Fourniture d'enrobés type BBSG 010",20,60000,null,null,"",null,null,"",null,null,"",null,null,"",null,null,"",null,null,"",null,null,"",null,null,"","PF/235/11/2020",0,null,null,null,null,null,null,null,null,null,null,null,null,null,null,null,null,11,2020]
["PF/234/11/2020","2020-11-26","TSO - NGE Consulting  ",8057181.5999999996,"Ouvert","Fourniture d'enrobés type BB 0/10",105,61000,"Fourniture d'émulsions d'imprégnation de type I55–1.2 kg/m2",1,509000,"Fourniture d'émulsions d'accrochage de type ECR 65-0.3 kg/m2",0.2,446000,null,null,"",null,null,"",null,null,"",null,null,"",null,null,"",null,null,"","PF/234/11/2020",2.5000000000000001E-2,null,null,null,null,null,null,null,null,null,null,null,null,null,null,null,null,11,2020]
["PF/233/11/2020","2020-11-25","ICM GROUP SARL",11835311.5,"Ouvert","Fourniture d'enrobés type BB 0/10",164.42500000000001,61000,null,null,"",null,null,"",null,null,"",null,null,"",null,null,"",null,null,"",null,null,"",null,null,"","PF/233/11/2020",0,null,null,null,null,null,null,null,null,null,null,null,null,null,null,null,null,11,2020]
["PF/232/11/2020","2020-11-24","FCRS IMPEX ET DIVERS SERVICES",11835400,"Ouvert","Fourniture d'enrobés type BB 010",170,59000,null,null,"",null,null,"",null,null,"",null,null,"",null,null,"",null,null,"",null,null,"",null,null,"","PF/232/11/2020",0,null,null,null,null,null,null,null,null,null,null,null,null,null,null,null,null,11,2020]
["PF/231/11/2020","2020-11-24","ISYBAT SARL",16720128,"Ouvert","Fourniture + livraison Béton type C30/37 (350 kg/m3) CPA-42.5",180,82000,null,null,"",null,null,"",null,null,"",null,null,"",null,null,"",null,null,"",null,null,"",null,null,"","PF/231/11/2020",0.04,null,null,null,null,null,null,null,null,null,null,null,null,null,null,null,null,11,2020]
["PF/230/11/2020","2020-11-23","TSO-NGE CONTRACTING ",22220757,"Ouvert","Fourniture d'enrobés type BB010",300,59500,"Fourniture d'émulsions d'accrochage de type ECR 65-0.3 kg/m2",1,446000,"Fourniture d'émulsions d'imprégnation de type I55–1.2 kg/m2",2,509000,null,null,"",null,null,"",null,null,"",null,null,"",null,null,"",null,null,"","PF/230/11/2020",2.5000000000000001E-2,null,null,null,null,null,null,null,null,null,null,null,null,null,null,null,null,11,2020]
["PF/229/11/2020","2020-11-22","FAYSSAL ET ASSOCIÉ",139240000,"Ouvert","Fourniture d'enrobés type BB 010",2000,59000,null,null,"",null,null,"",null,null,"",null,null,"",null,null,"",null,null,"",null,null,"",null,null,"","PF/229/11/2020",0,null,null,null,null,null,null,null,null,null,null,null,null,null,null,null,null,11,2020]
["PF/228/11/2020","2020-11-20","TRAV-CI",488505123.73999995,"Ouvert","Fourniture d'enrobés type BB 0/10",6000,61000,"Fourniture d'émulsions d'imprégnation de type I55 – 1.2 kg/m2",71,550327,"Fourniture d'émulsions d'accrochage de type ECR65 - 0.3 Kg/m3",18,495232,null,null,"",null,null,"",null,null,"",null,null,"",null,null,"",null,null,"","PF/228/11/2020",0,null,null,null,null,null,null,null,null,null,null,null,null,null,null,null,null,11,2020]
["PF/227/11/2020","2020-11-20","BRET SARL",69205034.11999999,"Ouvert","Fourniture d'enrobés type BB 0/10",900,61000,"Fourniture d'émulsions d'imprégnation de type I55–1.2 kg/m2",9,509000,"Fourniture d'émulsions d'accrochage de type ECR 65-0.3 kg/m2",2.2000000000000002,446000,null,null,"",null,null,"",null,null,"",null,null,"",null,null,"",null,null,"","PF/227/11/2020",0.03,null,null,null,null,null,null,null,null,null,null,null,null,null,null,null,null,11,2020]
["PF/226/11/2020","2020-11-20","TEKNOBAT",11943832.324000001,"Ouvert","Fourniture d'émulsions d'imprégnation de type I55–1.2 kg/m2",8.5,509000,"Fourniture d'émulsions d'accrochage de type ECR 69",13.6,449150,null,null,"",null,null,"",null,null,"",null,null,"",null,null,"",null,null,"",null,null,"","PF/226/11/2020",0.03,null,null,null,null,null,null,null,null,null,null,null,null,null,null,null,null,11,2020]
["PF/225/11/2020","2020-11-20","SAFEETI",444476500,"Ouvert","Fourniture d'enrobés type BB 0/10",6500,61000,null,null,"",null,null,"",null,null,"",null,null,"",null,null,"",null,null,"",null,null,"",null,null,"","PF/225/11/2020",0.05,null,null,null,null,null,null,null,null,null,null,null,null,null,null,null,null,11,2020]
["PF/224/11/2020","2020-11-19","CCECC",3573698676,"Ouvert","Fourniture d'enrobés type BBSG 0/14",15000,60000,"Fourniture d'enrobés type GB 0/20",37000,55000,"Fourniture d'émulsions d'accrochage de type ECR 65 - 0.45 Kg/m2",100,452032,"Fourniture d'émulsions d'imprégnation de type I55–1.2 kg/m2",95,509000,null,null,"",null,null,"",null,null,"",null,null,"",null,null,"","PF/224/11/2020",0,null,null,null,null,null,null,null,null,null,null,null,null,null,null,null,null,11,2020]
["PF/223/11/2020","2020-11-19","SIFA CI",70783857.00999999,"Ouvert","Fourniture d'enrobés type BBSG 0/14",945,60000,"Fourniture d'émulsions d'accrochage de type ECR 65-0.3 kg/m2",2.75,446000,"Fourniture d'émulsions d'imprégnation de type I55–1.2 kg/m2",9.6,509000,null,null,"",null,null,"",null,null,"",null,null,"",null,null,"",null,null,"","PF/223/11/2020",4.4999999999999998E-2,null,null,null,null,null,null,null,null,null,null,null,null,null,null,null,null,11,2020]
["PF/222/11/2020","2020-11-17","CITRAC S.A",47610185.699999996,"Ouvert","Fourniture + livraison Béton type C25/30 (330 kg/m3) CPA-42.5",543,77000,null,null,"",null,null,"",null,null,"",null,null,"",null,null,"",null,null,"",null,null,"",null,null,"","PF/222/11/2020",3.5000000000000003E-2,null,null,null,null,null,null,null,null,null,null,null,null,null,null,null,null,{"$f":"MONTH(B63)","v":11},{"$f":"YEAR(B63)","v":2020}]
["PF/221/11/2020","2020-11-17","TRAV-CI",80759490.987999991,"Ouvert","Fourniture d'enrobés type BB 0/10",1000,61000,"Fourniture d'émulsions d'imprégnation de type I55 – 1.2 kg/m2",11,550327,"Fourniture d'émulsions d'accrochage de type ECR 65 - 0.3 kg/m2",2.8,495232,null,null,"",null,null,"",null,null,"",null,null,"",null,null,"",null,null,"","PF/221/11/2020",0,null,null,null,null,null,null,null,null,null,null,null,null,null,null,null,null,11,2020]
["PF/220/11/2020","2020-11-17","TRAV-CI",288777672.38,"Ouvert","Fourniture d'enrobés type BB 0/10",3587,61000,"Fourniture d'émulsions d'imprégnation de type I55 – 1.2 kg/m2",39,550327,"Fourniture d'émulsions d'accrochage de type ECR 65 - 0.3 kg/m2",9,495232,null,null,"",null,null,"",null,null,"",null,null,"",null,null,"",null,null,"","PF/220/11/2020",0,null,null,null,null,null,null,null,null,null,null,null,null,null,null,null,null,11,2020]
["PF/219/11/2020","2020-11-17","OKOUNDA BTP",45078242,"Ouvert","Fourniture d'enrobés type GB 0/14 ",500,55000,"Fourniture d'enrobés type BB 0/10",160,61000,"Fourniture d'émulsions d'imprégnation de type I55–1.2 kg/m2",1.5,509000,"Fourniture d'émulsions d'accrochage de type ECR 65-0.3 kg/m2",0.4,446000,null,null,"",null,null,"",null,null,"",null,null,"",null,null,"","PF/219/11/2020",0,null,null,null,null,null,null,null,null,null,null,null,null,null,null,null,null,11,2020]
["PF/218/11/2020","2020-11-16","SOMEG ( SOCIETE MECANIQUE GENERALE)",71240140,"Ouvert","Fourniture d'enrobés type BB 0/10",900,61000,"Fourniture d'émulsions d'imprégnation de type I55–1.2 kg/m2",9,509000,"Fourniture d'émulsions d'accrochage de type ECR 65-0.3 kg/m2",2,446000,null,null,"",null,null,"",null,null,"",null,null,"",null,null,"",null,null,"","PF/218/11/2020",0,null,null,null,null,null,null,null,null,null,null,null,null,null,null,null,null,11,2020]
["PF/217/11/2020","2020-11-11","MOTA-ENGIL SA",865939460,"Ouvert","Fourniture d'enrobés type BB 0/10",3200,61000,"Fourniture d'enrobés type BBSG 0/14",3250,60000,"Fourniture d'enrobés type BB 0/6",3200,64500,"Fourniture d'émulsions d'imprégnation de type I55–1.2 kg/m2",31,509000,"Fourniture d'émulsions d'accrochage de type ECR 65-0.3 kg/m2",8,446000,"Fourniture d'enrobés type sand asphalt_",1800,65500,null,null,"",null,null,"",null,null,"","PF/217/11/2020",0,null,null,null,null,null,null,null,null,null,null,null,null,null,null,null,null,11,2020]
["PF/216/11/2020","2020-11-11","CECO CI ",575840000,"Ouvert","Fourniture d'enrobés type BB 0/10",8000,61000,null,null,"",null,null,"",null,null,"",null,null,"",null,null,"",null,null,"",null,null,"",null,null,"","PF/216/11/2020",0,null,null,null,null,null,null,null,null,null,null,null,null,null,null,null,null,11,2020]
["PF/215/11/2020","2020-11-10","SOROUBAT CI",713900,"Ouvert","Fourniture d'enrobés type BB 0-10",10,60500,null,null,"",null,null,"",null,null,"",null,null,"",null,null,"",null,null,"",null,null,"",null,null,"","PF/215/11/2020",0,null,null,null,null,null,null,null,null,null,null,null,null,null,null,null,null,11,2020]
["PF/214/11/2020","2020-11-10","ENTREPRISE KABA-FRERE BTP SARL",1895670,"Ouvert","Fourniture d'enrobés type BB010",27,59500,null,null,"",null,null,"",null,null,"",null,null,"",null,null,"",null,null,"",null,null,"",null,null,"","PF/214/11/2020",0,null,null,null,null,null,null,null,null,null,null,null,null,null,null,null,null,11,2020]
["PF/213/11/2020","2020-11-08","DECOTEK",31579042,"Ouvert","Fourniture d'enrobés type BBME 0/10S",180,64000,"Fourniture d'enrobés type GB 0/14 ",260,55000,"Fourniture d'émulsions d'accrochage de type ECR 65-0.3 kg/m2",0.4,446000,"Fourniture d'émulsions d'imprégnation de type I55–1.2 kg/m2",1.5,509000,null,null,"",null,null,"",null,null,"",null,null,"",null,null,"","PF/213/11/2020",0,null,null,null,null,null,null,null,null,null,null,null,null,null,null,null,null,11,2020]
["PF/212/10/2020","2020-10-28","TSO-NGE CONTRACTING ",7726876,"Ouvert","Fourniture d'enrobés type BB010",100,59500,"Fourniture d'émulsions d'imprégnation de type I55–1.2 kg/m2",1,509000,"Fourniture d'émulsions d'accrochage de type ECR 65-0.3 kg/m2",0.2,446000,null,null,"",null,null,"",null,null,"",null,null,"",null,null,"",null,null,"","PF/212/10/2020",0,null,null,null,null,null,null,null,null,null,null,null,null,null,null,null,null,10,2020]
["PF/211/10/2020","2020-10-28","SITPC",7903876,"Ouvert","Fourniture d'enrobés type BB 0/10",100,61000,"Fourniture d'émulsions d'imprégnation de type I55–1.2 kg/m2",1,509000,"Fourniture d'émulsions d'accrochage de type ECR 65-0.3 kg/m2",0.2,446000,null,null,"",null,null,"",null,null,"",null,null,"",null,null,"",null,null,"","PF/211/10/2020",0,null,null,null,null,null,null,null,null,null,null,null,null,null,null,null,null,10,2020]
["PF/210/10/2020","2020-10-27","BERRY GROUP",70165986,"Ouvert","Fourniture d'enrobés type GB0/14",950,56000,"Fourniture d'émulsions d'imprégnation de type I55–1.2 kg/m2",9.5,509000,"Fourniture d'émulsions d'accrochage de type ECR 65-0.3 kg/m2",3.2,446000,null,null,"",null,null,"",null,null,"",null,null,"",null,null,"",null,null,"","PF/210/10/2020",0,null,null,null,null,null,null,null,null,null,null,null,null,null,null,null,null,10,2020]
["PF/209/10/2020","2020-10-27","BERRY GROUP",74649986,"Ouvert","Fourniture d'enrobés type BBSG 0/14",950,60000,"Fourniture d'émulsions d'imprégnation de type I55–1.2 kg/m2",9.5,509000,"Fourniture d'émulsions d'accrochage de type ECR 65-0.3 kg/m2",3.2,446000,null,null,"",null,null,"",null,null,"",null,null,"",null,null,"",null,null,"","PF/209/10/2020",0,null,null,null,null,null,null,null,null,null,null,null,null,null,null,null,null,10,2020]
["PF/208/10/2020","2020-10-26","BERRY GROUP",75210486,"Ouvert","Fourniture d'enrobés type BB 0-10",950,60500,"Fourniture d'émulsions d'accrochage de type ECR 65-0.3 kg/m2",3.2,446000,"Fourniture d'émulsions d'imprégnation de type I55–1.2 kg/m2",9.5,509000,null,null,"",null,null,"",null,null,"",null,null,"",null,null,"",null,null,"","PF/208/10/2020",0,null,null,null,null,null,null,null,null,null,null,null,null,null,null,null,null,10,2020]
["PF/206/10/2020","2020-10-14","ITSK SARL",35761552,"Ouvert","Fourniture d'enrobés type GB 0/14 ",300,55000,"Fourniture d'enrobés type BBME 0/10S",200,64000,"Fourniture d'émulsions d'accrochage de type ECR 65-0.3 kg/m2",1.8,446000,"Fourniture d'émulsions d'imprégnation de type I55–1.2 kg/m2",0.4,509000,null,null,"",null,null,"",null,null,"",null,null,"",null,null,"","PF/206/10/2020",0,null,null,null,null,null,null,null,null,null,null,null,null,null,null,null,null,10,2020]
["PF/205/10/2020","2020-10-14","SONITRA",97126980,"Ouvert","Fourniture d'enrobés type BBSG 0/14",1200,60000,"Fourniture d'émulsions d'accrochage de type ECR 65-0.3 kg/m2",6,446000,"Fourniture d'émulsions d'imprégnation de type I55–1.2 kg/m2",15,509000,null,null,"",null,null,"",null,null,"",null,null,"",null,null,"",null,null,"","PF/205/10/2020",0,null,null,null,null,null,null,null,null,null,null,null,null,null,null,null,null,10,2020]
["PF/204/10/2020","2020-10-09","CGE",1079700,"Ouvert","Fourniture d'enrobés type BB 0/10",15,61000,null,null,"",null,null,"",null,null,"",null,null,"",null,null,"",null,null,"",null,null,"",null,null,"","PF/204/10/2020",0,null,null,null,null,null,null,null,null,null,null,null,null,null,null,null,null,10,2020]
["PF/203/10/2020","2020-10-08","HT ESACOM",5145390,"Ouvert","Fourniture + livraison Béton type C30/37 (350 kg/m3) CPJ-42.5",68,67500,null,null,"",null,null,"",null,null,"",null,null,"",null,null,"",null,null,"",null,null,"",null,null,"","PF/203/10/2020",0.05,null,null,null,null,null,null,null,null,null,null,null,null,null,null,null,null,10,2020]
["PF/202/10/2020","2020-10-07","SONITRA",421260,"Ouvert","Fourniture d'enrobés type BB010",6,59500,null,null,"",null,null,"",null,null,"",null,null,"",null,null,"",null,null,"",null,null,"",null,null,"","PF/202/10/2020",0,null,null,null,null,null,null,null,null,null,null,null,null,null,null,null,null,10,2020]
["PF/201/10/2020","2020-10-05","HT ESACOM",5416200,"Ouvert","Fourniture + livraison Béton type C30/37 (350 kg/m3) CPJ-42.5",68,67500,null,null,"",null,null,"",null,null,"",null,null,"",null,null,"",null,null,"",null,null,"",null,null,"","PF/201/10/2020",0,null,null,null,null,null,null,null,null,null,null,null,null,null,null,null,null,10,2020]
["PF/200/10/2020","2020-10-05","UNIVERS CONSTRUCTIONS",1374818000,"Ouvert","Fourniture d'enrobés type BB 0/10",20000,61000,null,null,"",null,null,"",null,null,"",null,null,"",null,null,"",null,null,"",null,null,"",null,null,"","PF/200/10/2020",4.4999999999999998E-2,null,null,null,null,null,null,null,null,null,null,null,null,null,null,null,null,10,2020]
["PF/199/10/2020","2020-10-05","M KOUADIO",9486054.2199999988,"Ouvert","Fourniture d'enrobés type BB 0-10",32,60500,"Fourniture d'enrobés type BB Coloré",30,200000,"Fourniture d'émulsions d'imprégnation de type I55–1.2 kg/m2",0.6,509000,"Fourniture d'émulsions d'accrochage de type ECR 65-0.3 kg/m2",0.2,446000,null,null,"",null,null,"",null,null,"",null,null,"",null,null,"","PF/199/10/2020",3.5000000000000003E-2,null,null,null,null,null,null,null,null,null,null,null,null,null,null,null,null,10,2020]
["PF/198/10/2020","2020-10-05","MK CONSTRUCTION",2457058660.2420001,"Ouvert","Fourniture d'enrobés type BB 0-10",26107.200000000001,60500,"Fourniture d'enrobés type sans asphalt_",4906.2,63500,"Fourniture d'émulsions d'imprégnation de type I55–1.2 kg/m2",359.28,509000,"Fourniture d'émulsions d'accrochage de type ECR 65-0.3 kg/m2",89.82,446000,null,null,"",null,null,"",null,null,"",null,null,"",null,null,"","PF/198/10/2020",1.4999999999999999E-2,null,null,null,null,null,null,null,null,null,null,null,null,null,null,null,null,10,2020]
["PF/197/10/2020","2020-10-05","OGCI PRESTIGE",1770000,"Ouvert","Fourniture d'enrobés type BBSG 0/14",25,60000,null,null,"",null,null,"",null,null,"",null,null,"",null,null,"",null,null,"",null,null,"",null,null,"","PF/197/10/2020",0,null,null,null,null,null,null,null,null,null,null,null,null,null,null,null,null,10,2020]
["PF/196/10/2020","2020-10-02","OGCI PRESTIGE",3540000,"Ouvert","Fourniture d'enrobés type BBSG 0/14",50,60000,null,null,"",null,null,"",null,null,"",null,null,"",null,null,"",null,null,"",null,null,"",null,null,"","PF/196/10/2020",0,null,null,null,null,null,null,null,null,null,null,null,null,null,null,null,null,10,2020]
["PF/195/10/2020","2020-10-02","OGCI PRESTIGE",3540000,"Ouvert","Fourniture d'enrobés type BBSG 0/14",50,60000,null,null,"",null,null,"",null,null,"",null,null,"",null,null,"",null,null,"",null,null,"",null,null,"","PF/195/10/2020",0,null,null,null,null,null,null,null,null,null,null,null,null,null,null,null,null,10,2020]
["PF/194/10/2020","2020-10-02","OGCI PRESTIGE",3245000,"Ouvert","Fourniture d'enrobés type GB 0/14 et 0/20",50,55000,null,null,"",null,null,"",null,null,"",null,null,"",null,null,"",null,null,"",null,null,"",null,null,"","PF/194/10/2020",0,null,null,null,null,null,null,null,null,null,null,null,null,null,null,null,null,10,2020]
["PF/193/10/2020","2020-10-02","TEKNOBAT",6425100,"Ouvert","Fourniture d'émulsions d'accrochage de type ECR69",11,495000,null,null,"",null,null,"",null,null,"",null,null,"",null,null,"",null,null,"",null,null,"",null,null,"","PF/193/10/2020",0,null,null,null,null,null,null,null,null,null,null,null,null,null,null,null,null,10,2020]
["PF/192/10/2020","2020-10-01","SCORE SARL",28072200,"Ouvert","Fourniture d'enrobés type BB 0/10",400,61000,null,null,"",null,null,"",null,null,"",null,null,"",null,null,"",null,null,"",null,null,"",null,null,"","PF/192/10/2020",2.5000000000000001E-2,null,null,null,null,null,null,null,null,null,null,null,null,null,null,null,null,10,2020]
["PF/191/10/2020","2020-10-01","AGEROUTE-CCPH",7198000,"Ouvert","Fourniture d'enrobés type BB 0/10",100,61000,null,null,"",null,null,"",null,null,"",null,null,"",null,null,"",null,null,"",null,null,"",null,null,"","PF/191/10/2020",0,null,null,null,null,null,null,null,null,null,null,null,null,null,null,null,null,10,2020]
["PF/190/9/2020","2020-09-30","ICM GROUP SARL",84648480,"Ouvert","Fourniture d'enrobés type BB 0/10",1200,61000,null,null,"",null,null,"",null,null,"",null,null,"",null,null,"",null,null,"",null,null,"",null,null,"","PF/190/9/2020",0.02,null,null,null,null,null,null,null,null,null,null,null,null,null,null,null,null,9,2020]
["PF/189/9/2020","2020-09-30","ALTESSE TRAVAUX",87325782,"Ouvert","Fourniture d'enrobés type BB 0-10",1200,60500,"Fourniture d'émulsions d'accrochage de type ECL65 - 0.3 Kg/m3",3.15,446000,null,null,"",null,null,"",null,null,"",null,null,"",null,null,"",null,null,"",null,null,"","PF/189/9/2020",0,null,null,null,null,null,null,null,null,null,null,null,null,null,null,null,null,9,2020]
["PF/188/9/2020","2020-09-29","HAMMER",1359360,"Ouvert","Fourniture + livraison Béton type C35/45 (390 kg/m3) CPJ-42.5",16,72000,null,null,"",null,null,"",null,null,"",null,null,"",null,null,"",null,null,"",null,null,"",null,null,"","PF/188/9/2020",0,null,null,null,null,null,null,null,null,null,null,null,null,null,null,null,null,9,2020]
["PF/187/9/2020","2020-09-29","ACTIBAT-TP",61808400,"Ouvert","Fourniture + livraison Béton type C30/37 (350 kg/m3) CPJ-42.5",800,67500,null,null,"",null,null,"",null,null,"",null,null,"",null,null,"",null,null,"",null,null,"",null,null,"","PF/187/9/2020",0.03,null,null,null,null,null,null,null,null,null,null,null,null,null,null,null,null,9,2020]
["PF/186/9/2020","2020-09-29","HAMMER",1604800,"Ouvert","Fourniture + livraison Béton type C35/45 (390 kg/m3) CPA-42.5",16,85000,null,null,"",null,null,"",null,null,"",null,null,"",null,null,"",null,null,"",null,null,"",null,null,"","PF/186/9/2020",0,null,null,null,null,null,null,null,null,null,null,null,null,null,null,null,null,9,2020]
["PF/185/9/2020","2020-09-28","ECT (ENTREPRISE COULIBALY TRAVAUX)",21063000,"Ouvert","Fourniture d'enrobés type BB010",300,59500,null,null,"",null,null,"",null,null,"",null,null,"",null,null,"",null,null,"",null,null,"",null,null,"","PF/185/9/2020",0,null,null,null,null,null,null,null,null,null,null,null,null,null,null,null,null,9,2020]
["PF/184/9/2020","2020-09-28","EMEB CI  ",60554230.509999998,"Ouvert","Fourniture d'enrobés type GB 0/20",500,55000,"Fourniture d'enrobés type BBSG 0/14",350,60000,"Fourniture d'émulsions d'accrochage de type ECR69",1.8,495000,"Fourniture d'émulsions d'imprégnation de type I55 – 1.2 kg/m2",3.5,550327,null,null,"",null,null,"",null,null,"",null,null,"",null,null,"","PF/184/9/2020",0,null,null,null,null,null,null,null,null,null,null,null,null,null,null,null,null,9,2020]
["PF/183/9/2020","2020-09-28","MOVIS",1439600,"Ouvert","Fourniture d'enrobés type BB 0/10",20,61000,null,null,"",null,null,"",null,null,"",null,null,"",null,null,"",null,null,"",null,null,"",null,null,"","PF/183/9/2020",0,null,null,null,null,null,null,null,null,null,null,null,null,null,null,null,null,9,2020]
["PF/182/9/2020","2020-09-25","RAZEL",14152094,"Ouvert","Fourniture d'émulsions de type ECL 60",25,479732,null,null,"",null,null,"",null,null,"",null,null,"",null,null,"",null,null,"",null,null,"",null,null,"","PF/182/9/2020",0,null,null,null,null,null,null,null,null,null,null,null,null,null,null,null,null,9,2020]
["PF/181/9/2020","2020-09-25","M KOUASSI",3982500,"Ouvert","Fourniture + livraison Béton type C30/37 (350 kg/m3) CPJ-42.5",50,67500,null,null,"",null,null,"",null,null,"",null,null,"",null,null,"",null,null,"",null,null,"",null,null,"","PF/181/9/2020",0,null,null,null,null,null,null,null,null,null,null,null,null,null,null,null,null,9,2020]
["PF/180/9/2020","2020-09-25","MOVIS",1298000,"Ouvert","Fourniture d'enrobés type GB 0/14 et 0/20",20,55000,null,null,"",null,null,"",null,null,"",null,null,"",null,null,"",null,null,"",null,null,"",null,null,"","PF/180/9/2020",0,null,null,null,null,null,null,null,null,null,null,null,null,null,null,null,null,9,2020]
["PF/179/9/2020","2020-09-25","RAZEL",15310500,"Ouvert","Fourniture d'émulsions d'imprégnation de type ECL 60",25,519000,null,null,"",null,null,"",null,null,"",null,null,"",null,null,"",null,null,"",null,null,"",null,null,"","PF/179/9/2020",0,null,null,null,null,null,null,null,null,null,null,null,null,null,null,null,null,9,2020]
["PF/177/9/2020","2020-09-23","ETS BERA & CIE",85624104,"Ouvert","Fourniture d'enrobés type BB 010",1130,59000,"Fourniture d'émulsions d'imprégnation de type I55–1.2 kg/m2",10,509000,"Fourniture d'émulsions d'accrochage de type ECR 65-0.3 kg/m2",1.8,446000,null,null,"",null,null,"",null,null,"",null,null,"",null,null,"",null,null,"","PF/177/9/2020",0,null,null,null,null,null,null,null,null,null,null,null,null,null,null,null,null,9,2020]
["PF/176/9/2020","2020-09-23","ENTREPRISE LIKA",5273936.25,"Ouvert","Fourniture d'enrobés type BB 0-10",75,60500,null,null,"",null,null,"",null,null,"",null,null,"",null,null,"",null,null,"",null,null,"",null,null,"","PF/176/9/2020",1.4999999999999999E-2,null,null,null,null,null,null,null,null,null,null,null,null,null,null,null,null,9,2020]
["PF/175/9/2020","2020-09-23","QORNUS SARL",10797000,"Ouvert","Fourniture d'enrobés type BB 0/10",150,61000,null,null,"",null,null,"",null,null,"",null,null,"",null,null,"",null,null,"",null,null,"",null,null,"","PF/175/9/2020",0,null,null,null,null,null,null,null,null,null,null,null,null,null,null,null,null,9,2020]
["PF/174/9/2020","2020-09-23","ITSK SARL",17566643.952,"Ouvert","Fourniture d'enrobés type BB 0/10",225,61000,"Fourniture d'émulsions d'imprégnation de type I55–1.2 kg/m2",2.2000000000000002,509000,"Fourniture d'émulsions d'accrochage de type ECR 65-0.3 kg/m2",0.5,446000,null,null,"",null,null,"",null,null,"",null,null,"",null,null,"",null,null,"","PF/174/9/2020",1.2E-2,null,null,null,null,null,null,null,null,null,null,null,null,null,null,null,null,9,2020]
["PF/173/9/2020","2020-09-22","QORNUS SARL",10667436,"Ouvert","Fourniture d'enrobés type BB 0/10",150,61000,null,null,"",null,null,"",null,null,"",null,null,"",null,null,"",null,null,"",null,null,"",null,null,"","PF/173/9/2020",1.2E-2,null,null,null,null,null,null,null,null,null,null,null,null,null,null,null,null,9,2020]
["PF/172/9/2020","2020-09-22","FOBUPREST",31860000,"Ouvert","Fourniture + livraison Béton type C30/37 (350 kg/m3) CPJ-42.5",400,67500,null,null,"",null,null,"",null,null,"",null,null,"",null,null,"",null,null,"",null,null,"",null,null,"","PF/172/9/2020",0,null,null,null,null,null,null,null,null,null,null,null,null,null,null,null,null,9,2020]
["PF/171/9/2020","2020-09-22","RAZEL",2430800000,"Ouvert","Fourniture d'enrobés type GB 0/20",15000,55000,"Fourniture d'enrobés type BB010",10000,59500,"Fourniture d'enrobés type BBME 0/10S",10000,64000,null,null,"",null,null,"",null,null,"",null,null,"",null,null,"",null,null,"","PF/171/9/2020",0,null,null,null,null,null,null,null,null,null,null,null,null,null,null,null,null,9,2020]
["PF/170/9/2020","2020-09-22","2KJ CONSTRUCTION ",10103060.879999999,"Ouvert","Fourniture d'enrobés type BB 0-10",140,60500,"Fourniture d'émulsions d'accrochage de type ECR 65-0.3 kg/m2",0.4,446000,null,null,"",null,null,"",null,null,"",null,null,"",null,null,"",null,null,"",null,null,"","PF/170/9/2020",0.01,null,null,null,null,null,null,null,null,null,null,null,null,null,null,null,null,9,2020]
["PF/169/9/2020","2020-09-17","SOCIETE FADOUL DES TRAVAUX DE COTE D'IVOIRE (SFT)",3634636,"Ouvert","Fourniture d'émulsions d'imprégnation de type I55–1.2 kg/m2",5,509000,"Fourniture d'émulsions d'accrochage de type ECR 65-0.3 kg/m2",1.2,446000,null,null,"",null,null,"",null,null,"",null,null,"",null,null,"",null,null,"",null,null,"","PF/169/9/2020",0,null,null,null,null,null,null,null,null,null,null,null,null,null,null,null,null,9,2020]
["PF/168/9/2020","2020-09-14","ENTREPRISE LUCA",11820532,"Ouvert","Fourniture d'enrobés type BB 0-10",150,60500,"Fourniture d'émulsions d'accrochage de type ECR 65-0.3 kg/m2",1.2,446000,"Fourniture d'émulsions d'imprégnation de type I55–1.2 kg/m2",0.8,509000,null,null,"",null,null,"",null,null,"",null,null,"",null,null,"",null,null,"","PF/168/9/2020",0,null,null,null,null,null,null,null,null,null,null,null,null,null,null,null,null,9,2020]
["PF/167/9/2020","2020-09-14","ENTREPRISE KABA-FRERE BTP SARL",54761424.919599995,"Ouvert","Fourniture d'enrobés type BB 0/10",700,61000,"Fourniture d'émulsions d'imprégnation de type I55 – 1.2 kg/m2",7,550327,"Fourniture d'émulsions d'accrochage de type ECR 65-0.3 kg/m2",1.8,446000,null,null,"",null,null,"",null,null,"",null,null,"",null,null,"",null,null,"","PF/167/9/2020",0.02,null,null,null,null,null,null,null,null,null,null,null,null,null,null,null,null,9,2020]
["PF/166/9/2020","2020-09-08","EMEB CI  ",76742480,"Ouvert","Fourniture d'enrobés type GB 0/20",768,54000,"Fourniture d'enrobés type BBSG 0/14",376,60000,"Fourniture d'émulsions d'accrochage de type ECR69",1,495000,"Fourniture d'émulsions d'imprégnation de type I55–1.2 kg/m2",1,509000,null,null,"",null,null,"",null,null,"",null,null,"",null,null,"","PF/166/9/2020",0,null,null,null,null,null,null,null,null,null,null,null,null,null,null,null,null,9,2020]
["PF/165/9/2020","2020-09-08","ENTREPRISE LUCA",14278000,"Ouvert","Fourniture d'enrobés type BB 0-10",200,60500,null,null,"",null,null,"",null,null,"",null,null,"",null,null,"",null,null,"",null,null,"",null,null,"","PF/165/9/2020",0,null,null,null,null,null,null,null,null,null,null,null,null,null,null,null,null,9,2020]
["PF/164/9/2020","2020-09-07","GROUPE MANAHIM MULTI-SERVICES",6967664,"Ouvert","Fourniture d'enrobés type BBDR 010 (Poreux_drainant)",100,60500,null,null,"",null,null,"",null,null,"",null,null,"",null,null,"",null,null,"",null,null,"",null,null,"","PF/164/9/2020",2.4E-2,null,null,null,null,null,null,null,null,null,null,null,null,null,null,null,null,9,2020]
["PF/163/9/2020","2020-09-07","M ZARA",1991250,"Ouvert","Fourniture + livraison Béton type C30/37 (350 kg/m3) CPJ-42.5",25,67500,null,null,"",null,null,"",null,null,"",null,null,"",null,null,"",null,null,"",null,null,"",null,null,"","PF/163/9/2020",0,null,null,null,null,null,null,null,null,null,null,null,null,null,null,null,null,9,2020]
["PF/162/9/2020","2020-09-07","ETS YAMPA ET FRÈRES",9772760,"Ouvert","Fourniture + livraison Béton type C30/37 (350 kg/m3) CPA-42.5",101,82000,null,null,"",null,null,"",null,null,"",null,null,"",null,null,"",null,null,"",null,null,"",null,null,"","PF/162/9/2020",0,null,null,null,null,null,null,null,null,null,null,null,null,null,null,null,null,9,2020]
["PF/161/9/2020","2020-09-07","NEW ENTREPRISE",42484985.736000001,"Ouvert","Fourniture d'enrobés type BB 0/10",600,61000,null,null,"",null,null,"",null,null,"",null,null,"",null,null,"",null,null,"",null,null,"",null,null,"","PF/161/9/2020",1.6278000000000001E-2,null,null,null,null,null,null,null,null,null,null,null,null,null,null,null,null,9,2020]
["PF/160/9/2020","2020-09-04","2KJ CONSTRUCTION ",10935520.199999999,"Ouvert","Fourniture d'enrobés type BB 0-10",140,60500,"Fourniture d'émulsions d'accrochage de type ECR 65-0.3 kg/m2",0.4,446000,"Fourniture d'émulsions d'imprégnation de type I55–1.2 kg/m2",1.4,509000,null,null,"",null,null,"",null,null,"",null,null,"",null,null,"",null,null,"","PF/160/9/2020",0.01,null,null,null,null,null,null,null,null,null,null,null,null,null,null,null,null,9,2020]
["PF/159/9/2020","2020-09-01","LEBER",1816256,"Ouvert","Fourniture d'enrobés type BB 010_",25,58000,"Fourniture d'émulsions d'accrochage de type ECR 65-0.3 kg/m2",0.2,446000,null,null,"",null,null,"",null,null,"",null,null,"",null,null,"",null,null,"",null,null,"","PF/159/9/2020",0,null,null,null,null,null,null,null,null,null,null,null,null,null,null,null,null,9,2020]
["PF/158/8/2020","2020-08-31","2KJ CONSTRUCTION ",3651864,"Ouvert","Fourniture d'enrobés type BB 0-10",45,60500,"Fourniture d'émulsions d'imprégnation de type I55–1.2 kg/m2",0.6,509000,"Fourniture d'émulsions d'accrochage de type ECR 65-0.3 kg/m2",0.15,446000,null,null,"",null,null,"",null,null,"",null,null,"",null,null,"",null,null,"","PF/158/8/2020",0,null,null,null,null,null,null,null,null,null,null,null,null,null,null,null,null,8,2020]
["PF/156/8/2020","2020-08-31","M KOFFI",2888109,"Ouvert","Fourniture + livraison Béton type C30/37 (350 kg/m3) CPJ-42.5",37,67500,null,null,"",null,null,"",null,null,"",null,null,"",null,null,"",null,null,"",null,null,"",null,null,"","PF/156/8/2020",0.02,null,null,null,null,null,null,null,null,null,null,null,null,null,null,null,null,8,2020]
["PF/155/8/2020","2020-08-31","M DOUMABIA",2562738.75,"Ouvert","Fourniture + livraison Béton type C30/37 (350 kg/m3) CPJ-42.5",33,67500,null,null,"",null,null,"",null,null,"",null,null,"",null,null,"",null,null,"",null,null,"",null,null,"","PF/155/8/2020",2.5000000000000001E-2,null,null,null,null,null,null,null,null,null,null,null,null,null,null,null,null,{"$f":"MONTH(B127)","v":8},{"$f":"YEAR(B127)","v":2020}]
["PF/154/8/2020","2020-08-29","GROUPE MANAHIM MULTI-SERVICES",11156419.504000001,"Ouvert","Fourniture d'enrobés type BBDR 010 (Poreux_drainant)",153,60500,"Fourniture d'émulsions d'accrochage de type ECR 65 - 0.3 kg/m2",0.4,495232,null,null,"",null,null,"",null,null,"",null,null,"",null,null,"",null,null,"",null,null,"","PF/154/8/2020",0,null,null,null,null,null,null,null,null,null,null,null,null,null,null,null,null,8,2020]
["PF/153/8/2020","2020-08-27","RIMCO EQUIPEMENT",19275300,"Ouvert","Fourniture d'enrobés type BB 0-10",270,60500,null,null,"",null,null,"",null,null,"",null,null,"",null,null,"",null,null,"",null,null,"",null,null,"","PF/153/8/2020",0,null,null,null,null,null,null,null,null,null,null,null,null,null,null,null,null,8,2020]
["PF/152/8/2020","2020-08-27","GTEC ( GENERAL TECHNOLOGIE)",91922000,"Ouvert","Fourniture + livraison Béton type C30/37 (350 kg/m3) CPA-42.5",950,82000,null,null,"",null,null,"",null,null,"",null,null,"",null,null,"",null,null,"",null,null,"",null,null,"","PF/152/8/2020",0,null,null,null,null,null,null,null,null,null,null,null,null,null,null,null,null,8,2020]
["PF/151/8/2020","2020-08-26","SCI DE LA RIVIERA CONSTRUCTION",104065826.74799998,"Ouvert","Fourniture d'enrobés type BB 0/10",1350,61000,"Fourniture d'émulsions d'accrochage de type ECR 65 - 0.3 kg/m2",3,495232,"Fourniture d'émulsions d'imprégnation de type I55–1.2 kg/m2",13,509000,null,null,"",null,null,"",null,null,"",null,null,"",null,null,"",null,null,"","PF/151/8/2020",2.5000000000000001E-2,null,null,null,null,null,null,null,null,null,null,null,null,null,null,null,null,8,2020]
["PF/150/8/2020","2020-08-26","BVMBI",21270090,"Ouvert","Fourniture d'enrobés type BB 0/10",300,61000,null,null,"",null,null,"",null,null,"",null,null,"",null,null,"",null,null,"",null,null,"",null,null,"","PF/150/8/2020",1.4999999999999999E-2,null,null,null,null,null,null,null,null,null,null,null,null,null,null,null,null,8,2020]
["PF/149/8/2020","2020-08-25","SNP CI",74115800,"Ouvert","Fourniture d'enrobés type BB 010",700,59000,"Fourniture d'émulsions d'accrochage de type ECR 65-0.3 kg/m2",30,446000,"Fourniture d'émulsions d'imprégnation de type I55–1.2 kg/m2",15,509000,"Baril 200L (en option)",45,11000,null,null,"",null,null,"",null,null,"",null,null,"",null,null,"","PF/149/8/2020",0,null,null,null,null,null,null,null,null,null,null,null,null,null,null,null,null,8,2020]
["PF/148/8/2020","2020-08-25","GEBAT (LA GENERAL DU BATIMENT ET DES TRAVAUX PUBLICS)",188292600,"Ouvert","Fourniture d'enrobés type BBSG 0/14",2700,60000,null,null,"",null,null,"",null,null,"",null,null,"",null,null,"",null,null,"",null,null,"",null,null,"","PF/148/8/2020",1.4999999999999999E-2,null,null,null,null,null,null,null,null,null,null,null,null,null,null,null,null,8,2020]
["PF/147/8/2020","2020-08-21","AKILI BTP",828072316,"Ouvert","Fourniture d'enrobés type BB 0/10",11860,61000,null,null,"",null,null,"",null,null,"",null,null,"",null,null,"",null,null,"",null,null,"",null,null,"","PF/147/8/2020",0.03,null,null,null,null,null,null,null,null,null,null,null,null,null,null,null,null,8,2020]
["PF/146/8/2020","2020-08-21","ABTP",42598000,"Ouvert","Fourniture + livraison Béton type C12/15 (150 kg/m3) CPA-42.5",100,53000,"Fourniture + livraison Béton type C25/30 (330 kg/m3) CPA-42.5",400,77000,null,null,"",null,null,"",null,null,"",null,null,"",null,null,"",null,null,"",null,null,"","PF/146/8/2020",0,null,null,null,null,null,null,null,null,null,null,null,null,null,null,null,null,8,2020]
["PF/145/8/2020","2020-08-19","TP N'ZIKAN",33910250,"Ouvert","Fourniture d'enrobés type BB 0-10",475,60500,null,null,"",null,null,"",null,null,"",null,null,"",null,null,"",null,null,"",null,null,"",null,null,"","PF/145/8/2020",0,null,null,null,null,null,null,null,null,null,null,null,null,null,null,null,null,8,2020]
["PF/144/8/2020","2020-08-11","AGEROUTE-CCPH",7198000,"Ouvert","Fourniture d'enrobés type BB 0/10",100,61000,null,null,"",null,null,"",null,null,"",null,null,"",null,null,"",null,null,"",null,null,"",null,null,"","PF/144/8/2020",0,null,null,null,null,null,null,null,null,null,null,null,null,null,null,null,null,8,2020]
["PF/143/8/2020","2020-08-11","LE BATISSEUR ",313118900,"Ouvert","Fourniture d'enrobés type BB0/6",3650,62500,"Fourniture d'émulsions d'imprégnation de type I55–1.2 kg/m2",60,509000,"Fourniture d'émulsions d'accrochage de type ECR 65-0.3 kg/m2",15,446000,null,null,"",null,null,"",null,null,"",null,null,"",null,null,"",null,null,"","PF/143/8/2020",0,null,null,null,null,null,null,null,null,null,null,null,null,null,null,null,null,8,2020]
["PF/142/8/2020","2020-08-10","AIT",68303710,"Ouvert","Fourniture d'enrobés type BB 0-10",850,60500,"Fourniture d'émulsions d'imprégnation de type I55–1.2 kg/m2",10.5,509000,"Fourniture d'émulsions d'accrochage de type ECL65 - 0.3 Kg/m3",2.5,446000,null,null,"",null,null,"",null,null,"",null,null,"",null,null,"",null,null,"","PF/142/8/2020",0,null,null,null,null,null,null,null,null,null,null,null,null,null,null,null,null,8,2020]
["PF/141/8/2020","2020-08-06","SONITRA",84768863.599999994,"Ouvert","Fourniture d'enrobés type BB 0-10",1176,60500,"Fourniture d'émulsions d'accrochage de type ECR 65-0.3 kg/m2",4,446000,null,null,"",null,null,"",null,null,"",null,null,"",null,null,"",null,null,"",null,null,"","PF/141/8/2020",1.4999999999999999E-2,null,null,null,null,null,null,null,null,null,null,null,null,null,null,null,null,8,2020]
["PF/140/8/2020","2020-08-06","SONITRA",158867232.04999998,"Ouvert","Fourniture d'enrobés type BB 0-10",2215,60500,"Fourniture d'émulsions d'accrochage de type ECR 65-0.3 kg/m2",6,446000,null,null,"",null,null,"",null,null,"",null,null,"",null,null,"",null,null,"",null,null,"","PF/140/8/2020",1.4999999999999999E-2,null,null,null,null,null,null,null,null,null,null,null,null,null,null,null,null,8,2020]
["PF/139/8/2020","2020-08-06","SONITRA",83378752.799999997,"Ouvert","Fourniture d'enrobés type BB 0/10",1176,61000,null,null,"",null,null,"",null,null,"",null,null,"",null,null,"",null,null,"",null,null,"",null,null,"","PF/139/8/2020",1.4999999999999999E-2,null,null,null,null,null,null,null,null,null,null,null,null,null,null,null,null,8,2020]
["PF/138/8/2020","2020-08-05","IVOIRE MACONNERIE",2159400,"Ouvert","Fourniture d'enrobés type BB 0/10",30,61000,null,null,"",null,null,"",null,null,"",null,null,"",null,null,"",null,null,"",null,null,"",null,null,"","PF/138/8/2020",0,null,null,null,null,null,null,null,null,null,null,null,null,null,null,null,null,8,2020]
["PF/137/7/2020","2020-07-27","BANIBAH",93338000,"Ouvert","Fourniture d'enrobés type BBSG 0-14",500,61000,"Fourniture d'enrobés type GB 0/20",900,54000,null,null,"",null,null,"",null,null,"",null,null,"",null,null,"",null,null,"",null,null,"","PF/137/7/2020",0,null,null,null,null,null,null,null,null,null,null,null,null,null,null,null,null,7,2020]
["PF/136/7/2020","2020-07-27","YEO",10226824,"Ouvert","Fourniture d'enrobés type BB 0-10",130,60500,"Fourniture d'émulsions d'imprégnation de type I55–1.2 kg/m2",1.4,509000,"Fourniture d'émulsions d'accrochage de type ECR 65-0.3 kg/m2",0.2,446000,null,null,"",null,null,"",null,null,"",null,null,"",null,null,"",null,null,"","PF/136/7/2020",0,null,null,null,null,null,null,null,null,null,null,null,null,null,null,null,null,7,2020]
["PF/135/7/2020","2020-07-24","G2I (GROUPE IMMOBILIER INTERNATIONAL)",118094164,"Ouvert","Fourniture d'enrobés type BB 0-10",1500,60500,"Fourniture d'émulsions d'imprégnation de type I55–1.2 kg/m2",15,509000,"Fourniture d'émulsions d'accrochage de type ECR 65-0.3 kg/m2",3.8,446000,null,null,"",null,null,"",null,null,"",null,null,"",null,null,"",null,null,"","PF/135/7/2020",0,null,null,null,null,null,null,null,null,null,null,null,null,null,null,null,null,7,2020]
["PF/134/7/2020","2020-07-24","SACO SA (SOCIETE AFRICAINE DE CACAO)",57336200,"Ouvert","Fourniture + livraison Béton type C40/50 (390 kg/m3) CPA-42.5",565,86000,null,null,"",null,null,"",null,null,"",null,null,"",null,null,"",null,null,"",null,null,"",null,null,"","PF/134/7/2020",0,null,null,null,null,null,null,null,null,null,null,null,null,null,null,null,null,7,2020]
["PF/133/7/2020","2020-07-24","ALTESSE TRAVAUX",2808482.5999999996,"Ouvert","Fourniture d'enrobés type BB 0-10",40,60500,null,null,"",null,null,"",null,null,"",null,null,"",null,null,"",null,null,"",null,null,"",null,null,"","PF/133/7/2020",1.6500000000000001E-2,null,null,null,null,null,null,null,null,null,null,null,null,null,null,null,null,7,2020]
["PF/132/7/2020","2020-07-24","ANNE BTP",4106495.5799999996,"Ouvert","Fourniture d'enrobés type BB 0-10",60,60500,null,null,"",null,null,"",null,null,"",null,null,"",null,null,"",null,null,"",null,null,"",null,null,"","PF/132/7/2020",4.1300000000000003E-2,null,null,null,null,null,null,null,null,null,null,null,null,null,null,null,null,7,2020]
["PF/131/7/2020","2020-07-23","ANNE BTP",9797282.4295999985,"Ouvert","Fourniture d'enrobés type BB 0-10",139,60500,"Fourniture d'émulsions d'accrochage de type ECR 65-0.3 kg/m2",0.4,446000,null,null,"",null,null,"",null,null,"",null,null,"",null,null,"",null,null,"",null,null,"","PF/131/7/2020",3.32E-2,null,null,null,null,null,null,null,null,null,null,null,null,null,null,null,null,7,2020]
["PF/130/7/2020","2020-07-22","HGG COMPANY",3932408.7049999996,"Ouvert","Fourniture d'enrobés type BB 0-10",50,60500,"Fourniture d'émulsions d'imprégnation de type I55–1.2 kg/m2",0.5,509000,"Fourniture d'émulsions d'accrochage de type ECR 60",0.13,408075,null,null,"",null,null,"",null,null,"",null,null,"",null,null,"",null,null,"","PF/130/7/2020",0,null,null,null,null,null,null,null,null,null,null,null,null,null,null,null,null,7,2020]
["PF/129/7/2020","2020-07-18","ANNE BTP",10133722,"Ouvert","Fourniture d'enrobés type BB 0-10",139,60500,"Fourniture d'émulsions d'accrochage de type ECL65 - 0.3 Kg/m3",0.4,446000,null,null,"",null,null,"",null,null,"",null,null,"",null,null,"",null,null,"",null,null,"","PF/129/7/2020",0,null,null,null,null,null,null,null,null,null,null,null,null,null,null,null,null,7,2020]
["PF/128/7/2020","2020-07-16","SONITRA",290392855.19999999,"Ouvert","Fourniture d'enrobés type BB 0-10",3955,60500,"Fourniture d'émulsions d'imprégnation de type I55–1.2 kg/m2",14.5,509000,"Fourniture d'émulsions d'accrochage de type ECR 65-0.3 kg/m2",10,446000,null,null,"",null,null,"",null,null,"",null,null,"",null,null,"",null,null,"","PF/128/7/2020",0.02,null,null,null,null,null,null,null,null,null,null,null,null,null,null,null,null,7,2020]
["PF/127/7/2020","2020-07-15","AGEROUTE-CCPH",7198000,"Ouvert","Fourniture d'enrobés type BB 0/10",100,61000,null,null,"",null,null,"",null,null,"",null,null,"",null,null,"",null,null,"",null,null,"",null,null,"","PF/127/7/2020",0,null,null,null,null,null,null,null,null,null,null,null,null,null,null,null,null,7,2020]
["PF/126/7/2020","2020-07-14","ENTREPRISE TOSSOU",2382715,"Ouvert","Fourniture + livraison Béton type C30/37 (350 kg/m3) CPA-42.5",25,82000,null,null,"",null,null,"",null,null,"",null,null,"",null,null,"",null,null,"",null,null,"",null,null,"","PF/126/7/2020",1.4999999999999999E-2,null,null,null,null,null,null,null,null,null,null,null,null,null,null,null,null,7,2020]
["PF/125/7/2020","2020-07-14","IEM (IVOIRE EQUIPEMENT MANUTENTION)",2815716,"Ouvert","Fourniture + livraison Béton type C30/37 (350 kg/m3) CPA-42.5",30,82000,null,null,"",null,null,"",null,null,"",null,null,"",null,null,"",null,null,"",null,null,"",null,null,"","PF/125/7/2020",0.03,null,null,null,null,null,null,null,null,null,null,null,null,null,null,null,null,7,2020]
["PF/124/7/2020","2020-07-14","SONITRA",33904057.949999996,"Ouvert","Fourniture d'enrobés type BB 010",492.75,59500,null,null,"",null,null,"",null,null,"",null,null,"",null,null,"",null,null,"",null,null,"",null,null,"","PF/124/7/2020",0.02,null,null,null,null,null,null,null,null,null,null,null,null,null,null,null,null,7,2020]
["PF/123/7/2020","2020-07-14","EMEB CI  ",74694590,"Ouvert","Fourniture d'enrobés type BBSG 0/14",345,60000,"Fourniture d'enrobés type GB 0/20",700,54000,"Fourniture d'émulsions d'accrochage de type ECR69",2.5,495000,"Fourniture d'émulsions d'imprégnation de type I55–1.2 kg/m2",7,509000,null,null,"",null,null,"",null,null,"",null,null,"",null,null,"","PF/123/7/2020",0,null,null,null,null,null,null,null,null,null,null,null,null,null,null,null,null,7,2020]
["PF/122/7/2020","2020-07-11","MBTP-CI S.A",837679796.93999994,"Ouvert","Fourniture d'enrobés type BB 0-10",4800,60500,"Fourniture d'enrobés type BBSG 0/14",2200,60000,"Fourniture d'enrobés type GB 0/14-0/20",4500,57500,"Fourniture d'émulsions d'impregnation de type I55",70,506155,"Fourniture d'émulsions d'accrochage de type ECR 65-0.3 kg/m2",17.5,446000,null,null,"",null,null,"",null,null,"",null,null,"","PF/122/7/2020",0.02,null,null,null,null,null,null,null,null,null,null,null,null,null,null,null,null,7,2020]
["PF/121/7/2020","2020-07-08","CHANTIER BAT AFRIQUE",5128280,"Ouvert","Fourniture + livraison Béton type C30/37 (350 kg/m3) CPA-42.5",53,82000,null,null,"",null,null,"",null,null,"",null,null,"",null,null,"",null,null,"",null,null,"",null,null,"","PF/121/7/2020",0,null,null,null,null,null,null,null,null,null,null,null,null,null,null,null,null,7,2020]
["PF/120/7/2020","2020-07-08","LEBER",4790800,"Ouvert","Fourniture d'enrobés type BB 010_",70,58000,null,null,"",null,null,"",null,null,"",null,null,"",null,null,"",null,null,"",null,null,"",null,null,"","PF/120/7/2020",0,null,null,null,null,null,null,null,null,null,null,null,null,null,null,null,null,7,2020]
["PF/119/7/2020","2020-07-08","SONITRA",274174576.47999996,"Ouvert","Fourniture d'enrobés type BB 0-10",3807,60500,"Fourniture d'émulsions d'imprégnation de type I55–1.2 kg/m2",13.3,509000,null,null,"",null,null,"",null,null,"",null,null,"",null,null,"",null,null,"",null,null,"","PF/119/7/2020",0.02,null,null,null,null,null,null,null,null,null,null,null,null,null,null,null,null,7,2020]
["PF/118/7/2020","2020-07-08","M HISSAM",11139508.687999999,"Ouvert","Fourniture d'enrobés type asphalt Coloré",45,200000,"Fourniture d'émulsions d'imprégnation de type I55 – 1.2 kg/m2",0.8,550327,null,null,"",null,null,"",null,null,"",null,null,"",null,null,"",null,null,"",null,null,"","PF/118/7/2020",0,null,null,null,null,null,null,null,null,null,null,null,null,null,null,null,null,7,2020]
["PF/117/7/2020","2020-07-06","BOSS CI",46568940.129999995,"Ouvert","Fourniture d'enrobés type BB 0-10",500,60500,"Fourniture d'enrobés type sans asphalt",75,62000,"Fourniture d'émulsions d'impregnation de type I55",7.5,506155,"Fourniture d'émulsions de type accrochage ECM60",1.8,427245,null,null,"",null,null,"",null,null,"",null,null,"",null,null,"","PF/117/7/2020",0,null,null,null,null,null,null,null,null,null,null,null,null,null,null,null,null,7,2020]
["PF/116/7/2020","2020-07-03","SONITRA",30274552,"Ouvert","Fourniture d'enrobés type BB 010",440,59500,null,null,"",null,null,"",null,null,"",null,null,"",null,null,"",null,null,"",null,null,"",null,null,"","PF/116/7/2020",0.02,null,null,null,null,null,null,null,null,null,null,null,null,null,null,null,null,7,2020]
["PF/115/7/2020","2020-07-02","SOROUBAT CI",503860,"Ouvert","Fourniture d'enrobés type BB 0/10",7,61000,null,null,"",null,null,"",null,null,"",null,null,"",null,null,"",null,null,"",null,null,"",null,null,"","PF/115/7/2020",0,null,null,null,null,null,null,null,null,null,null,null,null,null,null,null,null,7,2020]
["PF/114/7/2020","2020-07-01","ORMAD TRAVAUX ET SERVICES (OTS)",34370450,"Ouvert","Fourniture d'enrobés type BB 0/10",500,61000,null,null,"",null,null,"",null,null,"",null,null,"",null,null,"",null,null,"",null,null,"",null,null,"","PF/114/7/2020",4.4999999999999998E-2,null,null,null,null,null,null,null,null,null,null,null,null,null,null,null,null,7,2020]
["PF/113/7/2020","2020-07-01","CROISIERE DISTRIBUTION INTER (CDI)",1354640,"Ouvert","Fourniture + livraison Béton type C30/37 (350 kg/m3) CPA-42.5",14,82000,null,null,"",null,null,"",null,null,"",null,null,"",null,null,"",null,null,"",null,null,"",null,null,"","PF/113/7/2020",0,null,null,null,null,null,null,null,null,null,null,null,null,null,null,null,null,7,2020]
["PF/112/6/2020","2020-06-30","SIEC",1141650,"Ouvert","Fourniture d'enrobés type BB 0/6",15,64500,null,null,"",null,null,"",null,null,"",null,null,"",null,null,"",null,null,"",null,null,"",null,null,"","PF/112/6/2020",0,null,null,null,null,null,null,null,null,null,null,null,null,null,null,null,null,6,2020]
["PF/111/6/2020","2020-06-30","SONITRA",41971538,"Ouvert","Fourniture d'enrobés type BB 010",610,59500,null,null,"",null,null,"",null,null,"",null,null,"",null,null,"",null,null,"",null,null,"",null,null,"","PF/111/6/2020",0.02,null,null,null,null,null,null,null,null,null,null,null,null,null,null,null,null,6,2020]
["PF/110/6/2020","2020-06-29","BANIBAH SA / PRICI-FA",88063400,"Ouvert","Fourniture + livraison Béton type C30/37 (350 kg/m3) CPA-42.5_",1000,74630,null,null,"",null,null,"",null,null,"",null,null,"",null,null,"",null,null,"",null,null,"",null,null,"","PF/110/6/2020",0,null,null,null,null,null,null,null,null,null,null,null,null,null,null,null,null,6,2020]
["PF/109/6/2020","2020-06-26","SONITRA",3603720,"Ouvert","Fourniture d'émulsions d'imprégnation de type I55–1.2 kg/m2",6,509000,null,null,"",null,null,"",null,null,"",null,null,"",null,null,"",null,null,"",null,null,"",null,null,"","PF/109/6/2020",0,null,null,null,null,null,null,null,null,null,null,null,null,null,null,null,null,6,2020]
["PF/108/6/2020","2020-06-26","SOTASERV-CI",7467417.5999999996,"Ouvert","Fourniture + livraison Béton type C25/30 (330 kg/m3) CPJ-42.5",103,64000,null,null,"",null,null,"",null,null,"",null,null,"",null,null,"",null,null,"",null,null,"",null,null,"","PF/108/6/2020",0.04,null,null,null,null,null,null,null,null,null,null,null,null,null,null,null,null,6,2020]
["PF/107/6/2020","2020-06-25","BANIBAH SA / PRICI-FA",70450720,"Ouvert","Fourniture + livraison Béton type C30/37 (350 kg/m3) CPA-42.5_",800,74630,null,null,"",null,null,"",null,null,"",null,null,"",null,null,"",null,null,"",null,null,"",null,null,"","PF/107/6/2020",0,null,null,null,null,null,null,null,null,null,null,null,null,null,null,null,null,6,2020]
["PF/106/6/2020","2020-06-23","GROUPE MANAHIM MULTI-SERVICES",8955256,"Ouvert","Fourniture d'enrobés type BB 0/6",100,64500,"Fourniture d'émulsions d'imprégnation de type I55–1.2 kg/m2",1.8,509000,"Fourniture d'émulsions d'accrochage de type ECR 65-0.3 kg/m2",0.5,446000,null,null,"",null,null,"",null,null,"",null,null,"",null,null,"",null,null,"","PF/106/6/2020",0,null,null,null,null,null,null,null,null,null,null,null,null,null,null,null,null,6,2020]
["PF/105/6/2020","2020-06-23","AGEROUTE-CCPH",7198000,"Ouvert","Fourniture d'enrobés type BB 0/10",100,61000,null,null,"",null,null,"",null,null,"",null,null,"",null,null,"",null,null,"",null,null,"",null,null,"","PF/105/6/2020",0,null,null,null,null,null,null,null,null,null,null,null,null,null,null,null,null,6,2020]
["PF/104/6/2020","2020-06-22","YARO BTP",2043022.5,"Ouvert","Fourniture + livraison Béton type C30/37 (350 kg/m3) CPJ-42.5",27,67500,null,null,"",null,null,"",null,null,"",null,null,"",null,null,"",null,null,"",null,null,"",null,null,"","PF/104/6/2020",0.05,null,null,null,null,null,null,null,null,null,null,null,null,null,null,null,null,6,2020]
["PF/103/6/2020","2020-06-18","EMEB CI  ",6372000,"Ouvert","Fourniture + livraison Béton type C30/37 (350 kg/m3) CPJ-42.5",80,67500,null,null,"",null,null,"",null,null,"",null,null,"",null,null,"",null,null,"",null,null,"",null,null,"","PF/103/6/2020",0,null,null,null,null,null,null,null,null,null,null,null,null,null,null,null,null,6,2020]
["PF/102/6/2020","2020-06-15","SOCOB",7646400,"Ouvert","Fourniture + livraison Béton type C30/37 (350 kg/m3) CPJ-42.5",96,67500,null,null,"",null,null,"",null,null,"",null,null,"",null,null,"",null,null,"",null,null,"",null,null,"","PF/102/6/2020",0,null,null,null,null,null,null,null,null,null,null,null,null,null,null,null,null,6,2020]
["PF/101/6/2020","2020-06-15","SONITRA",129524894.8,"Ouvert","Fourniture d'enrobés type BB 010",1830,59500,"Fourniture d'émulsions d'accrochage de type ECR 65-0.3 kg/m2",7,446000,null,null,"",null,null,"",null,null,"",null,null,"",null,null,"",null,null,"",null,null,"","PF/101/6/2020",0.02,null,null,null,null,null,null,null,null,null,null,null,null,null,null,null,null,6,2020]
["PF/100/6/2020","2020-06-13","EMEB CI  ",69901419.379999995,"Ouvert","Fourniture d'enrobés type BBSG 0/14 SP",345,59000,"Fourniture d'enrobés type GB 0/20",700,54000,"Fourniture d'émulsions d'accrochage de type ECR 65-0.3 kg/m2",0.8,446000,"Fourniture d'émulsions d'imprégnation de type I55–1.2 kg/m2",3.2,509000,null,null,"",null,null,"",null,null,"",null,null,"",null,null,"","PF/100/6/2020",1.4999999999999999E-2,null,null,null,null,null,null,null,null,null,null,null,null,null,null,null,null,6,2020]
["PF/099/6/2020","2020-06-10","EMEB CI  ",72594308,"Ouvert","Fourniture d'enrobés type BB 010",330,59500,"Fourniture d'enrobés type BBSG 0/14",665,60000,"Fourniture d'émulsions d'accrochage de type ECR 65-0.3 kg/m2",0.8,446000,"Fourniture d'émulsions d'imprégnation de type I55–1.2 kg/m2",3.2,509000,null,null,"",null,null,"",null,null,"",null,null,"",null,null,"","PF/099/6/2020",0,null,null,null,null,null,null,null,null,null,null,null,null,null,null,null,null,6,2020]
["PF/098/6/2020","2020-06-09","SOGEP",247787787,"Ouvert","Fourniture d'enrobés type BBSG 0/14",3300,60000,"Fourniture d'émulsions d'imprégnation de type I55–1.2 kg/m2",28,509000,"Fourniture d'émulsions d'accrochage de type ECR 65-0.3 kg/m2",7,446000,null,null,"",null,null,"",null,null,"",null,null,"",null,null,"",null,null,"","PF/098/6/2020",2.5000000000000001E-2,null,null,null,null,null,null,null,null,null,null,null,null,null,null,null,null,6,2020]
["PF/097/6/2020","2020-06-09","UNIVERS CONSTRUCTIONS",15262894.08,"Ouvert","Fourniture d'enrobés type BB 010_",220,58000,"Fourniture d'émulsions d'accrochage de type ECR 65-0.3 kg/m2",1.6,446000,null,null,"",null,null,"",null,null,"",null,null,"",null,null,"",null,null,"",null,null,"","PF/097/6/2020",0.04,null,null,null,null,null,null,null,null,null,null,null,null,null,null,null,null,6,2020]
["PF/096/6/2020","2020-06-02","CHEC",1058743554,"Ouvert","Fourniture d'enrobés type GB 0/14 ",11250,55000,"Fourniture d'enrobés type BB 010_",5280,58000,null,null,"",null,null,"",null,null,"",null,null,"",null,null,"",null,null,"",null,null,"","PF/096/6/2020",0.03,null,null,null,null,null,null,null,null,null,null,null,null,null,null,null,null,6,2020]
["PF/095/5/2020","2020-05-31","M KONAN",16419700,"Ouvert","Fourniture d'enrobés type BB 0-10",230,60500,null,null,"",null,null,"",null,null,"",null,null,"",null,null,"",null,null,"",null,null,"",null,null,"","PF/095/5/2020",0,null,null,null,null,null,null,null,null,null,null,null,null,null,null,null,null,5,2020]
["PF/094/5/2020","2020-05-29","GOGOUA SERGE",29719350.199999999,"Ouvert","Fourniture d'enrobés type BB 010",400,59500,"Fourniture d'émulsions d'accrochage de type ECR 65-0.3 kg/m2",5,446000,"Fourniture d'émulsions d'imprégnation de type I55–1.2 kg/m2",1.5,509000,null,null,"",null,null,"",null,null,"",null,null,"",null,null,"",null,null,"","PF/094/5/2020",0.06,null,null,null,null,null,null,null,null,null,null,null,null,null,null,null,null,5,2020]
["PF/093/5/2020","2020-05-22","CRBC 中国路桥",10525600,"Ouvert","Fourniture d'émulsions d'accrochage de type ECR 65-0.3 kg/m2",10,446000,"Fourniture d'émulsions d'accrochage de type ECL65 - 0.3 Kg/m3",10,446000,null,null,"",null,null,"",null,null,"",null,null,"",null,null,"",null,null,"",null,null,"","PF/093/5/2020",0,null,null,null,null,null,null,null,null,null,null,null,null,null,null,null,null,5,2020]
["PF/092/5/2020","2020-05-19","GTG - CI",15152380,"Ouvert","Fourniture d'enrobés type BB 010_",200,58000,"Fourniture d'émulsions d'accrochage de type ECR 65-0.3 kg/m2",0.5,446000,"Fourniture d'émulsions d'imprégnation de type I55–1.2 kg/m2",2,509000,null,null,"",null,null,"",null,null,"",null,null,"",null,null,"",null,null,"","PF/092/5/2020",0,null,null,null,null,null,null,null,null,null,null,null,null,null,null,null,null,5,2020]
["PF/091/5/2020","2020-05-19","ITA (INGENERIE ET TRAVAUX AKOUTROU)",23302050,"Ouvert","Fourniture + livraison Béton type C12/15 (150 kg/m3) CPJ-42.5",95,52500,"Fourniture + livraison Béton type C30/37 (350 kg/m3) CPA-42.5",180,82000,null,null,"",null,null,"",null,null,"",null,null,"",null,null,"",null,null,"",null,null,"","PF/091/5/2020",0,null,null,null,null,null,null,null,null,null,null,null,null,null,null,null,null,{"$f":"MONTH(B191)","v":5},{"$f":"YEAR(B191)","v":2020}]
["PF/090/5/2020","2020-05-19","CABINET DEMBELE",68440000,"Ouvert","Fourniture d'enrobés type BB 010_",1000,58000,null,null,"",null,null,"",null,null,"",null,null,"",null,null,"",null,null,"",null,null,"",null,null,"","PF/090/5/2020",0,null,null,null,null,null,null,null,null,null,null,null,null,null,null,null,null,5,2020]
["PF/089/5/2020","2020-05-15","SONITRA",3495608.4,"Ouvert","Fourniture d'émulsions d'imprégnation de type I55–1.2 kg/m2",6,509000,null,null,"",null,null,"",null,null,"",null,null,"",null,null,"",null,null,"",null,null,"",null,null,"","PF/089/5/2020",0.03,null,null,null,null,null,null,null,null,null,null,null,null,null,null,null,null,5,2020]
["PF/088/5/2020","2020-05-15","BATECH INTERIVOIRE SARL",9221464,"Ouvert","Fourniture d'enrobés type BB 010",120,59500,"Fourniture d'émulsions d'accrochage de type ECR 65-0.3 kg/m2",0.6,446000,"Fourniture d'émulsions d'imprégnation de type I55–1.2 kg/m2",0.8,509000,null,null,"",null,null,"",null,null,"",null,null,"",null,null,"",null,null,"","PF/088/5/2020",0,null,null,null,null,null,null,null,null,null,null,null,null,null,null,null,null,5,2020]
["PF/087/5/2020","2020-05-14","SONITRA",198895997.39999998,"Ouvert","Fourniture d'enrobés type BB 010",2500,59500,"Fourniture d'émulsions d'accrochage de type ECR 65-0.3 kg/m2",23,446000,"Fourniture d'émulsions d'imprégnation de type I55–1.2 kg/m2",29,509000,null,null,"",null,null,"",null,null,"",null,null,"",null,null,"",null,null,"","PF/087/5/2020",0.03,null,null,null,null,null,null,null,null,null,null,null,null,null,null,null,null,5,2020]
["PF/086/5/2020","2020-05-14","AGEROUTE-CCPH",7198000,"Ouvert","Fourniture d'enrobés type BB 0/10",100,61000,null,null,"",null,null,"",null,null,"",null,null,"",null,null,"",null,null,"",null,null,"",null,null,"","PF/086/5/2020",0,null,null,null,null,null,null,null,null,null,null,null,null,null,null,null,null,5,2020]
["PF/085/5/2020","2020-05-14","AGEROUTE  ",7198000,"Ouvert","Fourniture d'enrobés type BB 0/10",100,61000,null,null,"",null,null,"",null,null,"",null,null,"",null,null,"",null,null,"",null,null,"",null,null,"","PF/085/5/2020",0,null,null,null,null,null,null,null,null,null,null,null,null,null,null,null,null,5,2020]
["PF/084/5/2020","2020-05-14","AGENCE FATY SERVICES",229165440,"Ouvert","Fourniture d'enrobés type BB 010",3400,59500,null,null,"",null,null,"",null,null,"",null,null,"",null,null,"",null,null,"",null,null,"",null,null,"","PF/084/5/2020",0.04,null,null,null,null,null,null,null,null,null,null,null,null,null,null,null,null,5,2020]
["PF/083/5/2020","2020-05-14","ALTESSE TRAVAUX",20201010,"Ouvert","Fourniture d'émulsions d'accrochage de type ECR 65-0.3 kg/m2",7,446000,"Fourniture d'émulsions d'imprégnation de type I55–1.2 kg/m2",27.5,509000,null,null,"",null,null,"",null,null,"",null,null,"",null,null,"",null,null,"",null,null,"","PF/083/5/2020",0,null,null,null,null,null,null,null,null,null,null,null,null,null,null,null,null,5,2020]
["PF/082/5/2020","2020-05-09","M KONATE",16148300,"Ouvert","Fourniture d'enrobés type BB 010",230,59500,null,null,"",null,null,"",null,null,"",null,null,"",null,null,"",null,null,"",null,null,"",null,null,"","PF/082/5/2020",0,null,null,null,null,null,null,null,null,null,null,null,null,null,null,null,null,5,2020]
["PF/081/5/2020","2020-05-08","SPIEBATIGNOLLES",3740204.6999999997,"Ouvert","Fourniture d'enrobés type BBME 0/14 AK",12,65500,"Fourniture d'enrobés type GB 0/14 ",21,55000,"Fourniture d'émulsions d'accrochage de type ECR 65",3,409555,null,null,"",null,null,"",null,null,"",null,null,"",null,null,"",null,null,"","PF/081/5/2020",0,null,null,null,null,null,null,null,null,null,null,null,null,null,null,null,null,5,2020]
["PF/080/5/2020","2020-05-05","ALTESSE TRAVAUX",185775660,"Ouvert","Fourniture d'enrobés type BB 010",2700,59500,null,null,"",null,null,"",null,null,"",null,null,"",null,null,"",null,null,"",null,null,"",null,null,"","PF/080/5/2020",0.02,null,null,null,null,null,null,null,null,null,null,null,null,null,null,null,null,5,2020]
["PF/079/5/2020","2020-05-05","ABRI 2000",5265750,"Ouvert","Fourniture d'enrobés type BB 010",75,59500,null,null,"",null,null,"",null,null,"",null,null,"",null,null,"",null,null,"",null,null,"",null,null,"","PF/079/5/2020",0,null,null,null,null,null,null,null,null,null,null,null,null,null,null,null,null,5,2020]
["PF/078/5/2020","2020-05-02","SACREFOR",4750680,"Ouvert","Fourniture d'enrobés type BB 0/10",66,61000,null,null,"",null,null,"",null,null,"",null,null,"",null,null,"",null,null,"",null,null,"",null,null,"","PF/078/5/2020",0,null,null,null,null,null,null,null,null,null,null,null,null,null,null,null,null,5,2020]
["PF/077/4/2020","2020-04-30","ITA (INGENERIE ET TRAVAUX AKOUTROU)",1451400,"Ouvert","Fourniture + livraison Béton type C30/37 (350 kg/m3) CPA-42.5",15,82000,null,null,"",null,null,"",null,null,"",null,null,"",null,null,"",null,null,"",null,null,"",null,null,"","PF/077/4/2020",0,null,null,null,null,null,null,null,null,null,null,null,null,null,null,null,null,4,2020]
["PF/076/4/2020","2020-04-29","ITA (INGENERIE ET TRAVAUX AKOUTROU)",437780,"Ouvert","Fourniture + livraison Béton type C12/15 (150 kg/m3) CPA-42.5",7,53000,null,null,"",null,null,"",null,null,"",null,null,"",null,null,"",null,null,"",null,null,"",null,null,"","PF/076/4/2020",0,null,null,null,null,null,null,null,null,null,null,null,null,null,null,null,null,4,2020]
["PF/075/4/2020","2020-04-27","ITA (INGENERIE ET TRAVAUX AKOUTROU)",75520000,"Ouvert","Fourniture + livraison Béton type C25/30 (330 kg/m3) CPJ-42.5",1000,64000,null,null,"",null,null,"",null,null,"",null,null,"",null,null,"",null,null,"",null,null,"",null,null,"","PF/075/4/2020",0,null,null,null,null,null,null,null,null,null,null,null,null,null,null,null,null,4,2020]
["PF/074/4/2020","2020-04-21","SOCIETE FADOUL DES TRAVAUX DE COTE D'IVOIRE (SFT)",34809995.869999997,"Ouvert","Fourniture d'enrobés type BB 0/10",500,61000,null,null,"",null,null,"",null,null,"",null,null,"",null,null,"",null,null,"",null,null,"",null,null,"","PF/074/4/2020",3.2786999999999997E-2,null,null,null,null,null,null,null,null,null,null,null,null,null,null,null,null,4,2020]
["PF/073/4/2020","2020-04-16","SIVOTAC",305063.01356799999,"Ouvert","Fourniture d'enrobés type BB 0/6",4,64500,"Fourniture d'émulsions d'accrochage de type ECR 65 - 0.3 kg/m2",0.02,495232,null,null,"",null,null,"",null,null,"",null,null,"",null,null,"",null,null,"",null,null,"","PF/073/4/2020",3.5000000000000003E-2,null,null,null,null,null,null,null,null,null,null,null,null,null,null,null,null,4,2020]
["PF/072/4/2020","2020-04-16","SIVOTAC",290505.49799999996,"Ouvert","Fourniture d'enrobés type BB 010",4,59500,"Fourniture d'émulsions d'accrochage de type ECR 65",0.02,409555,null,null,"",null,null,"",null,null,"",null,null,"",null,null,"",null,null,"",null,null,"","PF/072/4/2020",0,null,null,null,null,null,null,null,null,null,null,null,null,null,null,null,null,4,2020]
["PF/071/4/2020","2020-04-15","SODISTRA",21063000,"Ouvert","Fourniture d'enrobés type BB 010",300,59500,null,null,"",null,null,"",null,null,"",null,null,"",null,null,"",null,null,"",null,null,"",null,null,"","PF/071/4/2020",0,null,null,null,null,null,null,null,null,null,null,null,null,null,null,null,null,4,2020]
["PF/070/4/2020","2020-04-15","M HAMED",3345300,"Ouvert","Fourniture + livraison Béton type C30/37 (350 kg/m3) CPJ-42.5",42,67500,null,null,"",null,null,"",null,null,"",null,null,"",null,null,"",null,null,"",null,null,"",null,null,"","PF/070/4/2020",0,null,null,null,null,null,null,null,null,null,null,null,null,null,null,null,null,4,2020]
["PF/069/4/2020","2020-04-15","CCECC - VILLAGE CAN",216364800,"Ouvert","Fourniture + livraison Béton type C25/30 (330 kg/m3) CPJ-42.5",3000,64000,null,null,"",null,null,"",null,null,"",null,null,"",null,null,"",null,null,"",null,null,"",null,null,"","PF/069/4/2020",4.4999999999999998E-2,null,null,null,null,null,null,null,null,null,null,null,null,null,null,null,null,4,2020]
["PF/068/4/2020","2020-04-11","EGK-TRAV CI",899169451.79999995,"Ouvert","Fourniture + livraison Béton type C12/15 (150 kg/m3) CPA-42.5",58.21,53000,"Fourniture + livraison Béton type C30/37 (350 kg/m3) CPA-42.5",330.34,82000,"Fourniture + livraison Béton type C30/37 (350 kg/m3) CPJ-42.5",10842,67500,null,null,"",null,null,"",null,null,"",null,null,"",null,null,"",null,null,"","PF/068/4/2020",0,null,null,null,null,null,null,null,null,null,null,null,null,null,null,null,null,4,2020]
["PF/067/4/2020","2020-04-10","BARRY CALLEBAUT",4534740,"Ouvert","Fourniture + livraison Béton type C20/25 (330 kg/m3) CPJ-42.5",63,61000,null,null,"",null,null,"",null,null,"",null,null,"",null,null,"",null,null,"",null,null,"",null,null,"","PF/067/4/2020",0,null,null,null,null,null,null,null,null,null,null,null,null,null,null,null,null,4,2020]
["PF/066/4/2020","2020-04-10","BARRY CALLEBAUT",4534740,"Ouvert","Fourniture + livraison Béton type C20/25 (330 kg/m3) CPJ-42.5",63,61000,null,null,"",null,null,"",null,null,"",null,null,"",null,null,"",null,null,"",null,null,"",null,null,"","PF/066/4/2020",0,null,null,null,null,null,null,null,null,null,null,null,null,null,null,null,null,4,2020]
["PF/065/4/2020","2020-04-08","YEO",4769973,"Ouvert","Fourniture d'émulsions d'accrochage de type ECR 69",9,449150,null,null,"",null,null,"",null,null,"",null,null,"",null,null,"",null,null,"",null,null,"",null,null,"","PF/065/4/2020",0,null,null,null,null,null,null,null,null,null,null,null,null,null,null,null,null,4,2020]
["PF/064/4/2020","2020-04-08","AGEROUTE-CCPH",7198000,"Ouvert","Fourniture d'enrobés type BB 0/10",100,61000,null,null,"",null,null,"",null,null,"",null,null,"",null,null,"",null,null,"",null,null,"",null,null,"","PF/064/4/2020",0,null,null,null,null,null,null,null,null,null,null,null,null,null,null,null,null,4,2020]
["PF/063/4/2020","2020-04-07","AGENCE FATY SERVICES",170443625,"Ouvert","Fourniture d'enrobés type BB 0-10",2500,60500,null,null,"",null,null,"",null,null,"",null,null,"",null,null,"",null,null,"",null,null,"",null,null,"","PF/063/4/2020",4.4999999999999998E-2,null,null,null,null,null,null,null,null,null,null,null,null,null,null,null,null,4,2020]
["PF/062/4/2020","2020-04-06","ORIBAT  ",58573755.160800003,"Ouvert","Fourniture d'enrobés type BB 010",822,59500,"Fourniture d'émulsions d'accrochage de type ECR 65 - 0.3 kg/m2",3,495232,null,null,"",null,null,"",null,null,"",null,null,"",null,null,"",null,null,"",null,null,"","PF/062/4/2020",1.4999999999999999E-2,null,null,null,null,null,null,null,null,null,null,null,null,null,null,null,null,4,2020]
["PF/061/4/2020","2020-04-04","JUST HUSS",421024,"Ouvert","Fourniture d'émulsions d'accrochage de type ECR 65-0.3 kg/m2",0.8,446000,null,null,"",null,null,"",null,null,"",null,null,"",null,null,"",null,null,"",null,null,"",null,null,"","PF/061/4/2020",0,null,null,null,null,null,null,null,null,null,null,null,null,null,null,null,null,4,2020]
["PF/060/4/2020","2020-04-03","ETS YAMPA ET FRÈRES",8028720,"Ouvert","Fourniture + livraison Béton type C30/37 (350 kg/m3) CPJ-42.5",100.8,67500,null,null,"",null,null,"",null,null,"",null,null,"",null,null,"",null,null,"",null,null,"",null,null,"","PF/060/4/2020",0,null,null,null,null,null,null,null,null,null,null,null,null,null,null,null,null,4,2020]
["PF/059/4/2020","2020-04-02","CECO CI ",3624695.2080000001,"Ouvert","Fourniture d'émulsions d'accrochage de type ECR65 - 0.3 Kg/m2",6,538908,null,null,"",null,null,"",null,null,"",null,null,"",null,null,"",null,null,"",null,null,"",null,null,"","PF/059/4/2020",0.05,null,null,null,null,null,null,null,null,null,null,null,null,null,null,null,null,4,2020]
["PF/058/4/2020","2020-04-01","AGEROUTE-CCPH",7198000,"Ouvert","Fourniture d'enrobés type BB 0/10",100,61000,null,null,"",null,null,"",null,null,"",null,null,"",null,null,"",null,null,"",null,null,"",null,null,"","PF/058/4/2020",0,null,null,null,null,null,null,null,null,null,null,null,null,null,null,null,null,4,2020]
["PF/057/3/2020","2020-03-23","SOGETD",1451400,"Ouvert","Fourniture + livraison Béton type C30/37 (350 kg/m3) CPA-42.5",15,82000,null,null,"",null,null,"",null,null,"",null,null,"",null,null,"",null,null,"",null,null,"",null,null,"","PF/057/3/2020",0,null,null,null,null,null,null,null,null,null,null,null,null,null,null,null,null,3,2020]
["PF/055/3/2020","2020-03-22","SETCO",19352000,"Ouvert","Fourniture + livraison Béton type C30/37 (350 kg/m3) CPA-42.5",200,82000,null,null,"",null,null,"",null,null,"",null,null,"",null,null,"",null,null,"",null,null,"",null,null,"","PF/055/3/2020",0,null,null,null,null,null,null,null,null,null,null,null,null,null,null,null,null,3,2020]
["PF/054/3/2020","2020-03-22","SNF_SARL (SOCIETE NDAOU ET FRERE)",3982500,"Ouvert","Fourniture + livraison Béton type C30/37 (350 kg/m3) CPJ-42.5",50,67500,null,null,"",null,null,"",null,null,"",null,null,"",null,null,"",null,null,"",null,null,"",null,null,"","PF/054/3/2020",0,null,null,null,null,null,null,null,null,null,null,null,null,null,null,null,null,3,2020]
["PF/053/3/2020","2020-03-22","BENEOUA-TP",3567877.5,"Ouvert","Fourniture + livraison Béton type C30/37 (350 kg/m3) CPJ-42.5",32.35,67500,"Fourniture + livraison Béton type C35/45 (390 kg/m3) CPJ-42.5",9,72000,"Fourniture + livraison Béton type C25/30 (330 kg/m3) CPJ-42.5",3,64000,null,null,"",null,null,"",null,null,"",null,null,"",null,null,"",null,null,"","PF/053/3/2020",0,null,null,null,null,null,null,null,null,null,null,null,null,null,null,null,null,3,2020]
["PF/052/3/2020","2020-03-22","ACTIBAT-TP",51772500,"Ouvert","Fourniture + livraison Béton type C30/37 (350 kg/m3) CPJ-42.5",650,67500,null,null,"",null,null,"",null,null,"",null,null,"",null,null,"",null,null,"",null,null,"",null,null,"","PF/052/3/2020",0,null,null,null,null,null,null,null,null,null,null,null,null,null,null,null,null,3,2020]
["PF/051/3/2020","2020-03-20","ACTIBAT-TP",3451500,"Ouvert","Fourniture + livraison Béton type C30/37 (350 kg/m3)-CPJ42.5",45,65000,null,null,"",null,null,"",null,null,"",null,null,"",null,null,"",null,null,"",null,null,"",null,null,"","PF/051/3/2020",0,null,null,null,null,null,null,null,null,null,null,null,null,null,null,null,null,3,2020]
["PF/050/3/2020","2020-03-19","AGEROUTE  ",7198000,"Ouvert","Fourniture d'enrobés type BB 0/10",100,61000,null,null,"",null,null,"",null,null,"",null,null,"",null,null,"",null,null,"",null,null,"",null,null,"","PF/050/3/2020",0,null,null,null,null,null,null,null,null,null,null,null,null,null,null,null,null,3,2020]
["PF/049/3/2020","2020-03-16","SOTASERV-CI",139240000,"Ouvert","Fourniture de béton Caniveaux de type CPJ-42.5/330kg - C25/30 ",2000,59000,null,null,"",null,null,"",null,null,"",null,null,"",null,null,"",null,null,"",null,null,"",null,null,"","PF/049/3/2020",0,null,null,null,null,null,null,null,null,null,null,null,null,null,null,null,null,3,2020]
["PF/048/3/2020","2020-03-16","CHANTIER SARL",11299680,"Ouvert","Fourniture de béton de type CPA-42.5/400kg/m3 - C45/55 ",126,76000,null,null,"",null,null,"",null,null,"",null,null,"",null,null,"",null,null,"",null,null,"",null,null,"","PF/048/3/2020",0]
["PF/047/3/2020","2020-03-12","SODISTRA",23013902.259999998,"Ouvert","Fourniture d'enrobés type BB 010",300,59500,"Fourniture d'émulsions d'impregnation de type I55",2.7,506155,"Fourniture d'émulsions d'accrochage de type ECR 65",0.7,409555,null,null,"",null,null,"",null,null,"",null,null,"",null,null,"",null,null,"","PF/047/3/2020",0]
["PF/046/3/2020","2020-03-11","ADDOHA",8674652,"Ouvert","Fourniture d'enrobés type BB 010",112,59500,"Fourniture d'émulsions d'imprégnation de type I55–1.2 kg/m2",1,509000,"Fourniture d'émulsions d'accrochage de type ECR 65-0.3 kg/m2",0.4,446000,null,null,"",null,null,"",null,null,"",null,null,"",null,null,"",null,null,"","PF/046/3/2020",0]
["PF/045/3/2020","2020-03-11","IMMOBILIARE",30710055.779999997,"Ouvert","Fourniture d'enrobés type BB 010",400,59500,"Fourniture d'émulsions d'imprégnation de type I55–1.2 kg/m2",5,509000,"Fourniture d'émulsions d'accrochage de type ECR 65-0.3 kg/m2",1.4,446000,null,null,"",null,null,"",null,null,"",null,null,"",null,null,"",null,null,"","PF/045/3/2020",3.5000000000000003E-2]
["PF/044/3/2020","2020-03-11","JUST HUSS",2384961.6315000001,"Ouvert","Fourniture d'émulsions d'accrochage de type ECR 65",5,409555,null,null,"",null,null,"",null,null,"",null,null,"",null,null,"",null,null,"",null,null,"",null,null,"","PF/044/3/2020",1.2999999999999999E-2]
["PF/043/3/2020","2020-03-09","ITA (INGENERIE ET TRAVAUX AKOUTROU)",23302050,"Ouvert","Fourniture + livraison Béton type C12/15 (150 kg/m3) CPJ-42.5",95,52500,"Fourniture + livraison Béton type C30/37 (350 kg/m3) CPA-42.5",180,82000,null,null,null,null,null,null,null,null,null,null,null,null,null,null,null,null,null,null,null,null,null,"PF/043/3/2020",0]
["PF/042/3/2020","2020-03-04","JUST HUSS",29999999.999999978,"Ouvert","Fourniture d'enrobés type BB 010",427.28955989175302,59500,null,null,"",null,null,"",null,null,"",null,null,"",null,null,"",null,null,"",null,null,"",null,null,"","PF/042/3/2020",0]
["PF/041/3/2020","2020-03-03","BANIBAH",61951180,"Ouvert","Fourniture d'enrobés type BB 0-10",852,60500,"Fourniture d'émulsions d'imprégnation de type I55–1.2 kg/m2",1,509000,"Fourniture d'émulsions d'accrochage de type ECR 65-0.3 kg/m2",1,446000,null,null,"",null,null,"",null,null,"",null,null,"",null,null,"",null,null,"","PF/041/3/2020",0,null,null,null,null,null,null,null,null,null,null,null,null,null,null,null,null,3,2020]
["PF/040/2/2020","2020-02-28","YEO SIKATA",287920,"Ouvert","Fourniture d'enrobés type BB 0/10",4,61000,null,null,"",null,null,"",null,null,"",null,null,"",null,null,"",null,null,"",null,null,"",null,null,"","PF/040/2/2020",0,null,null,null,null,null,null,null,null,null,null,null,null,null,null,null,null,2,2020]
["PF/038/2/2020","2020-02-21","CETP SARL  ",8776250,"Ouvert","Fourniture d'enrobés type BB 010",125,59500,null,null,"",null,null,"",null,null,"",null,null,"",null,null,"",null,null,"",null,null,"",null,null,"","PF/038/2/2020",0,null,null,null,null,null,null,null,null,null,null,null,null,null,null,null,null,2,2020]
["PF/037/2/2020","2020-02-21","EMEB CI  ",8425200,"Ouvert","Fourniture d'enrobés type BB 010",120,59500,null,null,"",null,null,"",null,null,"",null,null,"",null,null,"",null,null,"",null,null,"",null,null,"","PF/037/2/2020",0,null,null,null,null,null,null,null,null,null,null,null,null,null,null,null,null,2,2020]
["PF/036/2/2020","2020-02-21","AIC (AFRIQUE INDUSTRIE CAJOU)",5257663.932,"Ouvert","Fourniture d'enrobés type BBSG 0/14",79,60000,null,null,"",null,null,"",null,null,"",null,null,"",null,null,"",null,null,"",null,null,"",null,null,"","PF/036/2/2020",5.9990000000000002E-2,null,null,null,null,null,null,null,null,null,null,null,null,null,null,null,null,2,2020]
["PF/035/2/2020","2020-02-21","BANIBAH",2855600,"Ouvert","Fourniture d'enrobés type BB 0-10",40,60500,null,null,"",null,null,"",null,null,"",null,null,"",null,null,"",null,null,"",null,null,"",null,null,"","PF/035/2/2020",0,null,null,null,null,null,null,null,null,null,null,null,null,null,null,null,null,2,2020]
["PF/034/2/2020","2020-02-21","DZ ENTREPRISE ",38326796.479999997,"Ouvert","Fourniture d'enrobés type BB 010",560,59500,null,null,"",null,null,"",null,null,"",null,null,"",null,null,"",null,null,"",null,null,"",null,null,"","PF/034/2/2020",2.52E-2,null,null,null,null,null,null,null,null,null,null,null,null,null,null,null,null,2,2020]
["PF/033/2/2020","2020-02-21","DZ ENTREPRISE ",13688141.6,"Ouvert","Fourniture d'enrobés type BB 010",200,59500,null,null,"",null,null,"",null,null,"",null,null,"",null,null,"",null,null,"",null,null,"",null,null,"","PF/033/2/2020",2.52E-2,null,null,null,null,null,null,null,null,null,null,null,null,null,null,null,null,2,2020]
["PF/032/2/2020","2020-02-20","ARTEMIS",78867264.700000003,"Ouvert","Fourniture d'enrobés type BB 010",1000,59500,"Fourniture d'émulsions d'imprégnation de type I55–1.2 kg/m2",12,509000,"Fourniture d'émulsions d'accrochage de type ECR 65",3,409555,null,null,"",null,null,"",null,null,"",null,null,"",null,null,"",null,null,"","PF/032/2/2020",0,null,null,null,null,null,null,null,null,null,null,null,null,null,null,null,null,2,2020]
["PF/031/2/2020","2020-02-19","AGEROUTE  ",7198000,"Ouvert","Fourniture d'enrobés type BB 0/10",100,61000,null,null,"",null,null,"",null,null,"",null,null,"",null,null,"",null,null,"",null,null,"",null,null,"","PF/031/2/2020",0,null,null,null,null,null,null,null,null,null,null,null,null,null,null,null,null,2,2020]
["PF/030/2/2020","2020-02-19","EMEB CI  ",7372050,"Ouvert","Fourniture d'enrobés type BB 010",105,59500,null,null,"",null,null,"",null,null,"",null,null,"",null,null,"",null,null,"",null,null,"",null,null,"","PF/030/2/2020",0,null,null,null,null,null,null,null,null,null,null,null,null,null,null,null,null,2,2020]
["PF/029/2/2020","2020-02-19","EL AMINE",2106300,"Ouvert","Fourniture d'enrobés type BB 010",30,59500,null,null,"",null,null,"",null,null,"",null,null,"",null,null,"",null,null,"",null,null,"",null,null,"","PF/029/2/2020",0,null,null,null,null,null,null,null,null,null,null,null,null,null,null,null,null,2,2020]
["PF/028/2/2020","2020-02-18","AIC (AFRIQUE INDUSTRIE CAJOU)",11938154.399999999,"Ouvert","Fourniture d'enrobés type BBSG 0/14",179,60000,null,null,"",null,null,"",null,null,"",null,null,"",null,null,"",null,null,"",null,null,"",null,null,"","PF/028/2/2020",5.8000000000000003E-2,null,null,null,null,null,null,null,null,null,null,null,null,null,null,null,null,2,2020]
["PF/027/2/2020","2020-02-18","S3I",2926990,"Ouvert","Fourniture d'enrobés type BB 0-10",41,60500,null,null,"",null,null,"",null,null,"",null,null,"",null,null,"",null,null,"",null,null,"",null,null,"","PF/027/2/2020",0,null,null,null,null,null,null,null,null,null,null,null,null,null,null,null,null,{"$f":"MONTH(B253)","v":2},{"$f":"YEAR(B253)","v":2020}]
["PF/026/2/2020","2020-02-13","DZ ENTREPRISE ",36554824.699999996,"Ouvert","Fourniture d'enrobés type BB 010",500,59500,"Fourniture d'émulsions d'accrochage de type ECR 65",3,409555,null,null,"",null,null,"",null,null,"",null,null,"",null,null,"",null,null,"",null,null,"","PF/026/2/2020",0,null,null,null,null,null,null,null,null,null,null,null,null,null,null,null,null,2,2020]
["PF/025/2/2020","2020-02-13","AEBI",4328632.3499999996,"Ouvert","Fourniture d'émulsions d'imprégnation de type I55–1.2 kg/m2",6,509000,"Fourniture d'émulsions d'accrochage de type ECR 65",1.5,409555,null,null,"",null,null,"",null,null,"",null,null,"",null,null,"",null,null,"",null,null,"","PF/025/2/2020",0,null,null,null,null,null,null,null,null,null,null,null,null,null,null,null,null,2,2020]
["PF/024/2/2020","2020-02-13","AEBI",33700800,"Ouvert","Fourniture d'enrobés type BB 010",480,59500,null,null,"",null,null,"",null,null,"",null,null,"",null,null,"",null,null,"",null,null,"",null,null,"","PF/024/2/2020",0,null,null,null,null,null,null,null,null,null,null,null,null,null,null,null,null,2,2020]
["PF/023/2/2020","2020-02-10","SODISTRA",77212848.649999991,"Ouvert","Fourniture d'enrobés type BB 010",1000,59500,"Fourniture d'émulsions d'impregnation de type I55",8.5,506155,"Fourniture d'émulsions d'accrochage de type ECR 60",4,408075,null,null,"",null,null,"",null,null,"",null,null,"",null,null,"",null,null,"","PF/023/2/2020",0,null,null,null,null,null,null,null,null,null,null,null,null,null,null,null,null,2,2020]
["PF/022/2/2020","2020-02-06","EMEB CI  ",75611745.295000002,"Ouvert","Fourniture d'enrobés type BB 010",330,59500,"Fourniture d'enrobés type GB 0/14 ",770,55000,"Fourniture d'émulsions d'accrochage de type ECR 65",1.25,409555,"Fourniture d'émulsions de type ECR ECM60",3.7,427245,null,null,"",null,null,"",null,null,"",null,null,"",null,null,"","PF/022/2/2020",0,null,null,null,null,null,null,null,null,null,null,null,null,null,null,null,null,2,2020]
["PF/021/2/2020","2020-02-06","ETS MSSZ (ETABLISSEMENT MULTI-SERVICE SORO ZIE)",1026793450.8047999,"Ouvert","Fourniture d'enrobés type BB 010",14000,59500,"Fourniture d'émulsions d'impregnation de type I55",66,506155,"Fourniture d'émulsions d'accrochage de type ECR 65",22,409555,null,null,"",null,null,"",null,null,"",null,null,"",null,null,"",null,null,"","PF/021/2/2020",6.0000000000000001E-3,null,null,null,null,null,null,null,null,null,null,null,null,null,null,null,null,2,2020]
["PF/020/1/2020","2020-01-31","GBEDAHI ESSAI",23220769.239999998,"Ouvert","Fourniture d'enrobés type BB 0/6",15,64500,"Fourniture d'émulsions d'imprégnation de type I55 – 1.2 kg/m2",34,550327,null,null,"",null,null,"",null,null,"",null,null,"",null,null,"",null,null,"",null,null,"","PF/020/1/2020",0,null,null,null,null,null,null,null,null,null,null,null,null,null,null,null,null,1,2020]
["PF/018/1/2020","2020-01-31","COPARES",36791116.75,"Ouvert","Fourniture d'enrobés type BB 010",492,59500,"Fourniture d'émulsions de type ECR ECM60",3.5,427245,"Fourniture d'émulsions d'accrochage de type ECR 65",1,409555,null,null,"",null,null,"",null,null,"",null,null,"",null,null,"",null,null,"","PF/018/1/2020",0,null,null,null,null,null,null,null,null,null,null,null,null,null,null,null,null,1,2020]
["PF/017/1/2020","2020-01-30","CGCI",93690532.079999998,"Ouvert","Fourniture d'enrobés type BB 010",1210,59500,"Fourniture d'émulsions d'impregnation de type I55",12.2,506155,"Fourniture d'émulsions d'accrochage de type ECR 65",3,409555,null,null,"",null,null,"",null,null,"",null,null,"",null,null,"",null,null,"","PF/017/1/2020",0,null,null,null,null,null,null,null,null,null,null,null,null,null,null,null,null,1,2020]
["PF/016/1/2020","2020-01-29","EMEB CI  ",22817659.41,"Ouvert","Fourniture d'enrobés type BB 010",288,59500,"Fourniture d'émulsions d'imprégnation de type I55–1.2 kg/m2",3.6,509000,"Fourniture d'émulsions d'accrochage de type ECR 65",0.9,409555,null,null,"",null,null,"",null,null,"",null,null,"",null,null,"",null,null,"","PF/016/1/2020",0,null,null,null,null,null,null,null,null,null,null,null,null,null,null,null,null,1,2020]
["PF/015/1/2020","2020-01-28","ENTREPRISE ETTY SARL",1062000,"Ouvert","Fourniture d'enrobés type BB 0-10",15,60000,null,null,"",null,null,"",null,null,"",null,null,"",null,null,"",null,null,"",null,null,"",null,null,"","PF/015/1/2020",0,null,null,null,null,null,null,null,null,null,null,null,null,null,null,null,null,1,2020]
["PF/014/1/2020","2020-01-27","ERO INTER SARL",85854263,"Ouvert","Fourniture d'enrobés type BB 010",1141,59500,"Fourniture d'émulsions d'accrochage de type ECR 65",2,409555,"Fourniture d'émulsions d'impregnation de type I55",8,506155,null,null,"",null,null,"",null,null,"",null,null,"",null,null,"",null,null,"","PF/014/1/2020",0,null,null,null,null,null,null,null,null,null,null,null,null,null,null,null,null,1,2020]
["PF/013/1/2020","2020-01-27","Mr Edouard Mamadou",77231000,"Ouvert","Fourniture d'enrobés type BB 010",1100,59500,null,null,"",null,null,"",null,null,"",null,null,"",null,null,"",null,null,"",null,null,"",null,null,"","PF/013/1/2020",0,null,null,null,null,null,null,null,null,null,null,null,null,null,null,null,null,1,2020]
["PF/012/1/2020","2020-01-27","AGEROUTE  ",7198000,"Ouvert","Fourniture d'enrobés type BB 0/10",100,61000,null,null,"",null,null,"",null,null,"",null,null,"",null,null,"",null,null,"",null,null,"",null,null,"","PF/012/1/2020",0,null,null,null,null,null,null,null,null,null,null,null,null,null,null,null,null,1,2020]
["PF/011/1/2020","2020-01-27","LRA  ",25736950.5,"Ouvert","Fourniture d'émulsions d'impregnation de type I55",35,506155,"Fourniture d'émulsions d'accrochage de type ECR 65",10,409555,null,null,"",null,null,"",null,null,"",null,null,"",null,null,"",null,null,"",null,null,"","PF/011/1/2020",0,null,null,null,null,null,null,null,null,null,null,null,null,null,null,null,null,1,2020]
["PF/010/1/2020","2020-01-26","LRA  ",176351000,"Ouvert","Fourniture d'enrobés type BB 0/10",2500,61000,null,null,"",null,null,"",null,null,"",null,null,"",null,null,"",null,null,"",null,null,"",null,null,"","PF/010/1/2020",0.02,null,null,null,null,null,null,null,null,null,null,null,null,null,null,null,null,1,2020]
["PF/009/1/2020","2020-01-26","ITA (INGENERIE ET TRAVAUX AKOUTROU)",2478000,"Ouvert","Fourniture d'enrobés type BB 0-10",35,60000,null,null,"",null,null,"",null,null,"",null,null,"",null,null,"",null,null,"",null,null,"",null,null,"","PF/009/1/2020",0,null,null,null,null,null,null,null,null,null,null,null,null,null,null,null,null,1,2020]
["PF/008/1/2020","2020-01-24","SODISTRA",168915330.29999998,"Ouvert","Fourniture d'enrobés type BB 010",2200,59500,"Fourniture d'émulsions d'accrochage de type ECR 65",8,409555,"Fourniture d'émulsions de type ECR ECM60",21,427245,null,null,"",null,null,"",null,null,"",null,null,"",null,null,"",null,null,"","PF/008/1/2020",0,null,null,null,null,null,null,null,null,null,null,null,null,null,null,null,null,1,2020]
["PF/007/1/2020","2020-01-20","IMMOBILIARE",158611901.88,"Ouvert","Fourniture d'enrobés type BB 0/10",1855,58000,"Fourniture d'émulsions d'accrochage de type ECR 65",22,409555,"Fourniture d'émulsions d'impregnation de type I55",35.200000000000003,506155,null,null,null,null,null,null,null,null,null,null,null,null,null,null,null,null,null,null,"PF/007/1/2020",0,null,null,null,null,null,null,null,null,null,null,null,null,null,null,null,null,1,2020]
["PF/006/1/2020","2020-01-20","IMMOBILIARE",161895251.88,"Ouvert","Fourniture d'enrobés type BB 010",1855,59500,"Fourniture d'émulsions d'impregnation de type I55",35.200000000000003,506155,"Fourniture d'émulsions d'accrochage de type ECR 65",22,409555,null,null,"",null,null,"",null,null,"",null,null,"",null,null,"",null,null,"","PF/006/1/2020",0,null,null,null,null,null,null,null,null,null,null,null,null,null,null,null,null,1,2020]
["PF/005/1/2020","2020-01-16","S3I",863760,"Ouvert","Fourniture d'enrobés type BB 0/10",12,61000,null,null,"",null,null,"",null,null,"",null,null,"",null,null,"",null,null,"",null,null,"",null,null,"","PF/005/1/2020",0,null,null,null,null,null,null,null,null,null,null,null,null,null,null,null,null,1,2020]
["PF/004/1/2020","2020-01-16","CCCC-CHEC",5133542682,"Ouvert","Fourniture d'enrobés type BB0/10",23340,57000,"Fourniture d'enrobés type GB0/14",46680,56000,"Fourniture d'enrobés type sans asphalt",3588,62000,"Fourniture d'émulsions d'imprégnation de type I55–1.2 kg/m2",295.8,509000,"Fourniture d'émulsions d'accrochage de type ECR 65-0.3 kg/m2",73.95,446000,null,null,"",null,null,"",null,null,"",null,null,"","PF/004/1/2020",0,null,null,null,null,null,null,null,null,null,null,null,null,null,null,null,null,1,2020]
["PF/003/1/2020","2020-01-16","BANIBAH",215940,"Ouvert","Fourniture d'enrobés type BB 0/10",3,61000,null,null,"",null,null,"",null,null,"",null,null,"",null,null,"",null,null,"",null,null,"",null,null,"","PF/003/1/2020",0,null,null,null,null,null,null,null,null,null,null,null,null,null,null,null,null,1,2020]
["PF/002/1/2020","2020-01-14","AGEROUTE-CCPH",7198000,"Ouvert","Fourniture d'enrobés type BB 0/10",100,61000,null,null,"",null,null,"",null,null,"",null,null,"",null,null,"",null,null,"",null,null,"",null,null,"","PF/002/1/2020",0.05,null,null,null,null,null,null,null,null,null,null,null,null,null,null,null,null,1,2020]
["PF/001/1/2020","2020-01-14","ADDOHA",58841491,"Ouvert","Fourniture d'enrobés type BB 0/10",90,61000,"Fourniture d'enrobés type BB 0/10 SP",789,61000,null,null,"",null,null,"",null,null,"",null,null,"",null,null,"",null,null,"",null,null,"","PF/001/1/2020",4.4999999999999998E-2,null,null,null,null,null,null,null,null,null,null,null,null,null,null,null,null,1,2020]
["PF//1/2020","2020-01-14","3CB",3509320,"Ouvert","Fourniture d'enrobés type BB 0/10",25,61000,"Fourniture de béton Dalots et Ponts de type CPA-42.5/250kg avec la livraison sur site",23,63000,null,null,"",null,null,"",null,null,"",null,null,"",null,null,"",null,null,"",null,null,"","PF//1/2020",0,null,null,null,null,null,null,null,null,null,null,null,null,null,null,null,null,1,2020]
[null,null,null,null,null,null,null,null,null,null,null,null,null,null,null,null,null,null,null,null,null,null,null,null,null,null,null,null,null,null,null,null,0,null,null,null,null,null,null,null,null,null,null,null,null,null,null,null,null,null,1,1900]
[null,null,null,null,null,null,null,null,null,null,null,null,null,null,null,null,null,null,null,null,null,null,null,null,null,null,null,null,null,null,null,null,0,null,null,null,null,null,null,null,null,null,null,null,null,null,null,null,null,null,1,1900]
[null,null,null,null,null,null,null,null,null,null,null,null,null,null,null,null,null,null,null,null,null,null,null,null,null,null,null,null,null,null,null,null,0,null,null,null,null,null,null,null,null,null,null,null,null,null,null,null,null,null,1,1900]
[null,null,null,null,null,null,null,null,null,null,null,null,null,null,null,null,null,null,null,null,null,null,null,null,null,null,null,null,null,null,null,null,0,null,null,null,null,null,null,null,null,null,null,null,null,null,null,null,null,null,1,1900]
[null,null,null,null,null,null,null,null,null,null,null,null,null,null,null,null,null,null,null,null,null,null,null,null,null,null,null,null,null,null,null,null,0,null,null,null,null,null,null,null,null,null,null,null,null,null,null,null,null,null,1,1900]
[null,null,null,null,null,null,null,null,null,null,null,null,null,null,null,null,null,null,null,null,null,null,null,null,null,null,null,null,null,null,null,null,0,null,null,null,null,null,null,null,null,null,null,null,null,null,null,null,null,null,1,1900]
[null,null,null,null,null,null,null,null,null,null,null,null,null,null,null,null,null,null,null,null,null,null,null,null,null,null,null,null,null,null,null,null,0,null,null,null,null,null,null,null,null,null,null,null,null,null,null,null,null,null,1,1900]
[null,null,null,null,null,null,null,null,null,null,null,null,null,null,null,null,null,null,null,null,null,null,null,null,null,null,null,null,null,null,null,null,0,null,null,null,null,null,null,null,null,null,null,null,null,null,null,null,null,null,1,1900]
[null,null,null,null,null,null,null,null,null,null,null,null,null,null,null,null,null,null,null,null,null,null,null,null,null,null,null,null,null,null,null,null,0,null,null,null,null,null,null,null,null,null,null,null,null,null,null,null,null,null,1,1900]
[null,null,null,null,null,null,null,null,null,null,null,null,null,null,null,null,null,null,null,null,null,null,null,null,null,null,null,null,null,null,null,null,0,null,null,null,null,null,null,null,null,null,null,null,null,null,null,null,null,null,1,1900]
[null,null,null,null,null,null,null,null,null,null,null,null,null,null,null,null,null,null,null,null,null,null,null,null,null,null,null,null,null,null,null,null,0,null,null,null,null,null,null,null,null,null,null,null,null,null,null,null,null,null,1,1900]
[null,null,null,null,null,null,null,null,null,null,null,null,null,null,null,null,null,null,null,null,null,null,null,null,null,null,null,null,null,null,null,null,0,null,null,null,null,null,null,null,null,null,null,null,null,null,null,null,null,null,1,1900]
[null,null,null,null,null,null,null,null,null,null,null,null,null,null,null,null,null,null,null,null,null,null,null,null,null,null,null,null,null,null,null,null,0,null,null,null,null,null,null,null,null,null,null,null,null,null,null,null,null,null,1,1900]
[null,null,null,null,null,null,null,null,null,null,null,null,null,null,null,null,null,null,null,null,null,null,null,null,null,null,null,null,null,null,null,null,0,null,null,null,null,null,null,null,null,null,null,null,null,null,null,null,null,null,1,1900]
[null,null,null,null,null,null,null,null,null,null,null,null,null,null,null,null,null,null,null,null,null,null,null,null,null,null,null,null,null,null,null,null,0,null,null,null,null,null,null,null,null,null,null,null,null,null,null,null,null,null,1,1900]
[null,null,null,null,null,null,null,null,null,null,null,null,null,null,null,null,null,null,null,null,null,null,null,null,null,null,null,null,null,null,null,null,0,null,null,null,null,null,null,null,null,null,null,null,null,null,null,null,null,null,1,1900]
[null,null,null,null,null,null,null,null,null,null,null,null,null,null,null,null,null,null,null,null,null,null,null,null,null,null,null,null,null,null,null,null,0,null,null,null,null,null,null,null,null,null,null,null,null,null,null,null,null,null,1,1900]
[null,null,null,null,null,null,null,null,null,null,null,null,null,null,null,null,null,null,null,null,null,null,null,null,null,null,null,null,null,null,null,null,0,null,null,null,null,null,null,null,null,null,null,null,null,null,null,null,null,null,1,1900]
[null,null,null,null,null,null,null,null,null,null,null,null,null,null,null,null,null,null,null,null,null,null,null,null,null,null,null,null,null,null,null,null,0,null,null,null,null,null,null,null,null,null,null,null,null,null,null,null,null,null,1,1900]
[null,null,null,null,null,null,null,null,null,null,null,null,null,null,null,null,null,null,null,null,null,null,null,null,null,null,null,null,null,null,null,null,0,null,null,null,null,null,null,null,null,null,null,null,null,null,null,null,null,null,1,1900]
[null,null,null,null,null,null,null,null,null,null,null,null,null,null,null,null,null,null,null,null,null,null,null,null,null,null,null,null,null,null,null,null,0,null,null,null,null,null,null,null,null,null,null,null,null,null,null,null,null,null,1,1900]
[null,null,null,null,null,null,null,null,null,null,null,null,null,null,null,null,null,null,null,null,null,null,null,null,null,null,null,null,null,null,null,null,0,null,null,null,null,null,null,null,null,null,null,null,null,null,null,null,null,null,1,1900]
[null,null,null,null,null,null,null,null,null,null,null,null,null,null,null,null,null,null,null,null,null,null,null,null,null,null,null,null,null,null,null,null,0,null,null,null,null,null,null,null,null,null,null,null,null,null,null,null,null,null,1,1900]
[null,null,null,null,null,null,null,null,null,null,null,null,null,null,null,null,null,null,null,null,null,null,null,null,null,null,null,null,null,null,null,null,0,null,null,null,null,null,null,null,null,null,null,null,null,null,null,null,null,null,1,1900]
[null,null,null,null,null,null,null,null,null,null,null,null,null,null,null,null,null,null,null,null,null,null,null,null,null,null,null,null,null,null,null,null,0,null,null,null,null,null,null,null,null,null,null,null,null,null,null,null,null,null,1,1900]
[null,null,null,null,null,null,null,null,null,null,null,null,null,null,null,null,null,null,null,null,null,null,null,null,null,null,null,null,null,null,null,null,0,null,null,null,null,null,null,null,null,null,null,null,null,null,null,null,null,null,1,1900]
[null,null,null,null,null,null,null,null,null,null,null,null,null,null,null,null,null,null,null,null,null,null,null,null,null,null,null,null,null,null,null,null,0,null,null,null,null,null,null,null,null,null,null,null,null,null,null,null,null,null,1,1900]
[null,null,null,null,null,null,null,null,null,null,null,null,null,null,null,null,null,null,null,null,null,null,null,null,null,null,null,null,null,null,null,null,0,null,null,null,null,null,null,null,null,null,null,null,null,null,null,null,null,null,1,1900]
[null,null,null,null,null,null,null,null,null,null,null,null,null,null,null,null,null,null,null,null,null,null,null,null,null,null,null,null,null,null,null,null,0,null,null,null,null,null,null,null,null,null,null,null,null,null,null,null,null,null,1,1900]
[null,null,null,null,null,null,null,null,null,null,null,null,null,null,null,null,null,null,null,null,null,null,null,null,null,null,null,null,null,null,null,null,0,null,null,null,null,null,null,null,null,null,null,null,null,null,null,null,null,null,1,1900]
[null,null,null,null,null,null,null,null,null,null,null,null,null,null,null,null,null,null,null,null,null,null,null,null,null,null,null,null,null,null,null,null,0,null,null,null,null,null,null,null,null,null,null,null,null,null,null,null,null,null,1,1900]
[null,null,null,null,null,null,null,null,null,null,null,null,null,null,null,null,null,null,null,null,null,null,null,null,null,null,null,null,null,null,null,null,0,null,null,null,null,null,null,null,null,null,null,null,null,null,null,null,null,null,1,1900]
[null,null,null,null,null,null,null,null,null,null,null,null,null,null,null,null,null,null,null,null,null,null,null,null,null,null,null,null,null,null,null,null,0,null,null,null,null,null,null,null,null,null,null,null,null,null,null,null,null,null,1,1900]
[null,null,null,null,null,null,null,null,null,null,null,null,null,null,null,null,null,null,null,null,null,null,null,null,null,null,null,null,null,null,null,null,0,null,null,null,null,null,null,null,null,null,null,null,null,null,null,null,null,null,1,1900]
[null,null,null,null,null,null,null,null,null,null,null,null,null,null,null,null,null,null,null,null,null,null,null,null,null,null,null,null,null,null,null,null,0,null,null,null,null,null,null,null,null,null,null,null,null,null,null,null,null,null,{"$f":"MONTH(B314)","v":1},{"$f":"YEAR(B314)","v":1900}]
[null,null,null,null,null,null,null,null,null,null,null,null,null,null,null,null,null,null,null,null,null,null,null,null,null,null,null,null,null,null,null,null,0,null,null,null,null,null,null,null,null,null,null,null,null,null,null,null,null,null,1,1900]
[null,null,null,null,null,null,null,null,null,null,null,null,null,null,null,null,null,null,null,null,null,null,null,null,null,null,null,null,null,null,null,null,0,null,null,null,null,null,null,null,null,null,null,null,null,null,null,null,null,null,1,1900]
[null,null,null,null,null,null,null,null,null,null,null,null,null,null,null,null,null,null,null,null,null,null,null,null,null,null,null,null,null,null,null,null,0,null,null,null,null,null,null,null,null,null,null,null,null,null,null,null,null,null,1,1900]
[null,null,null,null,null,null,null,null,null,null,null,null,null,null,null,null,null,null,null,null,null,null,null,null,null,null,null,null,null,null,null,null,0,null,null,null,null,null,null,null,null,null,null,null,null,null,null,null,null,null,1,1900]
[null,null,null,null,null,null,null,null,null,null,null,null,null,null,null,null,null,null,null,null,null,null,null,null,null,null,null,null,null,null,null,null,0,null,null,null,null,null,null,null,null,null,null,null,null,null,null,null,null,null,1,1900]
[null,null,null,null,null,null,null,null,null,null,null,null,null,null,null,null,null,null,null,null,null,null,null,null,null,null,null,null,null,null,null,null,0,null,null,null,null,null,null,null,null,null,null,null,null,null,null,null,null,null,1,1900]
[null,null,null,null,null,null,null,null,null,null,null,null,null,null,null,null,null,null,null,null,null,null,null,null,null,null,null,null,null,null,null,null,0,null,null,null,null,null,null,null,null,null,null,null,null,null,null,null,null,null,1,1900]
[null,null,null,null,null,null,null,null,null,null,null,null,null,null,null,null,null,null,null,null,null,null,null,null,null,null,null,null,null,null,null,null,0,null,null,null,null,null,null,null,null,null,null,null,null,null,null,null,null,null,1,1900]
[null,null,null,null,null,null,null,null,null,null,null,null,null,null,null,null,null,null,null,null,null,null,null,null,null,null,null,null,null,null,null,null,0,null,null,null,null,null,null,null,null,null,null,null,null,null,null,null,null,null,1,1900]
[null,null,null,null,null,null,null,null,null,null,null,null,null,null,null,null,null,null,null,null,null,null,null,null,null,null,null,null,null,null,null,null,0,null,null,null,null,null,null,null,null,null,null,null,null,null,null,null,null,null,1,1900]
[null,null,null,null,null,null,null,null,null,null,null,null,null,null,null,null,null,null,null,null,null,null,null,null,null,null,null,null,null,null,null,null,0,null,null,null,null,null,null,null,null,null,null,null,null,null,null,null,null,null,1,1900]
[null,null,null,null,null,null,null,null,null,null,null,null,null,null,null,null,null,null,null,null,null,null,null,null,null,null,null,null,null,null,null,null,0,null,null,null,null,null,null,null,null,null,null,null,null,null,null,null,null,null,1,1900]
[null,null,null,null,null,null,null,null,null,null,null,null,null,null,null,null,null,null,null,null,null,null,null,null,null,null,null,null,null,null,null,null,0,null,null,null,null,null,null,null,null,null,null,null,null,null,null,null,null,null,1,1900]
[null,null,null,null,null,null,null,null,null,null,null,null,null,null,null,null,null,null,null,null,null,null,null,null,null,null,null,null,null,null,null,null,0,null,null,null,null,null,null,null,null,null,null,null,null,null,null,null,null,null,1,1900]
[null,null,null,null,null,null,null,null,null,null,null,null,null,null,null,null,null,null,null,null,null,null,null,null,null,null,null,null,null,null,null,null,0,null,null,null,null,null,null,null,null,null,null,null,null,null,null,null,null,null,1,1900]
[null,null,null,null,null,null,null,null,null,null,null,null,null,null,null,null,null,null,null,null,null,null,null,null,null,null,null,null,null,null,null,null,0,null,null,null,null,null,null,null,null,null,null,null,null,null,null,null,null,null,1,1900]
[null,null,null,null,null,null,null,null,null,null,null,null,null,null,null,null,null,null,null,null,null,null,null,null,null,null,null,null,null,null,null,null,0,null,null,null,null,null,null,null,null,null,null,null,null,null,null,null,null,null,1,1900]
[null,null,null,null,null,null,null,null,null,null,null,null,null,null,null,null,null,null,null,null,null,null,null,null,null,null,null,null,null,null,null,null,0,null,null,null,null,null,null,null,null,null,null,null,null,null,null,null,null,null,1,1900]
[null,null,null,null,null,null,null,null,null,null,null,null,null,null,null,null,null,null,null,null,null,null,null,null,null,null,null,null,null,null,null,null,0,null,null,null,null,null,null,null,null,null,null,null,null,null,null,null,null,null,1,1900]
[null,null,null,null,null,null,null,null,null,null,null,null,null,null,null,null,null,null,null,null,null,null,null,null,null,null,null,null,null,null,null,null,0,null,null,null,null,null,null,null,null,null,null,null,null,null,null,null,null,null,1,1900]
[null,null,null,null,null,null,null,null,null,null,null,null,null,null,null,null,null,null,null,null,null,null,null,null,null,null,null,null,null,null,null,null,0,null,null,null,null,null,null,null,null,null,null,null,null,null,null,null,null,null,1,1900]
[null,null,null,null,null,null,null,null,null,null,null,null,null,null,null,null,null,null,null,null,null,null,null,null,null,null,null,null,null,null,null,null,0,null,null,null,null,null,null,null,null,null,null,null,null,null,null,null,null,null,1,1900]
[null,null,null,null,null,null,null,null,null,null,null,null,null,null,null,null,null,null,null,null,null,null,null,null,null,null,null,null,null,null,null,null,0,null,null,null,null,null,null,null,null,null,null,null,null,null,null,null,null,null,1,1900]
[null,null,null,null,null,null,null,null,null,null,null,null,null,null,null,null,null,null,null,null,null,null,null,null,null,null,null,null,null,null,null,null,0,null,null,null,null,null,null,null,null,null,null,null,null,null,null,null,null,null,1,1900]
[null,null,null,null,null,null,null,null,null,null,null,null,null,null,null,null,null,null,null,null,null,null,null,null,null,null,null,null,null,null,null,null,0,null,null,null,null,null,null,null,null,null,null,null,null,null,null,null,null,null,1,1900]
[null,null,null,null,null,null,null,null,null,null,null,null,null,null,null,null,null,null,null,null,null,null,null,null,null,null,null,null,null,null,null,null,0,null,null,null,null,null,null,null,null,null,null,null,null,null,null,null,null,null,1,1900]
[null,null,null,null,null,null,null,null,null,null,null,null,null,null,null,null,null,null,null,null,null,null,null,null,null,null,null,null,null,null,null,null,0,null,null,null,null,null,null,null,null,null,null,null,null,null,null,null,null,null,1,1900]
[null,null,null,null,null,null,null,null,null,null,null,null,null,null,null,null,null,null,null,null,null,null,null,null,null,null,null,null,null,null,null,null,0,null,null,null,null,null,null,null,null,null,null,null,null,null,null,null,null,null,1,1900]
[null,null,null,null,null,null,null,null,null,null,null,null,null,null,null,null,null,null,null,null,null,null,null,null,null,null,null,null,null,null,null,null,0,null,null,null,null,null,null,null,null,null,null,null,null,null,null,null,null,null,1,1900]
[null,null,null,null,null,null,null,null,null,null,null,null,null,null,null,null,null,null,null,null,null,null,null,null,null,null,null,null,null,null,null,null,0,null,null,null,null,null,null,null,null,null,null,null,null,null,null,null,null,null,1,1900]
[null,null,null,null,null,null,null,null,null,null,null,null,null,null,null,null,null,null,null,null,null,null,null,null,null,null,null,null,null,null,null,null,0,null,null,null,null,null,null,null,null,null,null,null,null,null,null,null,null,null,1,1900]
[null,null,null,null,null,null,null,null,null,null,null,null,null,null,null,null,null,null,null,null,null,null,null,null,null,null,null,null,null,null,null,null,0,null,null,null,null,null,null,null,null,null,null,null,null,null,null,null,null,null,1,1900]
[null,null,null,null,null,null,null,null,null,null,null,null,null,null,null,null,null,null,null,null,null,null,null,null,null,null,null,null,null,null,null,null,0,null,null,null,null,null,null,null,null,null,null,null,null,null,null,null,null,null,1,1900]
[null,null,null,null,null,null,null,null,null,null,null,null,null,null,null,null,null,null,null,null,null,null,null,null,null,null,null,null,null,null,null,null,0,null,null,null,null,null,null,null,null,null,null,null,null,null,null,null,null,null,1,1900]
[null,null,null,null,null,null,null,null,null,null,null,null,null,null,null,null,null,null,null,null,null,null,null,null,null,null,null,null,null,null,null,null,0,null,null,null,null,null,null,null,null,null,null,null,null,null,null,null,null,null,1,1900]
[null,null,null,null,null,null,null,null,null,null,null,null,null,null,null,null,null,null,null,null,null,null,null,null,null,null,null,null,null,null,null,null,0,null,null,null,null,null,null,null,null,null,null,null,null,null,null,null,null,null,1,1900]
[null,null,null,null,null,null,null,null,null,null,null,null,null,null,null,null,null,null,null,null,null,null,null,null,null,null,null,null,null,null,null,null,0,null,null,null,null,null,null,null,null,null,null,null,null,null,null,null,null,null,1,1900]
[null,null,null,null,null,null,null,null,null,null,null,null,null,null,null,null,null,null,null,null,null,null,null,null,null,null,null,null,null,null,null,null,0,null,null,null,null,null,null,null,null,null,null,null,null,null,null,null,null,null,1,1900]
[null,null,null,null,null,null,null,null,null,null,null,null,null,null,null,null,null,null,null,null,null,null,null,null,null,null,null,null,null,null,null,null,0,null,null,null,null,null,null,null,null,null,null,null,null,null,null,null,null,null,1,1900]
[null,null,null,null,null,null,null,null,null,null,null,null,null,null,null,null,null,null,null,null,null,null,null,null,null,null,null,null,null,null,null,null,0,null,null,null,null,null,null,null,null,null,null,null,null,null,null,null,null,null,1,1900]
[null,null,null,null,null,null,null,null,null,null,null,null,null,null,null,null,null,null,null,null,null,null,null,null,null,null,null,null,null,null,null,null,0,null,null,null,null,null,null,null,null,null,null,null,null,null,null,null,null,null,1,1900]
[null,null,null,null,null,null,null,null,null,null,null,null,null,null,null,null,null,null,null,null,null,null,null,null,null,null,null,null,null,null,null,null,0,null,null,null,null,null,null,null,null,null,null,null,null,null,null,null,null,null,1,1900]
[null,null,null,null,null,null,null,null,null,null,null,null,null,null,null,null,null,null,null,null,null,null,null,null,null,null,null,null,null,null,null,null,0,null,null,null,null,null,null,null,null,null,null,null,null,null,null,null,null,null,1,1900]
[null,null,null,null,null,null,null,null,null,null,null,null,null,null,null,null,null,null,null,null,null,null,null,null,null,null,null,null,null,null,null,null,0,null,null,null,null,null,null,null,null,null,null,null,null,null,null,null,null,null,1,1900]
[null,null,null,null,null,null,null,null,null,null,null,null,null,null,null,null,null,null,null,null,null,null,null,null,null,null,null,null,null,null,null,null,0,null,null,null,null,null,null,null,null,null,null,null,null,null,null,null,null,null,1,1900]
[null,null,null,null,null,null,null,null,null,null,null,null,null,null,null,null,null,null,null,null,null,null,null,null,null,null,null,null,null,null,null,null,0,null,null,null,null,null,null,null,null,null,null,null,null,null,null,null,null,null,1,1900]
[null,null,null,null,null,null,null,null,null,null,null,null,null,null,null,null,null,null,null,null,null,null,null,null,null,null,null,null,null,null,null,null,0,null,null,null,null,null,null,null,null,null,null,null,null,null,null,null,null,null,1,1900]
[null,null,null,null,null,null,null,null,null,null,null,null,null,null,null,null,null,null,null,null,null,null,null,null,null,null,null,null,null,null,null,null,0,null,null,null,null,null,null,null,null,null,null,null,null,null,null,null,null,null,1,1900]
[null,null,null,null,null,null,null,null,null,null,null,null,null,null,null,null,null,null,null,null,null,null,null,null,null,null,null,null,null,null,null,null,0,null,null,null,null,null,null,null,null,null,null,null,null,null,null,null,null,null,1,1900]
[null,null,null,null,null,null,null,null,null,null,null,null,null,null,null,null,null,null,null,null,null,null,null,null,null,null,null,null,null,null,null,null,0,null,null,null,null,null,null,null,null,null,null,null,null,null,null,null,null,null,1,1900]
[null,null,null,null,null,null,null,null,null,null,null,null,null,null,null,null,null,null,null,null,null,null,null,null,null,null,null,null,null,null,null,null,0,null,null,null,null,null,null,null,null,null,null,null,null,null,null,null,null,null,1,1900]
[null,null,null,null,null,null,null,null,null,null,null,null,null,null,null,null,null,null,null,null,null,null,null,null,null,null,null,null,null,null,null,null,0,null,null,null,null,null,null,null,null,null,null,null,null,null,null,null,null,null,1,1900]
[null,null,null,null,null,null,null,null,null,null,null,null,null,null,null,null,null,null,null,null,null,null,null,null,null,null,null,null,null,null,null,null,0,null,null,null,null,null,null,null,null,null,null,null,null,null,null,null,null,null,1,1900]
[null,null,null,null,null,null,null,null,null,null,null,null,null,null,null,null,null,null,null,null,null,null,null,null,null,null,null,null,null,null,null,null,0,null,null,null,null,null,null,null,null,null,null,null,null,null,null,null,null,null,1,1900]
[null,null,null,null,null,null,null,null,null,null,null,null,null,null,null,null,null,null,null,null,null,null,null,null,null,null,null,null,null,null,null,null,0,null,null,null,null,null,null,null,null,null,null,null,null,null,null,null,null,null,1,1900]
[null,null,null,null,null,null,null,null,null,null,null,null,null,null,null,null,null,null,null,null,null,null,null,null,null,null,null,null,null,null,null,null,0,null,null,null,null,null,null,null,null,null,null,null,null,null,null,null,null,null,1,1900]
[null,null,null,null,null,null,null,null,null,null,null,null,null,null,null,null,null,null,null,null,null,null,null,null,null,null,null,null,null,null,null,null,0,null,null,null,null,null,null,null,null,null,null,null,null,null,null,null,null,null,1,1900]
[null,null,null,null,null,null,null,null,null,null,null,null,null,null,null,null,null,null,null,null,null,null,null,null,null,null,null,null,null,null,null,null,0,null,null,null,null,null,null,null,null,null,null,null,null,null,null,null,null,null,1,1900]
[null,null,null,null,null,null,null,null,null,null,null,null,null,null,null,null,null,null,null,null,null,null,null,null,null,null,null,null,null,null,null,null,0,null,null,null,null,null,null,null,null,null,null,null,null,null,null,null,null,null,1,1900]
[null,null,null,null,null,null,null,null,null,null,null,null,null,null,null,null,null,null,null,null,null,null,null,null,null,null,null,null,null,null,null,null,0,null,null,null,null,null,null,null,null,null,null,null,null,null,null,null,null,null,1,1900]
[null,null,null,null,null,null,null,null,null,null,null,null,null,null,null,null,null,null,null,null,null,null,null,null,null,null,null,null,null,null,null,null,0,null,null,null,null,null,null,null,null,null,null,null,null,null,null,null,null,null,1,1900]
[null,null,null,null,null,null,null,null,null,null,null,null,null,null,null,null,null,null,null,null,null,null,null,null,null,null,null,null,null,null,null,null,0,null,null,null,null,null,null,null,null,null,null,null,null,null,null,null,null,null,1,1900]
[null,null,null,null,null,null,null,null,null,null,null,null,null,null,null,null,null,null,null,null,null,null,null,null,null,null,null,null,null,null,null,null,0,null,null,null,null,null,null,null,null,null,null,null,null,null,null,null,null,null,1,1900]
[null,null,null,null,null,null,null,null,null,null,null,null,null,null,null,null,null,null,null,null,null,null,null,null,null,null,null,null,null,null,null,null,0,null,null,null,null,null,null,null,null,null,null,null,null,null,null,null,null,null,{"$f":"MONTH(B378)","v":1},{"$f":"YEAR(B378)","v":1900}]
[null,null,null,null,null,null,null,null,null,null,null,null,null,null,null,null,null,null,null,null,null,null,null,null,null,null,null,null,null,null,null,null,0,null,null,null,null,null,null,null,null,null,null,null,null,null,null,null,null,null,1,1900]
[null,null,null,null,null,null,null,null,null,null,null,null,null,null,null,null,null,null,null,null,null,null,null,null,null,null,null,null,null,null,null,null,0,null,null,null,null,null,null,null,null,null,null,null,null,null,null,null,null,null,1,1900]
[null,null,null,null,null,null,null,null,null,null,null,null,null,null,null,null,null,null,null,null,null,null,null,null,null,null,null,null,null,null,null,null,0,null,null,null,null,null,null,null,null,null,null,null,null,null,null,null,null,null,1,1900]
[null,null,null,null,null,null,null,null,null,null,null,null,null,null,null,null,null,null,null,null,null,null,null,null,null,null,null,null,null,null,null,null,0,null,null,null,null,null,null,null,null,null,null,null,null,null,null,null,null,null,1,1900]
[null,null,null,null,null,null,null,null,null,null,null,null,null,null,null,null,null,null,null,null,null,null,null,null,null,null,null,null,null,null,null,null,0,null,null,null,null,null,null,null,null,null,null,null,null,null,null,null,null,null,1,1900]
[null,null,null,null,null,null,null,null,null,null,null,null,null,null,null,null,null,null,null,null,null,null,null,null,null,null,null,null,null,null,null,null,0,null,null,null,null,null,null,null,null,null,null,null,null,null,null,null,null,null,1,1900]
[null,null,null,null,null,null,null,null,null,null,null,null,null,null,null,null,null,null,null,null,null,null,null,null,null,null,null,null,null,null,null,null,0,null,null,null,null,null,null,null,null,null,null,null,null,null,null,null,null,null,1,1900]
[null,null,null,null,null,null,null,null,null,null,null,null,null,null,null,null,null,null,null,null,null,null,null,null,null,null,null,null,null,null,null,null,0,null,null,null,null,null,null,null,null,null,null,null,null,null,null,null,null,null,1,1900]
[null,null,null,null,null,null,null,null,null,null,null,null,null,null,null,null,null,null,null,null,null,null,null,null,null,null,null,null,null,null,null,null,0,null,null,null,null,null,null,null,null,null,null,null,null,null,null,null,null,null,1,1900]
[null,null,null,null,null,null,null,null,null,null,null,null,null,null,null,null,null,null,null,null,null,null,null,null,null,null,null,null,null,null,null,null,0,null,null,null,null,null,null,null,null,null,null,null,null,null,null,null,null,null,1,1900]
[null,null,null,null,null,null,null,null,null,null,null,null,null,null,null,null,null,null,null,null,null,null,null,null,null,null,null,null,null,null,null,null,0,null,null,null,null,null,null,null,null,null,null,null,null,null,null,null,null,null,1,1900]
[null,null,null,null,null,null,null,null,null,null,null,null,null,null,null,null,null,null,null,null,null,null,null,null,null,null,null,null,null,null,null,null,0,null,null,null,null,null,null,null,null,null,null,null,null,null,null,null,null,null,1,1900]
[null,null,null,null,null,null,null,null,null,null,null,null,null,null,null,null,null,null,null,null,null,null,null,null,null,null,null,null,null,null,null,null,0,null,null,null,null,null,null,null,null,null,null,null,null,null,null,null,null,null,1,1900]
[null,null,null,null,null,null,null,null,null,null,null,null,null,null,null,null,null,null,null,null,null,null,null,null,null,null,null,null,null,null,null,null,0,null,null,null,null,null,null,null,null,null,null,null,null,null,null,null,null,null,1,1900]
[null,null,null,null,null,null,null,null,null,null,null,null,null,null,null,null,null,null,null,null,null,null,null,null,null,null,null,null,null,null,null,null,0,null,null,null,null,null,null,null,null,null,null,null,null,null,null,null,null,null,1,1900]
[null,null,null,null,null,null,null,null,null,null,null,null,null,null,null,null,null,null,null,null,null,null,null,null,null,null,null,null,null,null,null,null,0,null,null,null,null,null,null,null,null,null,null,null,null,null,null,null,null,null,1,1900]
[null,null,null,null,null,null,null,null,null,null,null,null,null,null,null,null,null,null,null,null,null,null,null,null,null,null,null,null,null,null,null,null,0,null,null,null,null,null,null,null,null,null,null,null,null,null,null,null,null,null,1,1900]
[null,null,null,null,null,null,null,null,null,null,null,null,null,null,null,null,null,null,null,null,null,null,null,null,null,null,null,null,null,null,null,null,0,null,null,null,null,null,null,null,null,null,null,null,null,null,null,null,null,null,1,1900]
[null,null,null,null,null,null,null,null,null,null,null,null,null,null,null,null,null,null,null,null,null,null,null,null,null,null,null,null,null,null,null,null,0,null,null,null,null,null,null,null,null,null,null,null,null,null,null,null,null,null,1,1900]
[null,null,null,null,null,null,null,null,null,null,null,null,null,null,null,null,null,null,null,null,null,null,null,null,null,null,null,null,null,null,null,null,0,null,null,null,null,null,null,null,null,null,null,null,null,null,null,null,null,null,1,1900]
[null,null,null,null,null,null,null,null,null,null,null,null,null,null,null,null,null,null,null,null,null,null,null,null,null,null,null,null,null,null,null,null,0,null,null,null,null,null,null,null,null,null,null,null,null,null,null,null,null,null,1,1900]
[null,null,null,null,null,null,null,null,null,null,null,null,null,null,null,null,null,null,null,null,null,null,null,null,null,null,null,null,null,null,null,null,0,null,null,null,null,null,null,null,null,null,null,null,null,null,null,null,null,null,1,1900]
[null,null,null,null,null,null,null,null,null,null,null,null,null,null,null,null,null,null,null,null,null,null,null,null,null,null,null,null,null,null,null,null,0,null,null,null,null,null,null,null,null,null,null,null,null,null,null,null,null,null,1,1900]
[null,null,null,null,null,null,null,null,null,null,null,null,null,null,null,null,null,null,null,null,null,null,null,null,null,null,null,null,null,null,null,null,0,null,null,null,null,null,null,null,null,null,null,null,null,null,null,null,null,null,1,1900]
[null,null,null,null,null,null,null,null,null,null,null,null,null,null,null,null,null,null,null,null,null,null,null,null,null,null,null,null,null,null,null,null,0,null,null,null,null,null,null,null,null,null,null,null,null,null,null,null,null,null,1,1900]
[null,null,null,null,null,null,null,null,null,null,null,null,null,null,null,null,null,null,null,null,null,null,null,null,null,null,null,null,null,null,null,null,0,null,null,null,null,null,null,null,null,null,null,null,null,null,null,null,null,null,1,1900]
[null,null,null,null,null,null,null,null,null,null,null,null,null,null,null,null,null,null,null,null,null,null,null,null,null,null,null,null,null,null,null,null,0,null,null,null,null,null,null,null,null,null,null,null,null,null,null,null,null,null,1,1900]
[null,null,null,null,null,null,null,null,null,null,null,null,null,null,null,null,null,null,null,null,null,null,null,null,null,null,null,null,null,null,null,null,0,null,null,null,null,null,null,null,null,null,null,null,null,null,null,null,null,null,1,1900]
[null,null,null,null,null,null,null,null,null,null,null,null,null,null,null,null,null,null,null,null,null,null,null,null,null,null,null,null,null,null,null,null,0,null,null,null,null,null,null,null,null,null,null,null,null,null,null,null,null,null,1,1900]
[null,null,null,null,null,null,null,null,null,null,null,null,null,null,null,null,null,null,null,null,null,null,null,null,null,null,null,null,null,null,null,null,0,null,null,null,null,null,null,null,null,null,null,null,null,null,null,null,null,null,1,1900]
[null,null,null,null,null,null,null,null,null,null,null,null,null,null,null,null,null,null,null,null,null,null,null,null,null,null,null,null,null,null,null,null,0,null,null,null,null,null,null,null,null,null,null,null,null,null,null,null,null,null,1,1900]
[null,null,null,null,null,null,null,null,null,null,null,null,null,null,null,null,null,null,null,null,null,null,null,null,null,null,null,null,null,null,null,null,0,null,null,null,null,null,null,null,null,null,null,null,null,null,null,null,null,null,1,1900]
[null,null,null,null,null,null,null,null,null,null,null,null,null,null,null,null,null,null,null,null,null,null,null,null,null,null,null,null,null,null,null,null,0,null,null,null,null,null,null,null,null,null,null,null,null,null,null,null,null,null,1,1900]
[null,null,null,null,null,null,null,null,null,null,null,null,null,null,null,null,null,null,null,null,null,null,null,null,null,null,null,null,null,null,null,null,0,null,null,null,null,null,null,null,null,null,null,null,null,null,null,null,null,null,1,1900]
[null,null,null,null,null,null,null,null,null,null,null,null,null,null,null,null,null,null,null,null,null,null,null,null,null,null,null,null,null,null,null,null,0,null,null,null,null,null,null,null,null,null,null,null,null,null,null,null,null,null,1,1900]
[null,null,null,null,null,null,null,null,null,null,null,null,null,null,null,null,null,null,null,null,null,null,null,null,null,null,null,null,null,null,null,null,0,null,null,null,null,null,null,null,null,null,null,null,null,null,null,null,null,null,1,1900]
[null,null,null,null,null,null,null,null,null,null,null,null,null,null,null,null,null,null,null,null,null,null,null,null,null,null,null,null,null,null,null,null,0,null,null,null,null,null,null,null,null,null,null,null,null,null,null,null,null,null,1,1900]
[null,null,null,null,null,null,null,null,null,null,null,null,null,null,null,null,null,null,null,null,null,null,null,null,null,null,null,null,null,null,null,null,0,null,null,null,null,null,null,null,null,null,null,null,null,null,null,null,null,null,1,1900]
[null,null,null,null,null,null,null,null,null,null,null,null,null,null,null,null,null,null,null,null,null,null,null,null,null,null,null,null,null,null,null,null,0,null,null,null,null,null,null,null,null,null,null,null,null,null,null,null,null,null,1,1900]
[null,null,null,null,null,null,null,null,null,null,null,null,null,null,null,null,null,null,null,null,null,null,null,null,null,null,null,null,null,null,null,null,0,null,null,null,null,null,null,null,null,null,null,null,null,null,null,null,null,null,1,1900]
[null,null,null,null,null,null,null,null,null,null,null,null,null,null,null,null,null,null,null,null,null,null,null,null,null,null,null,null,null,null,null,null,0,null,null,null,null,null,null,null,null,null,null,null,null,null,null,null,null,null,1,1900]
[null,null,null,null,null,null,null,null,null,null,null,null,null,null,null,null,null,null,null,null,null,null,null,null,null,null,null,null,null,null,null,null,0,null,null,null,null,null,null,null,null,null,null,null,null,null,null,null,null,null,1,1900]
[null,null,null,null,null,null,null,null,null,null,null,null,null,null,null,null,null,null,null,null,null,null,null,null,null,null,null,null,null,null,null,null,0,null,null,null,null,null,null,null,null,null,null,null,null,null,null,null,null,null,1,1900]
[null,null,null,null,null,null,null,null,null,null,null,null,null,null,null,null,null,null,null,null,null,null,null,null,null,null,null,null,null,null,null,null,0,null,null,null,null,null,null,null,null,null,null,null,null,null,null,null,null,null,1,1900]
[null,null,null,null,null,null,null,null,null,null,null,null,null,null,null,null,null,null,null,null,null,null,null,null,null,null,null,null,null,null,null,null,0,null,null,null,null,null,null,null,null,null,null,null,null,null,null,null,null,null,1,1900]
[null,null,null,null,null,null,null,null,null,null,null,null,null,null,null,null,null,null,null,null,null,null,null,null,null,null,null,null,null,null,null,null,0,null,null,null,null,null,null,null,null,null,null,null,null,null,null,null,null,null,1,1900]
[null,null,null,null,null,null,null,null,null,null,null,null,null,null,null,null,null,null,null,null,null,null,null,null,null,null,null,null,null,null,null,null,0,null,null,null,null,null,null,null,null,null,null,null,null,null,null,null,null,null,1,1900]
[null,null,null,null,null,null,null,null,null,null,null,null,null,null,null,null,null,null,null,null,null,null,null,null,null,null,null,null,null,null,null,null,0,null,null,null,null,null,null,null,null,null,null,null,null,null,null,null,null,null,1,1900]
[null,null,null,null,null,null,null,null,null,null,null,null,null,null,null,null,null,null,null,null,null,null,null,null,null,null,null,null,null,null,null,null,0,null,null,null,null,null,null,null,null,null,null,null,null,null,null,null,null,null,1,1900]
[null,null,null,null,null,null,null,null,null,null,null,null,null,null,null,null,null,null,null,null,null,null,null,null,null,null,null,null,null,null,null,null,0,null,null,null,null,null,null,null,null,null,null,null,null,null,null,null,null,null,1,1900]
[null,null,null,null,null,null,null,null,null,null,null,null,null,null,null,null,null,null,null,null,null,null,null,null,null,null,null,null,null,null,null,null,0,null,null,null,null,null,null,null,null,null,null,null,null,null,null,null,null,null,1,1900]
[null,null,null,null,null,null,null,null,null,null,null,null,null,null,null,null,null,null,null,null,null,null,null,null,null,null,null,null,null,null,null,null,0,null,null,null,null,null,null,null,null,null,null,null,null,null,null,null,null,null,1,1900]
[null,null,null,null,null,null,null,null,null,null,null,null,null,null,null,null,null,null,null,null,null,null,null,null,null,null,null,null,null,null,null,null,0,null,null,null,null,null,null,null,null,null,null,null,null,null,null,null,null,null,1,1900]
[null,null,null,null,null,null,null,null,null,null,null,null,null,null,null,null,null,null,null,null,null,null,null,null,null,null,null,null,null,null,null,null,0,null,null,null,null,null,null,null,null,null,null,null,null,null,null,null,null,null,1,1900]
[null,null,null,null,null,null,null,null,null,null,null,null,null,null,null,null,null,null,null,null,null,null,null,null,null,null,null,null,null,null,null,null,0,null,null,null,null,null,null,null,null,null,null,null,null,null,null,null,null,null,1,1900]
[null,null,null,null,null,null,null,null,null,null,null,null,null,null,null,null,null,null,null,null,null,null,null,null,null,null,null,null,null,null,null,null,0,null,null,null,null,null,null,null,null,null,null,null,null,null,null,null,null,null,1,1900]
[null,null,null,null,null,null,null,null,null,null,null,null,null,null,null,null,null,null,null,null,null,null,null,null,null,null,null,null,null,null,null,null,0,null,null,null,null,null,null,null,null,null,null,null,null,null,null,null,null,null,1,1900]
[null,null,null,null,null,null,null,null,null,null,null,null,null,null,null,null,null,null,null,null,null,null,null,null,null,null,null,null,null,null,null,null,0,null,null,null,null,null,null,null,null,null,null,null,null,null,null,null,null,null,1,1900]
[null,null,null,null,null,null,null,null,null,null,null,null,null,null,null,null,null,null,null,null,null,null,null,null,null,null,null,null,null,null,null,null,0,null,null,null,null,null,null,null,null,null,null,null,null,null,null,null,null,null,1,1900]
[null,null,null,null,null,null,null,null,null,null,null,null,null,null,null,null,null,null,null,null,null,null,null,null,null,null,null,null,null,null,null,null,0,null,null,null,null,null,null,null,null,null,null,null,null,null,null,null,null,null,1,1900]
[null,null,null,null,null,null,null,null,null,null,null,null,null,null,null,null,null,null,null,null,null,null,null,null,null,null,null,null,null,null,null,null,0,null,null,null,null,null,null,null,null,null,null,null,null,null,null,null,null,null,1,1900]
[null,null,null,null,null,null,null,null,null,null,null,null,null,null,null,null,null,null,null,null,null,null,null,null,null,null,null,null,null,null,null,null,0,null,null,null,null,null,null,null,null,null,null,null,null,null,null,null,null,null,1,1900]
[null,null,null,null,null,null,null,null,null,null,null,null,null,null,null,null,null,null,null,null,null,null,null,null,null,null,null,null,null,null,null,null,0,null,null,null,null,null,null,null,null,null,null,null,null,null,null,null,null,null,1,1900]
[null,null,null,null,null,null,null,null,null,null,null,null,null,null,null,null,null,null,null,null,null,null,null,null,null,null,null,null,null,null,null,null,0,null,null,null,null,null,null,null,null,null,null,null,null,null,null,null,null,null,{"$f":"MONTH(B442)","v":1},{"$f":"YEAR(B442)","v":1900}]
[null,null,null,null,null,null,null,null,null,null,null,null,null,null,null,null,null,null,null,null,null,null,null,null,null,null,null,null,null,null,null,null,0,null,null,null,null,null,null,null,null,null,null,null,null,null,null,null,null,null,1,1900]
[null,null,null,null,null,null,null,null,null,null,null,null,null,null,null,null,null,null,null,null,null,null,null,null,null,null,null,null,null,null,null,null,0,null,null,null,null,null,null,null,null,null,null,null,null,null,null,null,null,null,1,1900]
[null,null,null,null,null,null,null,null,null,null,null,null,null,null,null,null,null,null,null,null,null,null,null,null,null,null,null,null,null,null,null,null,0,null,null,null,null,null,null,null,null,null,null,null,null,null,null,null,null,null,1,1900]
[null,null,null,null,null,null,null,null,null,null,null,null,null,null,null,null,null,null,null,null,null,null,null,null,null,null,null,null,null,null,null,null,0,null,null,null,null,null,null,null,null,null,null,null,null,null,null,null,null,null,1,1900]
[null,null,null,null,null,null,null,null,null,null,null,null,null,null,null,null,null,null,null,null,null,null,null,null,null,null,null,null,null,null,null,null,0,null,null,null,null,null,null,null,null,null,null,null,null,null,null,null,null,null,1,1900]
[null,null,null,null,null,null,null,null,null,null,null,null,null,null,null,null,null,null,null,null,null,null,null,null,null,null,null,null,null,null,null,null,0,null,null,null,null,null,null,null,null,null,null,null,null,null,null,null,null,null,1,1900]
[null,null,null,null,null,null,null,null,null,null,null,null,null,null,null,null,null,null,null,null,null,null,null,null,null,null,null,null,null,null,null,null,0,null,null,null,null,null,null,null,null,null,null,null,null,null,null,null,null,null,1,1900]
[null,null,null,null,null,null,null,null,null,null,null,null,null,null,null,null,null,null,null,null,null,null,null,null,null,null,null,null,null,null,null,null,0,null,null,null,null,null,null,null,null,null,null,null,null,null,null,null,null,null,1,1900]
[null,null,null,null,null,null,null,null,null,null,null,null,null,null,null,null,null,null,null,null,null,null,null,null,null,null,null,null,null,null,null,null,0,null,null,null,null,null,null,null,null,null,null,null,null,null,null,null,null,null,1,1900]
[null,null,null,null,null,null,null,null,null,null,null,null,null,null,null,null,null,null,null,null,null,null,null,null,null,null,null,null,null,null,null,null,0,null,null,null,null,null,null,null,null,null,null,null,null,null,null,null,null,null,1,1900]
[null,null,null,null,null,null,null,null,null,null,null,null,null,null,null,null,null,null,null,null,null,null,null,null,null,null,null,null,null,null,null,null,0,null,null,null,null,null,null,null,null,null,null,null,null,null,null,null,null,null,1,1900]
[null,null,null,null,null,null,null,null,null,null,null,null,null,null,null,null,null,null,null,null,null,null,null,null,null,null,null,null,null,null,null,null,0,null,null,null,null,null,null,null,null,null,null,null,null,null,null,null,null,null,1,1900]
[null,null,null,null,null,null,null,null,null,null,null,null,null,null,null,null,null,null,null,null,null,null,null,null,null,null,null,null,null,null,null,null,0,null,null,null,null,null,null,null,null,null,null,null,null,null,null,null,null,null,1,1900]
[null,null,null,null,null,null,null,null,null,null,null,null,null,null,null,null,null,null,null,null,null,null,null,null,null,null,null,null,null,null,null,null,0,null,null,null,null,null,null,null,null,null,null,null,null,null,null,null,null,null,1,1900]
[null,null,null,null,null,null,null,null,null,null,null,null,null,null,null,null,null,null,null,null,null,null,null,null,null,null,null,null,null,null,null,null,0,null,null,null,null,null,null,null,null,null,null,null,null,null,null,null,null,null,1,1900]
[null,null,null,null,null,null,null,null,null,null,null,null,null,null,null,null,null,null,null,null,null,null,null,null,null,null,null,null,null,null,null,null,0,null,null,null,null,null,null,null,null,null,null,null,null,null,null,null,null,null,1,1900]
[null,null,null,null,null,null,null,null,null,null,null,null,null,null,null,null,null,null,null,null,null,null,null,null,null,null,null,null,null,null,null,null,0,null,null,null,null,null,null,null,null,null,null,null,null,null,null,null,null,null,1,1900]
[null,null,null,null,null,null,null,null,null,null,null,null,null,null,null,null,null,null,null,null,null,null,null,null,null,null,null,null,null,null,null,null,0,null,null,null,null,null,null,null,null,null,null,null,null,null,null,null,null,null,1,1900]
[null,null,null,null,null,null,null,null,null,null,null,null,null,null,null,null,null,null,null,null,null,null,null,null,null,null,null,null,null,null,null,null,0,null,null,null,null,null,null,null,null,null,null,null,null,null,null,null,null,null,1,1900]
[null,null,null,null,null,null,null,null,null,null,null,null,null,null,null,null,null,null,null,null,null,null,null,null,null,null,null,null,null,null,null,null,0,null,null,null,null,null,null,null,null,null,null,null,null,null,null,null,null,null,1,1900]
[null,null,null,null,null,null,null,null,null,null,null,null,null,null,null,null,null,null,null,null,null,null,null,null,null,null,null,null,null,null,null,null,0,null,null,null,null,null,null,null,null,null,null,null,null,null,null,null,null,null,1,1900]
[null,null,null,null,null,null,null,null,null,null,null,null,null,null,null,null,null,null,null,null,null,null,null,null,null,null,null,null,null,null,null,null,0,null,null,null,null,null,null,null,null,null,null,null,null,null,null,null,null,null,1,1900]
[null,null,null,null,null,null,null,null,null,null,null,null,null,null,null,null,null,null,null,null,null,null,null,null,null,null,null,null,null,null,null,null,0,null,null,null,null,null,null,null,null,null,null,null,null,null,null,null,null,null,1,1900]
[null,null,null,null,null,null,null,null,null,null,null,null,null,null,null,null,null,null,null,null,null,null,null,null,null,null,null,null,null,null,null,null,0,null,null,null,null,null,null,null,null,null,null,null,null,null,null,null,null,null,1,1900]
[null,null,null,null,null,null,null,null,null,null,null,null,null,null,null,null,null,null,null,null,null,null,null,null,null,null,null,null,null,null,null,null,0,null,null,null,null,null,null,null,null,null,null,null,null,null,null,null,null,null,1,1900]
[null,null,null,null,null,null,null,null,null,null,null,null,null,null,null,null,null,null,null,null,null,null,null,null,null,null,null,null,null,null,null,null,0,null,null,null,null,null,null,null,null,null,null,null,null,null,null,null,null,null,1,1900]
[null,null,null,null,null,null,null,null,null,null,null,null,null,null,null,null,null,null,null,null,null,null,null,null,null,null,null,null,null,null,null,null,0,null,null,null,null,null,null,null,null,null,null,null,null,null,null,null,null,null,1,1900]
[null,null,null,null,null,null,null,null,null,null,null,null,null,null,null,null,null,null,null,null,null,null,null,null,null,null,null,null,null,null,null,null,0,null,null,null,null,null,null,null,null,null,null,null,null,null,null,null,null,null,1,1900]
[null,null,null,null,null,null,null,null,null,null,null,null,null,null,null,null,null,null,null,null,null,null,null,null,null,null,null,null,null,null,null,null,0,null,null,null,null,null,null,null,null,null,null,null,null,null,null,null,null,null,1,1900]
[null,null,null,null,null,null,null,null,null,null,null,null,null,null,null,null,null,null,null,null,null,null,null,null,null,null,null,null,null,null,null,null,0,null,null,null,null,null,null,null,null,null,null,null,null,null,null,null,null,null,1,1900]
[null,null,null,null,null,null,null,null,null,null,null,null,null,null,null,null,null,null,null,null,null,null,null,null,null,null,null,null,null,null,null,null,0,null,null,null,null,null,null,null,null,null,null,null,null,null,null,null,null,null,1,1900]
[null,null,null,null,null,null,null,null,null,null,null,null,null,null,null,null,null,null,null,null,null,null,null,null,null,null,null,null,null,null,null,null,0,null,null,null,null,null,null,null,null,null,null,null,null,null,null,null,null,null,1,1900]
[null,null,null,null,null,null,null,null,null,null,null,null,null,null,null,null,null,null,null,null,null,null,null,null,null,null,null,null,null,null,null,null,0,null,null,null,null,null,null,null,null,null,null,null,null,null,null,null,null,null,1,1900]
[null,null,null,null,null,null,null,null,null,null,null,null,null,null,null,null,null,null,null,null,null,null,null,null,null,null,null,null,null,null,null,null,0,null,null,null,null,null,null,null,null,null,null,null,null,null,null,null,null,null,1,1900]
[null,null,null,null,null,null,null,null,null,null,null,null,null,null,null,null,null,null,null,null,null,null,null,null,null,null,null,null,null,null,null,null,0,null,null,null,null,null,null,null,null,null,null,null,null,null,null,null,null,null,1,1900]
[null,null,null,null,null,null,null,null,null,null,null,null,null,null,null,null,null,null,null,null,null,null,null,null,null,null,null,null,null,null,null,null,0,null,null,null,null,null,null,null,null,null,null,null,null,null,null,null,null,null,1,1900]
[null,null,null,null,null,null,null,null,null,null,null,null,null,null,null,null,null,null,null,null,null,null,null,null,null,null,null,null,null,null,null,null,0,null,null,null,null,null,null,null,null,null,null,null,null,null,null,null,null,null,1,1900]
[null,null,null,null,null,null,null,null,null,null,null,null,null,null,null,null,null,null,null,null,null,null,null,null,null,null,null,null,null,null,null,null,0,null,null,null,null,null,null,null,null,null,null,null,null,null,null,null,null,null,1,1900]
[null,null,null,null,null,null,null,null,null,null,null,null,null,null,null,null,null,null,null,null,null,null,null,null,null,null,null,null,null,null,null,null,0,null,null,null,null,null,null,null,null,null,null,null,null,null,null,null,null,null,1,1900]
[null,null,null,null,null,null,null,null,null,null,null,null,null,null,null,null,null,null,null,null,null,null,null,null,null,null,null,null,null,null,null,null,0,null,null,null,null,null,null,null,null,null,null,null,null,null,null,null,null,null,1,1900]
[null,null,null,null,null,null,null,null,null,null,null,null,null,null,null,null,null,null,null,null,null,null,null,null,null,null,null,null,null,null,null,null,0,null,null,null,null,null,null,null,null,null,null,null,null,null,null,null,null,null,1,1900]
[null,null,null,null,null,null,null,null,null,null,null,null,null,null,null,null,null,null,null,null,null,null,null,null,null,null,null,null,null,null,null,null,0,null,null,null,null,null,null,null,null,null,null,null,null,null,null,null,null,null,1,1900]
[null,null,null,null,null,null,null,null,null,null,null,null,null,null,null,null,null,null,null,null,null,null,null,null,null,null,null,null,null,null,null,null,0,null,null,null,null,null,null,null,null,null,null,null,null,null,null,null,null,null,1,1900]
[null,null,null,null,null,null,null,null,null,null,null,null,null,null,null,null,null,null,null,null,null,null,null,null,null,null,null,null,null,null,null,null,0,null,null,null,null,null,null,null,null,null,null,null,null,null,null,null,null,null,1,1900]
[null,null,null,null,null,null,null,null,null,null,null,null,null,null,null,null,null,null,null,null,null,null,null,null,null,null,null,null,null,null,null,null,0,null,null,null,null,null,null,null,null,null,null,null,null,null,null,null,null,null,1,1900]
[null,null,null,null,null,null,null,null,null,null,null,null,null,null,null,null,null,null,null,null,null,null,null,null,null,null,null,null,null,null,null,null,0,null,null,null,null,null,null,null,null,null,null,null,null,null,null,null,null,null,1,1900]
[null,null,null,null,null,null,null,null,null,null,null,null,null,null,null,null,null,null,null,null,null,null,null,null,null,null,null,null,null,null,null,null,0,null,null,null,null,null,null,null,null,null,null,null,null,null,null,null,null,null,1,1900]
[null,null,null,null,null,null,null,null,null,null,null,null,null,null,null,null,null,null,null,null,null,null,null,null,null,null,null,null,null,null,null,null,0,null,null,null,null,null,null,null,null,null,null,null,null,null,null,null,null,null,1,1900]
[null,null,null,null,null,null,null,null,null,null,null,null,null,null,null,null,null,null,null,null,null,null,null,null,null,null,null,null,null,null,null,null,0,null,null,null,null,null,null,null,null,null,null,null,null,null,null,null,null,null,1,1900]
[null,null,null,null,null,null,null,null,null,null,null,null,null,null,null,null,null,null,null,null,null,null,null,null,null,null,null,null,null,null,null,null,0,null,null,null,null,null,null,null,null,null,null,null,null,null,null,null,null,null,1,1900]
[null,null,null,null,null,null,null,null,null,null,null,null,null,null,null,null,null,null,null,null,null,null,null,null,null,null,null,null,null,null,null,null,0,null,null,null,null,null,null,null,null,null,null,null,null,null,null,null,null,null,1,1900]
[null,null,null,null,null,null,null,null,null,null,null,null,null,null,null,null,null,null,null,null,null,null,null,null,null,null,null,null,null,null,null,null,0,null,null,null,null,null,null,null,null,null,null,null,null,null,null,null,null,null,1,1900]
[null,null,null,null,null,null,null,null,null,null,null,null,null,null,null,null,null,null,null,null,null,null,null,null,null,null,null,null,null,null,null,null,0,null,null,null,null,null,null,null,null,null,null,null,null,null,null,null,null,null,1,1900]
[null,null,null,null,null,null,null,null,null,null,null,null,null,null,null,null,null,null,null,null,null,null,null,null,null,null,null,null,null,null,null,null,0,null,null,null,null,null,null,null,null,null,null,null,null,null,null,null,null,null,1,1900]
[null,null,null,null,null,null,null,null,null,null,null,null,null,null,null,null,null,null,null,null,null,null,null,null,null,null,null,null,null,null,null,null,0,null,null,null,null,null,null,null,null,null,null,null,null,null,null,null,null,null,1,1900]
[null,null,null,null,null,null,null,null,null,null,null,null,null,null,null,null,null,null,null,null,null,null,null,null,null,null,null,null,null,null,null,null,0,null,null,null,null,null,null,null,null,null,null,null,null,null,null,null,null,null,1,1900]
[null,null,null,null,null,null,null,null,null,null,null,null,null,null,null,null,null,null,null,null,null,null,null,null,null,null,null,null,null,null,null,null,0,null,null,null,null,null,null,null,null,null,null,null,null,null,null,null,null,null,1,1900]
[null,null,null,null,null,null,null,null,null,null,null,null,null,null,null,null,null,null,null,null,null,null,null,null,null,null,null,null,null,null,null,null,0,null,null,null,null,null,null,null,null,null,null,null,null,null,null,null,null,null,1,1900]
[null,null,null,null,null,null,null,null,null,null,null,null,null,null,null,null,null,null,null,null,null,null,null,null,null,null,null,null,null,null,null,null,0,null,null,null,null,null,null,null,null,null,null,null,null,null,null,null,null,null,1,1900]
[null,null,null,null,null,null,null,null,null,null,null,null,null,null,null,null,null,null,null,null,null,null,null,null,null,null,null,null,null,null,null,null,0,null,null,null,null,null,null,null,null,null,null,null,null,null,null,null,null,null,1,1900]
[null,null,null,null,null,null,null,null,null,null,null,null,null,null,null,null,null,null,null,null,null,null,null,null,null,null,null,null,null,null,null,null,0,null,null,null,null,null,null,null,null,null,null,null,null,null,null,null,null,null,1,1900]
[null,null,null,null,null,null,null,null,null,null,null,null,null,null,null,null,null,null,null,null,null,null,null,null,null,null,null,null,null,null,null,null,0,null,null,null,null,null,null,null,null,null,null,null,null,null,null,null,null,null,1,1900]
[null,null,null,null,null,null,null,null,null,null,null,null,null,null,null,null,null,null,null,null,null,null,null,null,null,null,null,null,null,null,null,null,0,null,null,null,null,null,null,null,null,null,null,null,null,null,null,null,null,null,1,1900]
[null,null,null,null,null,null,null,null,null,null,null,null,null,null,null,null,null,null,null,null,null,null,null,null,null,null,null,null,null,null,null,null,0,null,null,null,null,null,null,null,null,null,null,null,null,null,null,null,null,null,1,1900]
[null,null,null,null,null,null,null,null,null,null,null,null,null,null,null,null,null,null,null,null,null,null,null,null,null,null,null,null,null,null,null,null,0,null,null,null,null,null,null,null,null,null,null,null,null,null,null,null,null,null,1,1900]
[null,null,null,null,null,null,null,null,null,null,null,null,null,null,null,null,null,null,null,null,null,null,null,null,null,null,null,null,null,null,null,null,0,null,null,null,null,null,null,null,null,null,null,null,null,null,null,null,null,null,1,1900]
[null,null,null,null,null,null,null,null,null,null,null,null,null,null,null,null,null,null,null,null,null,null,null,null,null,null,null,null,null,null,null,null,0,null,null,null,null,null,null,null,null,null,null,null,null,null,null,null,null,null,1,1900]
[null,null,null,null,null,null,null,null,null,null,null,null,null,null,null,null,null,null,null,null,null,null,null,null,null,null,null,null,null,null,null,null,0,null,null,null,null,null,null,null,null,null,null,null,null,null,null,null,null,null,1,1900]
[null,null,null,null,null,null,null,null,null,null,null,null,null,null,null,null,null,null,null,null,null,null,null,null,null,null,null,null,null,null,null,null,0,null,null,null,null,null,null,null,null,null,null,null,null,null,null,null,null,null,1,1900]
[null,null,null,null,null,null,null,null,null,null,null,null,null,null,null,null,null,null,null,null,null,null,null,null,null,null,null,null,null,null,null,null,0,null,null,null,null,null,null,null,null,null,null,null,null,null,null,null,null,null,1,1900]
[null,null,null,null,null,null,null,null,null,null,null,null,null,null,null,null,null,null,null,null,null,null,null,null,null,null,null,null,null,null,null,null,0,null,null,null,null,null,null,null,null,null,null,null,null,null,null,null,null,null,1,1900]
[null,null,null,null,null,null,null,null,null,null,null,null,null,null,null,null,null,null,null,null,null,null,null,null,null,null,null,null,null,null,null,null,0,null,null,null,null,null,null,null,null,null,null,null,null,null,null,null,null,null,1,1900]
[null,null,null,null,null,null,null,null,null,null,null,null,null,null,null,null,null,null,null,null,null,null,null,null,null,null,null,null,null,null,null,null,0,null,null,null,null,null,null,null,null,null,null,null,null,null,null,null,null,null,1,1900]
[null,null,null,null,null,null,null,null,null,null,null,null,null,null,null,null,null,null,null,null,null,null,null,null,null,null,null,null,null,null,null,null,0,null,null,null,null,null,null,null,null,null,null,null,null,null,null,null,null,null,1,1900]
[null,null,null,null,null,null,null,null,null,null,null,null,null,null,null,null,null,null,null,null,null,null,null,null,null,null,null,null,null,null,null,null,0,null,null,null,null,null,null,null,null,null,null,null,null,null,null,null,null,null,1,1900]
[null,null,null,null,null,null,null,null,null,null,null,null,null,null,null,null,null,null,null,null,null,null,null,null,null,null,null,null,null,null,null,null,0,null,null,null,null,null,null,null,null,null,null,null,null,null,null,null,null,null,1,1900]
[null,null,null,null,null,null,null,null,null,null,null,null,null,null,null,null,null,null,null,null,null,null,null,null,null,null,null,null,null,null,null,null,0,null,null,null,null,null,null,null,null,null,null,null,null,null,null,null,null,null,1,1900]
[null,null,null,null,null,null,null,null,null,null,null,null,null,null,null,null,null,null,null,null,null,null,null,null,null,null,null,null,null,null,null,null,0,null,null,null,null,null,null,null,null,null,null,null,null,null,null,null,null,null,1,1900]
[null,null,null,null,null,null,null,null,null,null,null,null,null,null,null,null,null,null,null,null,null,null,null,null,null,null,null,null,null,null,null,null,0,null,null,null,null,null,null,null,null,null,null,null,null,null,null,null,null,null,1,1900]
[null,null,null,null,null,null,null,null,null,null,null,null,null,null,null,null,null,null,null,null,null,null,null,null,null,null,null,null,null,null,null,null,0,null,null,null,null,null,null,null,null,null,null,null,null,null,null,null,null,null,1,1900]
[null,null,null,null,null,null,null,null,null,null,null,null,null,null,null,null,null,null,null,null,null,null,null,null,null,null,null,null,null,null,null,null,0,null,null,null,null,null,null,null,null,null,null,null,null,null,null,null,null,null,1,1900]
[null,null,null,null,null,null,null,null,null,null,null,null,null,null,null,null,null,null,null,null,null,null,null,null,null,null,null,null,null,null,null,null,0,null,null,null,null,null,null,null,null,null,null,null,null,null,null,null,null,null,1,1900]
[null,null,null,null,null,null,null,null,null,null,null,null,null,null,null,null,null,null,null,null,null,null,null,null,null,null,null,null,null,null,null,null,0,null,null,null,null,null,null,null,null,null,null,null,null,null,null,null,null,null,1,1900]
[null,null,null,null,null,null,null,null,null,null,null,null,null,null,null,null,null,null,null,null,null,null,null,null,null,null,null,null,null,null,null,null,0,null,null,null,null,null,null,null,null,null,null,null,null,null,null,null,null,null,1,1900]
[null,null,null,null,null,null,null,null,null,null,null,null,null,null,null,null,null,null,null,null,null,null,null,null,null,null,null,null,null,null,null,null,0,null,null,null,null,null,null,null,null,null,null,null,null,null,null,null,null,null,1,1900]
[null,null,null,null,null,null,null,null,null,null,null,null,null,null,null,null,null,null,null,null,null,null,null,null,null,null,null,null,null,null,null,null,0,null,null,null,null,null,null,null,null,null,null,null,null,null,null,null,null,null,1,1900]
[null,null,null,null,null,null,null,null,null,null,null,null,null,null,null,null,null,null,null,null,null,null,null,null,null,null,null,null,null,null,null,null,0,null,null,null,null,null,null,null,null,null,null,null,null,null,null,null,null,null,1,1900]
[null,null,null,null,null,null,null,null,null,null,null,null,null,null,null,null,null,null,null,null,null,null,null,null,null,null,null,null,null,null,null,null,0,null,null,null,null,null,null,null,null,null,null,null,null,null,null,null,null,null,1,1900]
[null,null,null,null,null,null,null,null,null,null,null,null,null,null,null,null,null,null,null,null,null,null,null,null,null,null,null,null,null,null,null,null,0,null,null,null,null,null,null,null,null,null,null,null,null,null,null,null,null,null,1,1900]
[null,null,null,null,null,null,null,null,null,null,null,null,null,null,null,null,null,null,null,null,null,null,null,null,null,null,null,null,null,null,null,null,0,null,null,null,null,null,null,null,null,null,null,null,null,null,null,null,null,null,1,1900]
[null,null,null,null,null,null,null,null,null,null,null,null,null,null,null,null,null,null,null,null,null,null,null,null,null,null,null,null,null,null,null,null,0,null,null,null,null,null,null,null,null,null,null,null,null,null,null,null,null,null,1,1900]
[null,null,null,null,null,null,null,null,null,null,null,null,null,null,null,null,null,null,null,null,null,null,null,null,null,null,null,null,null,null,null,null,0,null,null,null,null,null,null,null,null,null,null,null,null,null,null,null,null,null,1,1900]
[null,null,null,null,null,null,null,null,null,null,null,null,null,null,null,null,null,null,null,null,null,null,null,null,null,null,null,null,null,null,null,null,0,null,null,null,null,null,null,null,null,null,null,null,null,null,null,null,null,null,1,1900]
[null,null,null,null,null,null,null,null,null,null,null,null,null,null,null,null,null,null,null,null,null,null,null,null,null,null,null,null,null,null,null,null,0,null,null,null,null,null,null,null,null,null,null,null,null,null,null,null,null,null,1,1900]
[null,null,null,null,null,null,null,null,null,null,null,null,null,null,null,null,null,null,null,null,null,null,null,null,null,null,null,null,null,null,null,null,0,null,null,null,null,null,null,null,null,null,null,null,null,null,null,null,null,null,1,1900]
[null,null,null,null,null,null,null,null,null,null,null,null,null,null,null,null,null,null,null,null,null,null,null,null,null,null,null,null,null,null,null,null,0,null,null,null,null,null,null,null,null,null,null,null,null,null,null,null,null,null,1,1900]
[null,null,null,null,null,null,null,null,null,null,null,null,null,null,null,null,null,null,null,null,null,null,null,null,null,null,null,null,null,null,null,null,0,null,null,null,null,null,null,null,null,null,null,null,null,null,null,null,null,null,1,1900]
[null,null,null,null,null,null,null,null,null,null,null,null,null,null,null,null,null,null,null,null,null,null,null,null,null,null,null,null,null,null,null,null,0,null,null,null,null,null,null,null,null,null,null,null,null,null,null,null,null,null,1,1900]
[null,null,null,null,null,null,null,null,null,null,null,null,null,null,null,null,null,null,null,null,null,null,null,null,null,null,null,null,null,null,null,null,0,null,null,null,null,null,null,null,null,null,null,null,null,null,null,null,null,null,1,1900]
[null,null,null,null,null,null,null,null,null,null,null,null,null,null,null,null,null,null,null,null,null,null,null,null,null,null,null,null,null,null,null,null,0,null,null,null,null,null,null,null,null,null,null,null,null,null,null,null,null,null,1,1900]
[null,null,null,null,null,null,null,null,null,null,null,null,null,null,null,null,null,null,null,null,null,null,null,null,null,null,null,null,null,null,null,null,0,null,null,null,null,null,null,null,null,null,null,null,null,null,null,null,null,null,1,1900]
[null,null,null,null,null,null,null,null,null,null,null,null,null,null,null,null,null,null,null,null,null,null,null,null,null,null,null,null,null,null,null,null,0,null,null,null,null,null,null,null,null,null,null,null,null,null,null,null,null,null,1,1900]
[null,null,null,null,null,null,null,null,null,null,null,null,null,null,null,null,null,null,null,null,null,null,null,null,null,null,null,null,null,null,null,null,0,null,null,null,null,null,null,null,null,null,null,null,null,null,null,null,null,null,1,1900]
[null,null,null,null,null,null,null,null,null,null,null,null,null,null,null,null,null,null,null,null,null,null,null,null,null,null,null,null,null,null,null,null,0,null,null,null,null,null,null,null,null,null,null,null,null,null,null,null,null,null,1,1900]
[null,null,null,null,null,null,null,null,null,null,null,null,null,null,null,null,null,null,null,null,null,null,null,null,null,null,null,null,null,null,null,null,0,null,null,null,null,null,null,null,null,null,null,null,null,null,null,null,null,null,1,1900]
[null,null,null,null,null,null,null,null,null,null,null,null,null,null,null,null,null,null,null,null,null,null,null,null,null,null,null,null,null,null,null,null,0,null,null,null,null,null,null,null,null,null,null,null,null,null,null,null,null,null,1,1900]
[null,null,null,null,null,null,null,null,null,null,null,null,null,null,null,null,null,null,null,null,null,null,null,null,null,null,null,null,null,null,null,null,0,null,null,null,null,null,null,null,null,null,null,null,null,null,null,null,null,null,1,1900]
[null,null,null,null,null,null,null,null,null,null,null,null,null,null,null,null,null,null,null,null,null,null,null,null,null,null,null,null,null,null,null,null,0,null,null,null,null,null,null,null,null,null,null,null,null,null,null,null,null,null,1,1900]
[null,null,null,null,null,null,null,null,null,null,null,null,null,null,null,null,null,null,null,null,null,null,null,null,null,null,null,null,null,null,null,null,0,null,null,null,null,null,null,null,null,null,null,null,null,null,null,null,null,null,1,1900]
[null,null,null,null,null,null,null,null,null,null,null,null,null,null,null,null,null,null,null,null,null,null,null,null,null,null,null,null,null,null,null,null,0,null,null,null,null,null,null,null,null,null,null,null,null,null,null,null,null,null,1,1900]
[null,null,null,null,null,null,null,null,null,null,null,null,null,null,null,null,null,null,null,null,null,null,null,null,null,null,null,null,null,null,null,null,0,null,null,null,null,null,null,null,null,null,null,null,null,null,null,null,null,null,1,1900]
[null,null,null,null,null,null,null,null,null,null,null,null,null,null,null,null,null,null,null,null,null,null,null,null,null,null,null,null,null,null,null,null,0,null,null,null,null,null,null,null,null,null,null,null,null,null,null,null,null,null,1,1900]
[null,null,null,null,null,null,null,null,null,null,null,null,null,null,null,null,null,null,null,null,null,null,null,null,null,null,null,null,null,null,null,null,0,null,null,null,null,null,null,null,null,null,null,null,null,null,null,null,null,null,1,1900]
[null,null,null,null,null,null,null,null,null,null,null,null,null,null,null,null,null,null,null,null,null,null,null,null,null,null,null,null,null,null,null,null,0,null,null,null,null,null,null,null,null,null,null,null,null,null,null,null,null,null,{"$f":"MONTH(B954)","v":1},{"$f":"YEAR(B954)","v":1900}]
[null,null,null,null,null,null,null,null,null,null,null,null,null,null,null,null,null,null,null,null,null,null,null,null,null,null,null,null,null,null,null,null,0,null,null,null,null,null,null,null,null,null,null,null,null,null,null,null,null,null,1,1900]
[null,null,null,null,null,null,null,null,null,null,null,null,null,null,null,null,null,null,null,null,null,null,null,null,null,null,null,null,null,null,null,null,0,null,null,null,null,null,null,null,null,null,null,null,null,null,null,null,null,null,1,1900]
[null,null,null,null,null,null,null,null,null,null,null,null,null,null,null,null,null,null,null,null,null,null,null,null,null,null,null,null,null,null,null,null,0,null,null,null,null,null,null,null,null,null,null,null,null,null,null,null,null,null,1,1900]
[null,null,null,null,null,null,null,null,null,null,null,null,null,null,null,null,null,null,null,null,null,null,null,null,null,null,null,null,null,null,null,null,0,null,null,null,null,null,null,null,null,null,null,null,null,null,null,null,null,null,1,1900]
[null,null,null,null,null,null,null,null,null,null,null,null,null,null,null,null,null,null,null,null,null,null,null,null,null,null,null,null,null,null,null,null,0,null,null,null,null,null,null,null,null,null,null,null,null,null,null,null,null,null,1,1900]
[null,null,null,null,null,null,null,null,null,null,null,null,null,null,null,null,null,null,null,null,null,null,null,null,null,null,null,null,null,null,null,null,0,null,null,null,null,null,null,null,null,null,null,null,null,null,null,null,null,null,1,1900]
[null,null,null,null,null,null,null,null,null,null,null,null,null,null,null,null,null,null,null,null,null,null,null,null,null,null,null,null,null,null,null,null,0,null,null,null,null,null,null,null,null,null,null,null,null,null,null,null,null,null,1,1900]
[null,null,null,null,null,null,null,null,null,null,null,null,null,null,null,null,null,null,null,null,null,null,null,null,null,null,null,null,null,null,null,null,0,null,null,null,null,null,null,null,null,null,null,null,null,null,null,null,null,null,1,1900]
[null,null,null,null,null,null,null,null,null,null,null,null,null,null,null,null,null,null,null,null,null,null,null,null,null,null,null,null,null,null,null,null,0,null,null,null,null,null,null,null,null,null,null,null,null,null,null,null,null,null,1,1900]
[null,null,null,null,null,null,null,null,null,null,null,null,null,null,null,null,null,null,null,null,null,null,null,null,null,null,null,null,null,null,null,null,0,null,null,null,null,null,null,null,null,null,null,null,null,null,null,null,null,null,1,1900]
[null,null,null,null,null,null,null,null,null,null,null,null,null,null,null,null,null,null,null,null,null,null,null,null,null,null,null,null,null,null,null,null,0,null,null,null,null,null,null,null,null,null,null,null,null,null,null,null,null,null,1,1900]
[null,null,null,null,null,null,null,null,null,null,null,null,null,null,null,null,null,null,null,null,null,null,null,null,null,null,null,null,null,null,null,null,0,null,null,null,null,null,null,null,null,null,null,null,null,null,null,null,null,null,1,1900]
[null,null,null,null,null,null,null,null,null,null,null,null,null,null,null,null,null,null,null,null,null,null,null,null,null,null,null,null,null,null,null,null,0,null,null,null,null,null,null,null,null,null,null,null,null,null,null,null,null,null,1,1900]
[null,null,null,null,null,null,null,null,null,null,null,null,null,null,null,null,null,null,null,null,null,null,null,null,null,null,null,null,null,null,null,null,0,null,null,null,null,null,null,null,null,null,null,null,null,null,null,null,null,null,1,1900]
[null,null,null,null,null,null,null,null,null,null,null,null,null,null,null,null,null,null,null,null,null,null,null,null,null,null,null,null,null,null,null,null,0,null,null,null,null,null,null,null,null,null,null,null,null,null,null,null,null,null,1,1900]
[null,null,null,null,null,null,null,null,null,null,null,null,null,null,null,null,null,null,null,null,null,null,null,null,null,null,null,null,null,null,null,null,0,null,null,null,null,null,null,null,null,null,null,null,null,null,null,null,null,null,1,1900]
[null,null,null,null,null,null,null,null,null,null,null,null,null,null,null,null,null,null,null,null,null,null,null,null,null,null,null,null,null,null,null,null,0,null,null,null,null,null,null,null,null,null,null,null,null,null,null,null,null,null,1,1900]
[null,null,null,null,null,null,null,null,null,null,null,null,null,null,null,null,null,null,null,null,null,null,null,null,null,null,null,null,null,null,null,null,0,null,null,null,null,null,null,null,null,null,null,null,null,null,null,null,null,null,1,1900]
[null,null,null,null,null,null,null,null,null,null,null,null,null,null,null,null,null,null,null,null,null,null,null,null,null,null,null,null,null,null,null,null,0,null,null,null,null,null,null,null,null,null,null,null,null,null,null,null,null,null,1,1900]
[null,null,null,null,null,null,null,null,null,null,null,null,null,null,null,null,null,null,null,null,null,null,null,null,null,null,null,null,null,null,null,null,0,null,null,null,null,null,null,null,null,null,null,null,null,null,null,null,null,null,1,1900]
[null,null,null,null,null,null,null,null,null,null,null,null,null,null,null,null,null,null,null,null,null,null,null,null,null,null,null,null,null,null,null,null,0,null,null,null,null,null,null,null,null,null,null,null,null,null,null,null,null,null,1,1900]
[null,null,null,null,null,null,null,null,null,null,null,null,null,null,null,null,null,null,null,null,null,null,null,null,null,null,null,null,null,null,null,null,0,null,null,null,null,null,null,null,null,null,null,null,null,null,null,null,null,null,1,1900]
[null,null,null,null,null,null,null,null,null,null,null,null,null,null,null,null,null,null,null,null,null,null,null,null,null,null,null,null,null,null,null,null,0,null,null,null,null,null,null,null,null,null,null,null,null,null,null,null,null,null,1,1900]
[null,null,null,null,null,null,null,null,null,null,null,null,null,null,null,null,null,null,null,null,null,null,null,null,null,null,null,null,null,null,null,null,0,null,null,null,null,null,null,null,null,null,null,null,null,null,null,null,null,null,1,1900]
[null,null,null,null,null,null,null,null,null,null,null,null,null,null,null,null,null,null,null,null,null,null,null,null,null,null,null,null,null,null,null,null,0,null,null,null,null,null,null,null,null,null,null,null,null,null,null,null,null,null,1,1900]
[null,null,null,null,null,null,null,null,null,null,null,null,null,null,null,null,null,null,null,null,null,null,null,null,null,null,null,null,null,null,null,null,0,null,null,null,null,null,null,null,null,null,null,null,null,null,null,null,null,null,1,1900]
[null,null,null,null,null,null,null,null,null,null,null,null,null,null,null,null,null,null,null,null,null,null,null,null,null,null,null,null,null,null,null,null,0,null,null,null,null,null,null,null,null,null,null,null,null,null,null,null,null,null,1,1900]
[null,null,null,null,null,null,null,null,null,null,null,null,null,null,null,null,null,null,null,null,null,null,null,null,null,null,null,null,null,null,null,null,0,null,null,null,null,null,null,null,null,null,null,null,null,null,null,null,null,null,1,1900]
[null,null,null,null,null,null,null,null,null,null,null,null,null,null,null,null,null,null,null,null,null,null,null,null,null,null,null,null,null,null,null,null,0,null,null,null,null,null,null,null,null,null,null,null,null,null,null,null,null,null,1,1900]
[null,null,null,null,null,null,null,null,null,null,null,null,null,null,null,null,null,null,null,null,null,null,null,null,null,null,null,null,null,null,null,null,0,null,null,null,null,null,null,null,null,null,null,null,null,null,null,null,null,null,1,1900]
[null,null,null,null,null,null,null,null,null,null,null,null,null,null,null,null,null,null,null,null,null,null,null,null,null,null,null,null,null,null,null,null,0,null,null,null,null,null,null,null,null,null,null,null,null,null,null,null,null,null,1,1900]
[null,null,null,null,null,null,null,null,null,null,null,null,null,null,null,null,null,null,null,null,null,null,null,null,null,null,null,null,null,null,null,null,0,null,null,null,null,null,null,null,null,null,null,null,null,null,null,null,null,null,1,1900]
[null,null,null,null,null,null,null,null,null,null,null,null,null,null,null,null,null,null,null,null,null,null,null,null,null,null,null,null,null,null,null,null,0,null,null,null,null,null,null,null,null,null,null,null,null,null,null,null,null,null,1,1900]
[null,null,null,null,null,null,null,null,null,null,null,null,null,null,null,null,null,null,null,null,null,null,null,null,null,null,null,null,null,null,null,null,0,null,null,null,null,null,null,null,null,null,null,null,null,null,null,null,null,null,1,1900]
[null,null,null,null,null,null,null,null,null,null,null,null,null,null,null,null,null,null,null,null,null,null,null,null,null,null,null,null,null,null,null,null,0,null,null,null,null,null,null,null,null,null,null,null,null,null,null,null,null,null,1,1900]
[null,null,null,null,null,null,null,null,null,null,null,null,null,null,null,null,null,null,null,null,null,null,null,null,null,null,null,null,null,null,null,null,0,null,null,null,null,null,null,null,null,null,null,null,null,null,null,null,null,null,1,1900]
[null,null,null,null,null,null,null,null,null,null,null,null,null,null,null,null,null,null,null,null,null,null,null,null,null,null,null,null,null,null,null,null,0,null,null,null,null,null,null,null,null,null,null,null,null,null,null,null,null,null,1,1900]
[null,null,null,null,null,null,null,null,null,null,null,null,null,null,null,null,null,null,null,null,null,null,null,null,null,null,null,null,null,null,null,null,0,null,null,null,null,null,null,null,null,null,null,null,null,null,null,null,null,null,1,1900]
[null,null,null,null,null,null,null,null,null,null,null,null,null,null,null,null,null,null,null,null,null,null,null,null,null,null,null,null,null,null,null,null,0,null,null,null,null,null,null,null,null,null,null,null,null,null,null,null,null,null,1,1900]
[null,null,null,null,null,null,null,null,null,null,null,null,null,null,null,null,null,null,null,null,null,null,null,null,null,null,null,null,null,null,null,null,0,null,null,null,null,null,null,null,null,null,null,null,null,null,null,null,null,null,1,1900]
[null,null,null,null,null,null,null,null,null,null,null,null,null,null,null,null,null,null,null,null,null,null,null,null,null,null,null,null,null,null,null,null,0,null,null,null,null,null,null,null,null,null,null,null,null,null,null,null,null,null,1,1900]
[null,null,null,null,null,null,null,null,null,null,null,null,null,null,null,null,null,null,null,null,null,null,null,null,null,null,null,null,null,null,null,null,0,null,null,null,null,null,null,null,null,null,null,null,null,null,null,null,null,null,1,1900]
[null,null,null,null,null,null,null,null,null,null,null,null,null,null,null,null,null,null,null,null,null,null,null,null,null,null,null,null,null,null,null,null,0,null,null,null,null,null,null,null,null,null,null,null,null,null,null,null,null,null,1,1900]
[null,null,null,null,null,null,null,null,null,null,null,null,null,null,null,null,null,null,null,null,null,null,null,null,null,null,null,null,null,null,null,null,0,null,null,null,null,null,null,null,null,null,null,null,null,null,null,null,null,null,1,1900]
[null,null,null,null,null,null,null,null,null,null,null,null,null,null,null,null,null,null,null,null,null,null,null,null,null,null,null,null,null,null,null,null,0,null,null,null,null,null,null,null,null,null,null,null,null,null,null,null,null,null,1,1900]
[null,null,null,null,null,null,null,null,null,null,null,null,null,null,null,null,null,null,null,null,null,null,null,null,null,null,null,null,null,null,null,null,0,null,null,null,null,null,null,null,null,null,null,null,null,null,null,null,null,null,1,1900]
[null,null,null,null,null,null,null,null,null,null,null,null,null,null,null,null,null,null,null,null,null,null,null,null,null,null,null,null,null,null,null,null,0,null,null,null,null,null,null,null,null,null,null,null,null,null,null,null,null,null,1,1900]
[null,null,null,null,null,null,null,null,null,null,null,null,null,null,null,null,null,null,null,null,null,null,null,null,null,null,null,null,null,null,null,null,0,null,null,null,null,null,null,null,null,null,null,null,null,null,null,null,null,null,1,1900]
[null,null,null,null,null,null,null,null,null,null,null,null,null,null,null,null,null,null,null,null,null,null,null,null,null,null,null,null,null,null,null,null,0,null,null,null,null,null,null,null,null,null,null,null,null,null,null,null,null,null,1,1900]
[null,null,null,null,null,null,null,null,null,null,null,null,null,null,null,null,null,null,null,null,null,null,null,null,null,null,null,null,null,null,null,null,0,null,null,null,null,null,null,null,null,null,null,null,null,null,null,null,null,null,1,1900]
[null,null,null,null,null,null,null,null,null,null,null,null,null,null,null,null,null,null,null,null,null,null,null,null,null,null,null,null,null,null,null,null,0,null,null,null,null,null,null,null,null,null,null,null,null,null,null,null,null,null,1,1900]
[null,null,null,null,null,null,null,null,null,null,null,null,null,null,null,null,null,null,null,null,null,null,null,null,null,null,null,null,null,null,null,null,0,null,null,null,null,null,null,null,null,null,null,null,null,null,null,null,null,null,1,1900]
[null,null,null,null,null,null,null,null,null,null,null,null,null,null,null,null,null,null,null,null,null,null,null,null,null,null,null,null,null,null,null,null,0,null,null,null,null,null,null,null,null,null,null,null,null,null,null,null,null,null,1,1900]
[null,null,null,null,null,null,null,null,null,null,null,null,null,null,null,null,null,null,null,null,null,null,null,null,null,null,null,null,null,null,null,null,0,null,null,null,null,null,null,null,null,null,null,null,null,null,null,null,null,null,1,1900]
[null,null,null,null,null,null,null,null,null,null,null,null,null,null,null,null,null,null,null,null,null,null,null,null,null,null,null,null,null,null,null,null,0,null,null,null,null,null,null,null,null,null,null,null,null,null,null,null,null,null,1,1900]
[null,null,null,null,null,null,null,null,null,null,null,null,null,null,null,null,null,null,null,null,null,null,null,null,null,null,null,null,null,null,null,null,0,null,null,null,null,null,null,null,null,null,null,null,null,null,null,null,null,null,1,1900]
[null,null,null,null,null,null,null,null,null,null,null,null,null,null,null,null,null,null,null,null,null,null,null,null,null,null,null,null,null,null,null,null,0,null,null,null,null,null,null,null,null,null,null,null,null,null,null,null,null,null,1,1900]
[null,null,null,null,null,null,null,null,null,null,null,null,null,null,null,null,null,null,null,null,null,null,null,null,null,null,null,null,null,null,null,null,0,null,null,null,null,null,null,null,null,null,null,null,null,null,null,null,null,null,1,1900]
[null,null,null,null,null,null,null,null,null,null,null,null,null,null,null,null,null,null,null,null,null,null,null,null,null,null,null,null,null,null,null,null,0,null,null,null,null,null,null,null,null,null,null,null,null,null,null,null,null,null,1,1900]
[null,null,null,null,null,null,null,null,null,null,null,null,null,null,null,null,null,null,null,null,null,null,null,null,null,null,null,null,null,null,null,null,0,null,null,null,null,null,null,null,null,null,null,null,null,null,null,null,null,null,1,1900]
[null,null,null,null,null,null,null,null,null,null,null,null,null,null,null,null,null,null,null,null,null,null,null,null,null,null,null,null,null,null,null,null,0,null,null,null,null,null,null,null,null,null,null,null,null,null,null,null,null,null,1,1900]
[null,null,null,null,null,null,null,null,null,null,null,null,null,null,null,null,null,null,null,null,null,null,null,null,null,null,null,null,null,null,null,null,0,null,null,null,null,null,null,null,null,null,null,null,null,null,null,null,null,null,1,1900]
[null,null,null,null,null,null,null,null,null,null,null,null,null,null,null,null,null,null,null,null,null,null,null,null,null,null,null,null,null,null,null,null,0,null,null,null,null,null,null,null,null,null,null,null,null,null,null,null,null,null,1,1900]
[null,null,null,null,null,null,null,null,null,null,null,null,null,null,null,null,null,null,null,null,null,null,null,null,null,null,null,null,null,null,null,null,0,null,null,null,null,null,null,null,null,null,null,null,null,null,null,null,null,null,1,1900]
[null,null,null,null,null,null,null,null,null,null,null,null,null,null,null,null,null,null,null,null,null,null,null,null,null,null,null,null,null,null,null,null,0,null,null,null,null,null,null,null,null,null,null,null,null,null,null,null,null,null,1,1900]
[null,null,null,null,null,null,null,null,null,null,null,null,null,null,null,null,null,null,null,null,null,null,null,null,null,null,null,null,null,null,null,null,0,null,null,null,null,null,null,null,null,null,null,null,null,null,null,null,null,null,1,1900]
[null,null,null,null,null,null,null,null,null,null,null,null,null,null,null,null,null,null,null,null,null,null,null,null,null,null,null,null,null,null,null,null,0,null,null,null,null,null,null,null,null,null,null,null,null,null,null,null,null,null,1,1900]
[null,null,null,null,null,null,null,null,null,null,null,null,null,null,null,null,null,null,null,null,null,null,null,null,null,null,null,null,null,null,null,null,0,null,null,null,null,null,null,null,null,null,null,null,null,null,null,null,null,null,1,1900]
[null,null,null,null,null,null,null,null,null,null,null,null,null,null,null,null,null,null,null,null,null,null,null,null,null,null,null,null,null,null,null,null,0,null,null,null,null,null,null,null,null,null,null,null,null,null,null,null,null,null,1,1900]
[null,null,null,null,null,null,null,null,null,null,null,null,null,null,null,null,null,null,null,null,null,null,null,null,null,null,null,null,null,null,null,null,0,null,null,null,null,null,null,null,null,null,null,null,null,null,null,null,null,null,1,1900]
[null,null,null,null,null,null,null,null,null,null,null,null,null,null,null,null,null,null,null,null,null,null,null,null,null,null,null,null,null,null,null,null,0,null,null,null,null,null,null,null,null,null,null,null,null,null,null,null,null,null,1,1900]
[null,null,null,null,null,null,null,null,null,null,null,null,null,null,null,null,null,null,null,null,null,null,null,null,null,null,null,null,null,null,null,null,0,null,null,null,null,null,null,null,null,null,null,null,null,null,null,null,null,null,1,1900]
[null,null,null,null,null,null,null,null,null,null,null,null,null,null,null,null,null,null,null,null,null,null,null,null,null,null,null,null,null,null,null,null,null,null,null,null,null,null,null,null,null,null,null,null,null,null,null,null,null,null,1,1900]
[null,null,null,null,null,null,null,null,null,null,null,null,null,null,null,null,null,null,null,null,null,null,null,null,null,null,null,null,null,null,null,null,null,null,null,null,null,null,null,null,null,null,null,null,null,null,null,null,null,null,1,1900]
[null,null,null,null,null,null,null,null,null,null,null,null,null,null,null,null,null,null,null,null,null,null,null,null,null,null,null,null,null,null,null,null,null,null,null,null,null,null,null,null,null,null,null,null,null,null,null,null,null,null,1,1900]
[null,null,null,null,null,null,null,null,null,null,null,null,null,null,null,null,null,null,null,null,null,null,null,null,null,null,null,null,null,null,null,null,null,null,null,null,null,null,null,null,null,null,null,null,null,null,null,null,null,null,1,1900]
[null,null,null,null,null,null,null,null,null,null,null,null,null,null,null,null,null,null,null,null,null,null,null,null,null,null,null,null,null,null,null,null,null,null,null,null,null,null,null,null,null,null,null,null,null,null,null,null,null,null,1,1900]
[null,null,null,null,null,null,null,null,null,null,null,null,null,null,null,null,null,null,null,null,null,null,null,null,null,null,null,null,null,null,null,null,null,null,null,null,null,null,null,null,null,null,null,null,null,null,null,null,null,null,1,1900]
[null,null,null,null,null,null,null,null,null,null,null,null,null,null,null,null,null,null,null,null,null,null,null,null,null,null,null,null,null,null,null,null,null,null,null,null,null,null,null,null,null,null,null,null,null,null,null,null,null,null,1,1900]
[null,null,null,null,null,null,null,null,null,null,null,null,null,null,null,null,null,null,null,null,null,null,null,null,null,null,null,null,null,null,null,null,null,null,null,null,null,null,null,null,null,null,null,null,null,null,null,null,null,null,1,1900]
[null,null,null,null,null,null,null,null,null,null,null,null,null,null,null,null,null,null,null,null,null,null,null,null,null,null,null,null,null,null,null,null,null,null,null,null,null,null,null,null,null,null,null,null,null,null,null,null,null,null,1,1900]
[null,null,null,null,null,null,null,null,null,null,null,null,null,null,null,null,null,null,null,null,null,null,null,null,null,null,null,null,null,null,null,null,null,null,null,null,null,null,null,null,null,null,null,null,null,null,null,null,null,null,1,1900]
[null,null,null,null,null,null,null,null,null,null,null,null,null,null,null,null,null,null,null,null,null,null,null,null,null,null,null,null,null,null,null,null,null,null,null,null,null,null,null,null,null,null,null,null,null,null,null,null,null,null,1,1900]
[null,null,null,null,null,null,null,null,null,null,null,null,null,null,null,null,null,null,null,null,null,null,null,null,null,null,null,null,null,null,null,null,null,null,null,null,null,null,null,null,null,null,null,null,null,null,null,null,null,null,1,1900]
[null,null,null,null,null,null,null,null,null,null,null,null,null,null,null,null,null,null,null,null,null,null,null,null,null,null,null,null,null,null,null,null,null,null,null,null,null,null,null,null,null,null,null,null,null,null,null,null,null,null,1,1900]
[null,null,null,null,null,null,null,null,null,null,null,null,null,null,null,null,null,null,null,null,null,null,null,null,null,null,null,null,null,null,null,null,null,null,null,null,null,null,null,null,null,null,null,null,null,null,null,null,null,null,1,1900]
[null,null,null,null,null,null,null,null,null,null,null,null,null,null,null,null,null,null,null,null,null,null,null,null,null,null,null,null,null,null,null,null,null,null,null,null,null,null,null,null,null,null,null,null,null,null,null,null,null,null,1,1900]
[null,null,null,null,null,null,null,null,null,null,null,null,null,null,null,null,null,null,null,null,null,null,null,null,null,null,null,null,null,null,null,null,null,null,null,null,null,null,null,null,null,null,null,null,null,null,null,null,null,null,1,1900]
[null,null,null,null,null,null,null,null,null,null,null,null,null,null,null,null,null,null,null,null,null,null,null,null,null,null,null,null,null,null,null,null,null,null,null,null,null,null,null,null,null,null,null,null,null,null,null,null,null,null,1,1900]
[null,null,null,null,null,null,null,null,null,null,null,null,null,null,null,null,null,null,null,null,null,null,null,null,null,null,null,null,null,null,null,null,null,null,null,null,null,null,null,null,null,null,null,null,null,null,null,null,null,null,1,1900]
[null,null,null,null,null,null,null,null,null,null,null,null,null,null,null,null,null,null,null,null,null,null,null,null,null,null,null,null,null,null,null,null,null,null,null,null,null,null,null,null,null,null,null,null,null,null,null,null,null,null,1,1900]
[null,null,null,null,null,null,null,null,null,null,null,null,null,null,null,null,null,null,null,null,null,null,null,null,null,null,null,null,null,null,null,null,null,null,null,null,null,null,null,null,null,null,null,null,null,null,null,null,null,null,1,1900]
[null,null,null,null,null,null,null,null,null,null,null,null,null,null,null,null,null,null,null,null,null,null,null,null,null,null,null,null,null,null,null,null,null,null,null,null,null,null,null,null,null,null,null,null,null,null,null,null,null,null,1,1900]
[null,null,null,null,null,null,null,null,null,null,null,null,null,null,null,null,null,null,null,null,null,null,null,null,null,null,null,null,null,null,null,null,null,null,null,null,null,null,null,null,null,null,null,null,null,null,null,null,null,null,1,1900]
[null,null,null,null,null,null,null,null,null,null,null,null,null,null,null,null,null,null,null,null,null,null,null,null,null,null,null,null,null,null,null,null,null,null,null,null,null,null,null,null,null,null,null,null,null,null,null,null,null,null,1,1900]
[null,null,null,null,null,null,null,null,null,null,null,null,null,null,null,null,null,null,null,null,null,null,null,null,null,null,null,null,null,null,null,null,null,null,null,null,null,null,null,null,null,null,null,null,null,null,null,null,null,null,1,1900]
[null,null,null,null,null,null,null,null,null,null,null,null,null,null,null,null,null,null,null,null,null,null,null,null,null,null,null,null,null,null,null,null,null,null,null,null,null,null,null,null,null,null,null,null,null,null,null,null,null,null,1,1900]
[null,null,null,null,null,null,null,null,null,null,null,null,null,null,null,null,null,null,null,null,null,null,null,null,null,null,null,null,null,null,null,null,null,null,null,null,null,null,null,null,null,null,null,null,null,null,null,null,null,null,1,1900]
[null,null,null,null,null,null,null,null,null,null,null,null,null,null,null,null,null,null,null,null,null,null,null,null,null,null,null,null,null,null,null,null,null,null,null,null,null,null,null,null,null,null,null,null,null,null,null,null,null,null,1,1900]
[null,null,null,null,null,null,null,null,null,null,null,null,null,null,null,null,null,null,null,null,null,null,null,null,null,null,null,null,null,null,null,null,null,null,null,null,null,null,null,null,null,null,null,null,null,null,null,null,null,null,1,1900]
[null,null,null,null,null,null,null,null,null,null,null,null,null,null,null,null,null,null,null,null,null,null,null,null,null,null,null,null,null,null,null,null,null,null,null,null,null,null,null,null,null,null,null,null,null,null,null,null,null,null,1,1900]
[null,null,null,null,null,null,null,null,null,null,null,null,null,null,null,null,null,null,null,null,null,null,null,null,null,null,null,null,null,null,null,null,null,null,null,null,null,null,null,null,null,null,null,null,null,null,null,null,null,null,1,1900]
[null,null,null,null,null,null,null,null,null,null,null,null,null,null,null,null,null,null,null,null,null,null,null,null,null,null,null,null,null,null,null,null,null,null,null,null,null,null,null,null,null,null,null,null,null,null,null,null,null,null,1,1900]
[null,null,null,null,null,null,null,null,null,null,null,null,null,null,null,null,null,null,null,null,null,null,null,null,null,null,null,null,null,null,null,null,null,null,null,null,null,null,null,null,null,null,null,null,null,null,null,null,null,null,1,1900]
[null,null,null,null,null,null,null,null,null,null,null,null,null,null,null,null,null,null,null,null,null,null,null,null,null,null,null,null,null,null,null,null,null,null,null,null,null,null,null,null,null,null,null,null,null,null,null,null,null,null,1,1900]
[null,null,null,null,null,null,null,null,null,null,null,null,null,null,null,null,null,null,null,null,null,null,null,null,null,null,null,null,null,null,null,null,null,null,null,null,null,null,null,null,null,null,null,null,null,null,null,null,null,null,1,1900]
[null,null,null,null,null,null,null,null,null,null,null,null,null,null,null,null,null,null,null,null,null,null,null,null,null,null,null,null,null,null,null,null,null,null,null,null,null,null,null,null,null,null,null,null,null,null,null,null,null,null,1,1900]
[null,null,null,null,null,null,null,null,null,null,null,null,null,null,null,null,null,null,null,null,null,null,null,null,null,null,null,null,null,null,null,null,null,null,null,null,null,null,null,null,null,null,null,null,null,null,null,null,null,null,1,1900]
[null,null,null,null,null,null,null,null,null,null,null,null,null,null,null,null,null,null,null,null,null,null,null,null,null,null,null,null,null,null,null,null,null,null,null,null,null,null,null,null,null,null,null,null,null,null,null,null,null,null,1,1900]
[null,null,null,null,null,null,null,null,null,null,null,null,null,null,null,null,null,null,null,null,null,null,null,null,null,null,null,null,null,null,null,null,null,null,null,null,null,null,null,null,null,null,null,null,null,null,null,null,null,null,1,1900]
[null,null,null,null,null,null,null,null,null,null,null,null,null,null,null,null,null,null,null,null,null,null,null,null,null,null,null,null,null,null,null,null,null,null,null,null,null,null,null,null,null,null,null,null,null,null,null,null,null,null,1,1900]
[null,null,null,null,null,null,null,null,null,null,null,null,null,null,null,null,null,null,null,null,null,null,null,null,null,null,null,null,null,null,null,null,null,null,null,null,null,null,null,null,null,null,null,null,null,null,null,null,null,null,1,1900]
[null,null,null,null,null,null,null,null,null,null,null,null,null,null,null,null,null,null,null,null,null,null,null,null,null,null,null,null,null,null,null,null,null,null,null,null,null,null,null,null,null,null,null,null,null,null,null,null,null,null,1,1900]
[null,null,null,null,null,null,null,null,null,null,null,null,null,null,null,null,null,null,null,null,null,null,null,null,null,null,null,null,null,null,null,null,null,null,null,null,null,null,null,null,null,null,null,null,null,null,null,null,null,null,1,1900]
[null,null,null,null,null,null,null,null,null,null,null,null,null,null,null,null,null,null,null,null,null,null,null,null,null,null,null,null,null,null,null,null,null,null,null,null,null,null,null,null,null,null,null,null,null,null,null,null,null,null,1,1900]
[null,null,null,null,null,null,null,null,null,null,null,null,null,null,null,null,null,null,null,null,null,null,null,null,null,null,null,null,null,null,null,null,null,null,null,null,null,null,null,null,null,null,null,null,null,null,null,null,null,null,{"$f":"MONTH(B1914)","v":1},{"$f":"YEAR(B1914)","v":1900}]
[null,null,null,null,null,null,null,null,null,null,null,null,null,null,null,null,null,null,null,null,null,null,null,null,null,null,null,null,null,null,null,null,null,null,null,null,null,null,null,null,null,null,null,null,null,null,null,null,null,null,1,1900]
[null,null,null,null,null,null,null,null,null,null,null,null,null,null,null,null,null,null,null,null,null,null,null,null,null,null,null,null,null,null,null,null,null,null,null,null,null,null,null,null,null,null,null,null,null,null,null,null,null,null,1,1900]
[null,null,null,null,null,null,null,null,null,null,null,null,null,null,null,null,null,null,null,null,null,null,null,null,null,null,null,null,null,null,null,null,null,null,null,null,null,null,null,null,null,null,null,null,null,null,null,null,null,null,1,1900]
[null,null,null,null,null,null,null,null,null,null,null,null,null,null,null,null,null,null,null,null,null,null,null,null,null,null,null,null,null,null,null,null,null,null,null,null,null,null,null,null,null,null,null,null,null,null,null,null,null,null,1,1900]
[null,null,null,null,null,null,null,null,null,null,null,null,null,null,null,null,null,null,null,null,null,null,null,null,null,null,null,null,null,null,null,null,null,null,null,null,null,null,null,null,null,null,null,null,null,null,null,null,null,null,1,1900]
[null,null,null,null,null,null,null,null,null,null,null,null,null,null,null,null,null,null,null,null,null,null,null,null,null,null,null,null,null,null,null,null,null,null,null,null,null,null,null,null,null,null,null,null,null,null,null,null,null,null,1,1900]
[null,null,null,null,null,null,null,null,null,null,null,null,null,null,null,null,null,null,null,null,null,null,null,null,null,null,null,null,null,null,null,null,null,null,null,null,null,null,null,null,null,null,null,null,null,null,null,null,null,null,1,1900]
[null,null,null,null,null,null,null,null,null,null,null,null,null,null,null,null,null,null,null,null,null,null,null,null,null,null,null,null,null,null,null,null,null,null,null,null,null,null,null,null,null,null,null,null,null,null,null,null,null,null,1,1900]
[null,null,null,null,null,null,null,null,null,null,null,null,null,null,null,null,null,null,null,null,null,null,null,null,null,null,null,null,null,null,null,null,null,null,null,null,null,null,null,null,null,null,null,null,null,null,null,null,null,null,1,1900]
[null,null,null,null,null,null,null,null,null,null,null,null,null,null,null,null,null,null,null,null,null,null,null,null,null,null,null,null,null,null,null,null,null,null,null,null,null,null,null,null,null,null,null,null,null,null,null,null,null,null,1,1900]
[null,null,null,null,null,null,null,null,null,null,null,null,null,null,null,null,null,null,null,null,null,null,null,null,null,null,null,null,null,null,null,null,null,null,null,null,null,null,null,null,null,null,null,null,null,null,null,null,null,null,1,1900]
[null,null,null,null,null,null,null,null,null,null,null,null,null,null,null,null,null,null,null,null,null,null,null,null,null,null,null,null,null,null,null,null,null,null,null,null,null,null,null,null,null,null,null,null,null,null,null,null,null,null,1,1900]
[null,null,null,null,null,null,null,null,null,null,null,null,null,null,null,null,null,null,null,null,null,null,null,null,null,null,null,null,null,null,null,null,null,null,null,null,null,null,null,null,null,null,null,null,null,null,null,null,null,null,1,1900]
[null,null,null,null,null,null,null,null,null,null,null,null,null,null,null,null,null,null,null,null,null,null,null,null,null,null,null,null,null,null,null,null,null,null,null,null,null,null,null,null,null,null,null,null,null,null,null,null,null,null,1,1900]
[null,null,null,null,null,null,null,null,null,null,null,null,null,null,null,null,null,null,null,null,null,null,null,null,null,null,null,null,null,null,null,null,null,null,null,null,null,null,null,null,null,null,null,null,null,null,null,null,null,null,1,1900]
[null,null,null,null,null,null,null,null,null,null,null,null,null,null,null,null,null,null,null,null,null,null,null,null,null,null,null,null,null,null,null,null,null,null,null,null,null,null,null,null,null,null,null,null,null,null,null,null,null,null,1,1900]
[null,null,null,null,null,null,null,null,null,null,null,null,null,null,null,null,null,null,null,null,null,null,null,null,null,null,null,null,null,null,null,null,null,null,null,null,null,null,null,null,null,null,null,null,null,null,null,null,null,null,1,1900]
[null,null,null,null,null,null,null,null,null,null,null,null,null,null,null,null,null,null,null,null,null,null,null,null,null,null,null,null,null,null,null,null,null,null,null,null,null,null,null,null,null,null,null,null,null,null,null,null,null,null,1,1900]
[null,null,null,null,null,null,null,null,null,null,null,null,null,null,null,null,null,null,null,null,null,null,null,null,null,null,null,null,null,null,null,null,null,null,null,null,null,null,null,null,null,null,null,null,null,null,null,null,null,null,1,1900]
[null,null,null,null,null,null,null,null,null,null,null,null,null,null,null,null,null,null,null,null,null,null,null,null,null,null,null,null,null,null,null,null,null,null,null,null,null,null,null,null,null,null,null,null,null,null,null,null,null,null,1,1900]
[null,null,null,null,null,null,null,null,null,null,null,null,null,null,null,null,null,null,null,null,null,null,null,null,null,null,null,null,null,null,null,null,null,null,null,null,null,null,null,null,null,null,null,null,null,null,null,null,null,null,1,1900]
[null,null,null,null,null,null,null,null,null,null,null,null,null,null,null,null,null,null,null,null,null,null,null,null,null,null,null,null,null,null,null,null,null,null,null,null,null,null,null,null,null,null,null,null,null,null,null,null,null,null,1,1900]
[null,null,null,null,null,null,null,null,null,null,null,null,null,null,null,null,null,null,null,null,null,null,null,null,null,null,null,null,null,null,null,null,null,null,null,null,null,null,null,null,null,null,null,null,null,null,null,null,null,null,1,1900]
[null,null,null,null,null,null,null,null,null,null,null,null,null,null,null,null,null,null,null,null,null,null,null,null,null,null,null,null,null,null,null,null,null,null,null,null,null,null,null,null,null,null,null,null,null,null,null,null,null,null,1,1900]
[null,null,null,null,null,null,null,null,null,null,null,null,null,null,null,null,null,null,null,null,null,null,null,null,null,null,null,null,null,null,null,null,null,null,null,null,null,null,null,null,null,null,null,null,null,null,null,null,null,null,1,1900]
[null,null,null,null,null,null,null,null,null,null,null,null,null,null,null,null,null,null,null,null,null,null,null,null,null,null,null,null,null,null,null,null,null,null,null,null,null,null,null,null,null,null,null,null,null,null,null,null,null,null,1,1900]
[null,null,null,null,null,null,null,null,null,null,null,null,null,null,null,null,null,null,null,null,null,null,null,null,null,null,null,null,null,null,null,null,null,null,null,null,null,null,null,null,null,null,null,null,null,null,null,null,null,null,1,1900]
[null,null,null,null,null,null,null,null,null,null,null,null,null,null,null,null,null,null,null,null,null,null,null,null,null,null,null,null,null,null,null,null,null,null,null,null,null,null,null,null,null,null,null,null,null,null,null,null,null,null,1,1900]
[null,null,null,null,null,null,null,null,null,null,null,null,null,null,null,null,null,null,null,null,null,null,null,null,null,null,null,null,null,null,null,null,null,null,null,null,null,null,null,null,null,null,null,null,null,null,null,null,null,null,1,1900]
[null,null,null,null,null,null,null,null,null,null,null,null,null,null,null,null,null,null,null,null,null,null,null,null,null,null,null,null,null,null,null,null,null,null,null,null,null,null,null,null,null,null,null,null,null,null,null,null,null,null,1,1900]
[null,null,null,null,null,null,null,null,null,null,null,null,null,null,null,null,null,null,null,null,null,null,null,null,null,null,null,null,null,null,null,null,null,null,null,null,null,null,null,null,null,null,null,null,null,null,null,null,null,null,1,1900]
[null,null,null,null,null,null,null,null,null,null,null,null,null,null,null,null,null,null,null,null,null,null,null,null,null,null,null,null,null,null,null,null,null,null,null,null,null,null,null,null,null,null,null,null,null,null,null,null,null,null,1,1900]
[null,null,null,null,null,null,null,null,null,null,null,null,null,null,null,null,null,null,null,null,null,null,null,null,null,null,null,null,null,null,null,null,null,null,null,null,null,null,null,null,null,null,null,null,null,null,null,null,null,null,1,1900]
[null,null,null,null,null,null,null,null,null,null,null,null,null,null,null,null,null,null,null,null,null,null,null,null,null,null,null,null,null,null,null,null,null,null,null,null,null,null,null,null,null,null,null,null,null,null,null,null,null,null,1,1900]
[null,null,null,null,null,null,null,null,null,null,null,null,null,null,null,null,null,null,null,null,null,null,null,null,null,null,null,null,null,null,null,null,null,null,null,null,null,null,null,null,null,null,null,null,null,null,null,null,null,null,1,1900]
[null,null,null,null,null,null,null,null,null,null,null,null,null,null,null,null,null,null,null,null,null,null,null,null,null,null,null,null,null,null,null,null,null,null,null,null,null,null,null,null,null,null,null,null,null,null,null,null,null,null,1,1900]
[null,null,null,null,null,null,null,null,null,null,null,null,null,null,null,null,null,null,null,null,null,null,null,null,null,null,null,null,null,null,null,null,null,null,null,null,null,null,null,null,null,null,null,null,null,null,null,null,null,null,1,1900]
[null,null,null,null,null,null,null,null,null,null,null,null,null,null,null,null,null,null,null,null,null,null,null,null,null,null,null,null,null,null,null,null,null,null,null,null,null,null,null,null,null,null,null,null,null,null,null,null,null,null,1,1900]
[null,null,null,null,null,null,null,null,null,null,null,null,null,null,null,null,null,null,null,null,null,null,null,null,null,null,null,null,null,null,null,null,null,null,null,null,null,null,null,null,null,null,null,null,null,null,null,null,null,null,{"$f":"MONTH(B2234)","v":1},{"$f":"YEAR(B2234)","v":1900}]
[null,null,null,null,null,null,null,null,null,null,null,null,null,null,null,null,null,null,null,null,null,null,null,null,null,null,null,null,null,null,null,null,null,null,null,null,null,null,null,null,null,null,null,null,null,null,null,null,null,null,1,1900]
[null,null,null,null,null,null,null,null,null,null,null,null,null,null,null,null,null,null,null,null,null,null,null,null,null,null,null,null,null,null,null,null,null,null,null,null,null,null,null,null,null,null,null,null,null,null,null,null,null,null,1,1900]
[null,null,null,null,null,null,null,null,null,null,null,null,null,null,null,null,null,null,null,null,null,null,null,null,null,null,null,null,null,null,null,null,null,null,null,null,null,null,null,null,null,null,null,null,null,null,null,null,null,null,1,1900]
[null,null,null,null,null,null,null,null,null,null,null,null,null,null,null,null,null,null,null,null,null,null,null,null,null,null,null,null,null,null,null,null,null,null,null,null,null,null,null,null,null,null,null,null,null,null,null,null,null,null,1,1900]
[null,null,null,null,null,null,null,null,null,null,null,null,null,null,null,null,null,null,null,null,null,null,null,null,null,null,null,null,null,null,null,null,null,null,null,null,null,null,null,null,null,null,null,null,null,null,null,null,null,null,1,1900]
[null,null,null,null,null,null,null,null,null,null,null,null,null,null,null,null,null,null,null,null,null,null,null,null,null,null,null,null,null,null,null,null,null,null,null,null,null,null,null,null,null,null,null,null,null,null,null,null,null,null,1,1900]
[null,null,null,null,null,null,null,null,null,null,null,null,null,null,null,null,null,null,null,null,null,null,null,null,null,null,null,null,null,null,null,null,null,null,null,null,null,null,null,null,null,null,null,null,null,null,null,null,null,null,1,1900]
[null,null,null,null,null,null,null,null,null,null,null,null,null,null,null,null,null,null,null,null,null,null,null,null,null,null,null,null,null,null,null,null,null,null,null,null,null,null,null,null,null,null,null,null,null,null,null,null,null,null,1,1900]
[null,null,null,null,null,null,null,null,null,null,null,null,null,null,null,null,null,null,null,null,null,null,null,null,null,null,null,null,null,null,null,null,null,null,null,null,null,null,null,null,null,null,null,null,null,null,null,null,null,null,1,1900]
[null,null,null,null,null,null,null,null,null,null,null,null,null,null,null,null,null,null,null,null,null,null,null,null,null,null,null,null,null,null,null,null,null,null,null,null,null,null,null,null,null,null,null,null,null,null,null,null,null,null,1,1900]
[null,null,null,null,null,null,null,null,null,null,null,null,null,null,null,null,null,null,null,null,null,null,null,null,null,null,null,null,null,null,null,null,null,null,null,null,null,null,null,null,null,null,null,null,null,null,null,null,null,null,1,1900]
[null,null,null,null,null,null,null,null,null,null,null,null,null,null,null,null,null,null,null,null,null,null,null,null,null,null,null,null,null,null,null,null,null,null,null,null,null,null,null,null,null,null,null,null,null,null,null,null,null,null,1,1900]
[null,null,null,null,null,null,null,null,null,null,null,null,null,null,null,null,null,null,null,null,null,null,null,null,null,null,null,null,null,null,null,null,null,null,null,null,null,null,null,null,null,null,null,null,null,null,null,null,null,null,1,1900]
[null,null,null,null,null,null,null,null,null,null,null,null,null,null,null,null,null,null,null,null,null,null,null,null,null,null,null,null,null,null,null,null,null,null,null,null,null,null,null,null,null,null,null,null,null,null,null,null,null,null,1,1900]
[null,null,null,null,null,null,null,null,null,null,null,null,null,null,null,null,null,null,null,null,null,null,null,null,null,null,null,null,null,null,null,null,null,null,null,null,null,null,null,null,null,null,null,null,null,null,null,null,null,null,1,1900]
[null,null,null,null,null,null,null,null,null,null,null,null,null,null,null,null,null,null,null,null,null,null,null,null,null,null,null,null,null,null,null,null,null,null,null,null,null,null,null,null,null,null,null,null,null,null,null,null,null,null,1,1900]
[null,null,null,null,null,null,null,null,null,null,null,null,null,null,null,null,null,null,null,null,null,null,null,null,null,null,null,null,null,null,null,null,null,null,null,null,null,null,null,null,null,null,null,null,null,null,null,null,null,null,1,1900]
[null,null,null,null,null,null,null,null,null,null,null,null,null,null,null,null,null,null,null,null,null,null,null,null,null,null,null,null,null,null,null,null,null,null,null,null,null,null,null,null,null,null,null,null,null,null,null,null,null,null,1,1900]
[null,null,null,null,null,null,null,null,null,null,null,null,null,null,null,null,null,null,null,null,null,null,null,null,null,null,null,null,null,null,null,null,null,null,null,null,null,null,null,null,null,null,null,null,null,null,null,null,null,null,1,1900]
[null,null,null,null,null,null,null,null,null,null,null,null,null,null,null,null,null,null,null,null,null,null,null,null,null,null,null,null,null,null,null,null,null,null,null,null,null,null,null,null,null,null,null,null,null,null,null,null,null,null,1,1900]
[null,null,null,null,null,null,null,null,null,null,null,null,null,null,null,null,null,null,null,null,null,null,null,null,null,null,null,null,null,null,null,null,null,null,null,null,null,null,null,null,null,null,null,null,null,null,null,null,null,null,1,1900]
[null,null,null,null,null,null,null,null,null,null,null,null,null,null,null,null,null,null,null,null,null,null,null,null,null,null,null,null,null,null,null,null,null,null,null,null,null,null,null,null,null,null,null,null,null,null,null,null,null,null,1,1900]
[null,null,null,null,null,null,null,null,null,null,null,null,null,null,null,null,null,null,null,null,null,null,null,null,null,null,null,null,null,null,null,null,null,null,null,null,null,null,null,null,null,null,null,null,null,null,null,null,null,null,1,1900]
[null,null,null,null,null,null,null,null,null,null,null,null,null,null,null,null,null,null,null,null,null,null,null,null,null,null,null,null,null,null,null,null,null,null,null,null,null,null,null,null,null,null,null,null,null,null,null,null,null,null,1,1900]
[null,null,null,null,null,null,null,null,null,null,null,null,null,null,null,null,null,null,null,null,null,null,null,null,null,null,null,null,null,null,null,null,null,null,null,null,null,null,null,null,null,null,null,null,null,null,null,null,null,null,1,1900]
[null,null,null,null,null,null,null,null,null,null,null,null,null,null,null,null,null,null,null,null,null,null,null,null,null,null,null,null,null,null,null,null,null,null,null,null,null,null,null,null,null,null,null,null,null,null,null,null,null,null,1,1900]
[null,null,null,null,null,null,null,null,null,null,null,null,null,null,null,null,null,null,null,null,null,null,null,null,null,null,null,null,null,null,null,null,null,null,null,null,null,null,null,null,null,null,null,null,null,null,null,null,null,null,1,1900]
[null,null,null,null,null,null,null,null,null,null,null,null,null,null,null,null,null,null,null,null,null,null,null,null,null,null,null,null,null,null,null,null,null,null,null,null,null,null,null,null,null,null,null,null,null,null,null,null,null,null,1,1900]
[null,null,null,null,null,null,null,null,null,null,null,null,null,null,null,null,null,null,null,null,null,null,null,null,null,null,null,null,null,null,null,null,null,null,null,null,null,null,null,null,null,null,null,null,null,null,null,null,null,null,1,1900]
[null,null,null,null,null,null,null,null,null,null,null,null,null,null,null,null,null,null,null,null,null,null,null,null,null,null,null,null,null,null,null,null,null,null,null,null,null,null,null,null,null,null,null,null,null,null,null,null,null,null,1,1900]
[null,null,null,null,null,null,null,null,null,null,null,null,null,null,null,null,null,null,null,null,null,null,null,null,null,null,null,null,null,null,null,null,null,null,null,null,null,null,null,null,null,null,null,null,null,null,null,null,null,null,1,1900]
[null,null,null,null,null,null,null,null,null,null,null,null,null,null,null,null,null,null,null,null,null,null,null,null,null,null,null,null,null,null,null,null,null,null,null,null,null,null,null,null,null,null,null,null,null,null,null,null,null,null,1,1900]
[null,null,null,null,null,null,null,null,null,null,null,null,null,null,null,null,null,null,null,null,null,null,null,null,null,null,null,null,null,null,null,null,null,null,null,null,null,null,null,null,null,null,null,null,null,null,null,null,null,null,1,1900]
[null,null,null,null,null,null,null,null,null,null,null,null,null,null,null,null,null,null,null,null,null,null,null,null,null,null,null,null,null,null,null,null,null,null,null,null,null,null,null,null,null,null,null,null,null,null,null,null,null,null,1,1900]
[null,null,null,null,null,null,null,null,null,null,null,null,null,null,null,null,null,null,null,null,null,null,null,null,null,null,null,null,null,null,null,null,null,null,null,null,null,null,null,null,null,null,null,null,null,null,null,null,null,null,1,1900]
[null,null,null,null,null,null,null,null,null,null,null,null,null,null,null,null,null,null,null,null,null,null,null,null,null,null,null,null,null,null,null,null,null,null,null,null,null,null,null,null,null,null,null,null,null,null,null,null,null,null,1,1900]
[null,null,null,null,null,null,null,null,null,null,null,null,null,null,null,null,null,null,null,null,null,null,null,null,null,null,null,null,null,null,null,null,null,null,null,null,null,null,null,null,null,null,null,null,null,null,null,null,null,null,1,1900]
[null,null,null,null,null,null,null,null,null,null,null,null,null,null,null,null,null,null,null,null,null,null,null,null,null,null,null,null,null,null,null,null,null,null,null,null,null,null,null,null,null,null,null,null,null,null,null,null,null,null,1,1900]
[null,null,null,null,null,null,null,null,null,null,null,null,null,null,null,null,null,null,null,null,null,null,null,null,null,null,null,null,null,null,null,null,null,null,null,null,null,null,null,null,null,null,null,null,null,null,null,null,null,null,1,1900]
[null,null,null,null,null,null,null,null,null,null,null,null,null,null,null,null,null,null,null,null,null,null,null,null,null,null,null,null,null,null,null,null,null,null,null,null,null,null,null,null,null,null,null,null,null,null,null,null,null,null,1,1900]
[null,null,null,null,null,null,null,null,null,null,null,null,null,null,null,null,null,null,null,null,null,null,null,null,null,null,null,null,null,null,null,null,null,null,null,null,null,null,null,null,null,null,null,null,null,null,null,null,null,null,1,1900]
[null,null,null,null,null,null,null,null,null,null,null,null,null,null,null,null,null,null,null,null,null,null,null,null,null,null,null,null,null,null,null,null,null,null,null,null,null,null,null,null,null,null,null,null,null,null,null,null,null,null,1,1900]
[null,null,null,null,null,null,null,null,null,null,null,null,null,null,null,null,null,null,null,null,null,null,null,null,null,null,null,null,null,null,null,null,null,null,null,null,null,null,null,null,null,null,null,null,null,null,null,null,null,null,1,1900]
[null,null,null,null,null,null,null,null,null,null,null,null,null,null,null,null,null,null,null,null,null,null,null,null,null,null,null,null,null,null,null,null,null,null,null,null,null,null,null,null,null,null,null,null,null,null,null,null,null,null,1,1900]
[null,null,null,null,null,null,null,null,null,null,null,null,null,null,null,null,null,null,null,null,null,null,null,null,null,null,null,null,null,null,null,null,null,null,null,null,null,null,null,null,null,null,null,null,null,null,null,null,null,null,1,1900]
[null,null,null,null,null,null,null,null,null,null,null,null,null,null,null,null,null,null,null,null,null,null,null,null,null,null,null,null,null,null,null,null,null,null,null,null,null,null,null,null,null,null,null,null,null,null,null,null,null,null,1,1900]
[null,null,null,null,null,null,null,null,null,null,null,null,null,null,null,null,null,null,null,null,null,null,null,null,null,null,null,null,null,null,null,null,null,null,null,null,null,null,null,null,null,null,null,null,null,null,null,null,null,null,1,1900]
[null,null,null,null,null,null,null,null,null,null,null,null,null,null,null,null,null,null,null,null,null,null,null,null,null,null,null,null,null,null,null,null,null,null,null,null,null,null,null,null,null,null,null,null,null,null,null,null,null,null,1,1900]
[null,null,null,null,null,null,null,null,null,null,null,null,null,null,null,null,null,null,null,null,null,null,null,null,null,null,null,null,null,null,null,null,null,null,null,null,null,null,null,null,null,null,null,null,null,null,null,null,null,null,1,1900]
[null,null,null,null,null,null,null,null,null,null,null,null,null,null,null,null,null,null,null,null,null,null,null,null,null,null,null,null,null,null,null,null,null,null,null,null,null,null,null,null,null,null,null,null,null,null,null,null,null,null,1,1900]
[null,null,null,null,null,null,null,null,null,null,null,null,null,null,null,null,null,null,null,null,null,null,null,null,null,null,null,null,null,null,null,null,null,null,null,null,null,null,null,null,null,null,null,null,null,null,null,null,null,null,1,1900]
[null,null,null,null,null,null,null,null,null,null,null,null,null,null,null,null,null,null,null,null,null,null,null,null,null,null,null,null,null,null,null,null,null,null,null,null,null,null,null,null,null,null,null,null,null,null,null,null,null,null,1,1900]
[null,null,null,null,null,null,null,null,null,null,null,null,null,null,null,null,null,null,null,null,null,null,null,null,null,null,null,null,null,null,null,null,null,null,null,null,null,null,null,null,null,null,null,null,null,null,null,null,null,null,1,1900]
[null,null,null,null,null,null,null,null,null,null,null,null,null,null,null,null,null,null,null,null,null,null,null,null,null,null,null,null,null,null,null,null,null,null,null,null,null,null,null,null,null,null,null,null,null,null,null,null,null,null,1,1900]
[null,null,null,null,null,null,null,null,null,null,null,null,null,null,null,null,null,null,null,null,null,null,null,null,null,null,null,null,null,null,null,null,null,null,null,null,null,null,null,null,null,null,null,null,null,null,null,null,null,null,1,1900]
[null,null,null,null,null,null,null,null,null,null,null,null,null,null,null,null,null,null,null,null,null,null,null,null,null,null,null,null,null,null,null,null,null,null,null,null,null,null,null,null,null,null,null,null,null,null,null,null,null,null,1,1900]
[null,null,null,null,null,null,null,null,null,null,null,null,null,null,null,null,null,null,null,null,null,null,null,null,null,null,null,null,null,null,null,null,null,null,null,null,null,null,null,null,null,null,null,null,null,null,null,null,null,null,1,1900]
[null,null,null,null,null,null,null,null,null,null,null,null,null,null,null,null,null,null,null,null,null,null,null,null,null,null,null,null,null,null,null,null,null,null,null,null,null,null,null,null,null,null,null,null,null,null,null,null,null,null,1,1900]
[null,null,null,null,null,null,null,null,null,null,null,null,null,null,null,null,null,null,null,null,null,null,null,null,null,null,null,null,null,null,null,null,null,null,null,null,null,null,null,null,null,null,null,null,null,null,null,null,null,null,1,1900]
[null,null,null,null,null,null,null,null,null,null,null,null,null,null,null,null,null,null,null,null,null,null,null,null,null,null,null,null,null,null,null,null,null,null,null,null,null,null,null,null,null,null,null,null,null,null,null,null,null,null,1,1900]
[null,null,null,null,null,null,null,null,null,null,null,null,null,null,null,null,null,null,null,null,null,null,null,null,null,null,null,null,null,null,null,null,null,null,null,null,null,null,null,null,null,null,null,null,null,null,null,null,null,null,1,1900]
[null,null,null,null,null,null,null,null,null,null,null,null,null,null,null,null,null,null,null,null,null,null,null,null,null,null,null,null,null,null,null,null,null,null,null,null,null,null,null,null,null,null,null,null,null,null,null,null,null,null,1,1900]
[null,null,null,null,null,null,null,null,null,null,null,null,null,null,null,null,null,null,null,null,null,null,null,null,null,null,null,null,null,null,null,null,null,null,null,null,null,null,null,null,null,null,null,null,null,null,null,null,null,null,1,1900]
[null,null,null,null,null,null,null,null,null,null,null,null,null,null,null,null,null,null,null,null,null,null,null,null,null,null,null,null,null,null,null,null,null,null,null,null,null,null,null,null,null,null,null,null,null,null,null,null,null,null,1,1900]
[null,null,null,null,null,null,null,null,null,null,null,null,null,null,null,null,null,null,null,null,null,null,null,null,null,null,null,null,null,null,null,null,null,null,null,null,null,null,null,null,null,null,null,null,null,null,null,null,null,null,1,1900]
[null,null,null,null,null,null,null,null,null,null,null,null,null,null,null,null,null,null,null,null,null,null,null,null,null,null,null,null,null,null,null,null,null,null,null,null,null,null,null,null,null,null,null,null,null,null,null,null,null,null,1,1900]
[null,null,null,null,null,null,null,null,null,null,null,null,null,null,null,null,null,null,null,null,null,null,null,null,null,null,null,null,null,null,null,null,null,null,null,null,null,null,null,null,null,null,null,null,null,null,null,null,null,null,1,1900]
[null,null,null,null,null,null,null,null,null,null,null,null,null,null,null,null,null,null,null,null,null,null,null,null,null,null,null,null,null,null,null,null,null,null,null,null,null,null,null,null,null,null,null,null,null,null,null,null,null,null,1,1900]
[null,null,null,null,null,null,null,null,null,null,null,null,null,null,null,null,null,null,null,null,null,null,null,null,null,null,null,null,null,null,null,null,null,null,null,null,null,null,null,null,null,null,null,null,null,null,null,null,null,null,1,1900]
[null,null,null,null,null,null,null,null,null,null,null,null,null,null,null,null,null,null,null,null,null,null,null,null,null,null,null,null,null,null,null,null,null,null,null,null,null,null,null,null,null,null,null,null,null,null,null,null,null,null,1,1900]
[null,null,null,null,null,null,null,null,null,null,null,null,null,null,null,null,null,null,null,null,null,null,null,null,null,null,null,null,null,null,null,null,null,null,null,null,null,null,null,null,null,null,null,null,null,null,null,null,null,null,1,1900]
[null,null,null,null,null,null,null,null,null,null,null,null,null,null,null,null,null,null,null,null,null,null,null,null,null,null,null,null,null,null,null,null,null,null,null,null,null,null,null,null,null,null,null,null,null,null,null,null,null,null,1,1900]
[null,null,null,null,null,null,null,null,null,null,null,null,null,null,null,null,null,null,null,null,null,null,null,null,null,null,null,null,null,null,null,null,null,null,null,null,null,null,null,null,null,null,null,null,null,null,null,null,null,null,1,1900]
[null,null,null,null,null,null,null,null,null,null,null,null,null,null,null,null,null,null,null,null,null,null,null,null,null,null,null,null,null,null,null,null,null,null,null,null,null,null,null,null,null,null,null,null,null,null,null,null,null,null,1,1900]
[null,null,null,null,null,null,null,null,null,null,null,null,null,null,null,null,null,null,null,null,null,null,null,null,null,null,null,null,null,null,null,null,null,null,null,null,null,null,null,null,null,null,null,null,null,null,null,null,null,null,1,1900]
[null,null,null,null,null,null,null,null,null,null,null,null,null,null,null,null,null,null,null,null,null,null,null,null,null,null,null,null,null,null,null,null,null,null,null,null,null,null,null,null,null,null,null,null,null,null,null,null,null,null,1,1900]
[null,null,null,null,null,null,null,null,null,null,null,null,null,null,null,null,null,null,null,null,null,null,null,null,null,null,null,null,null,null,null,null,null,null,null,null,null,null,null,null,null,null,null,null,null,null,null,null,null,null,1,1900]
[null,null,null,null,null,null,null,null,null,null,null,null,null,null,null,null,null,null,null,null,null,null,null,null,null,null,null,null,null,null,null,null,null,null,null,null,null,null,null,null,null,null,null,null,null,null,null,null,null,null,1,1900]
[null,null,null,null,null,null,null,null,null,null,null,null,null,null,null,null,null,null,null,null,null,null,null,null,null,null,null,null,null,null,null,null,null,null,null,null,null,null,null,null,null,null,null,null,null,null,null,null,null,null,1,1900]
[null,null,null,null,null,null,null,null,null,null,null,null,null,null,null,null,null,null,null,null,null,null,null,null,null,null,null,null,null,null,null,null,null,null,null,null,null,null,null,null,null,null,null,null,null,null,null,null,null,null,1,1900]
[null,null,null,null,null,null,null,null,null,null,null,null,null,null,null,null,null,null,null,null,null,null,null,null,null,null,null,null,null,null,null,null,null,null,null,null,null,null,null,null,null,null,null,null,null,null,null,null,null,null,1,1900]
[null,null,null,null,null,null,null,null,null,null,null,null,null,null,null,null,null,null,null,null,null,null,null,null,null,null,null,null,null,null,null,null,null,null,null,null,null,null,null,null,null,null,null,null,null,null,null,null,null,null,1,1900]
[null,null,null,null,null,null,null,null,null,null,null,null,null,null,null,null,null,null,null,null,null,null,null,null,null,null,null,null,null,null,null,null,null,null,null,null,null,null,null,null,null,null,null,null,null,null,null,null,null,null,1,1900]
[null,null,null,null,null,null,null,null,null,null,null,null,null,null,null,null,null,null,null,null,null,null,null,null,null,null,null,null,null,null,null,null,null,null,null,null,null,null,null,null,null,null,null,null,null,null,null,null,null,null,1,1900]
[null,null,null,null,null,null,null,null,null,null,null,null,null,null,null,null,null,null,null,null,null,null,null,null,null,null,null,null,null,null,null,null,null,null,null,null,null,null,null,null,null,null,null,null,null,null,null,null,null,null,1,1900]
[null,null,null,null,null,null,null,null,null,null,null,null,null,null,null,null,null,null,null,null,null,null,null,null,null,null,null,null,null,null,null,null,null,null,null,null,null,null,null,null,null,null,null,null,null,null,null,null,null,null,1,1900]
[null,null,null,null,null,null,null,null,null,null,null,null,null,null,null,null,null,null,null,null,null,null,null,null,null,null,null,null,null,null,null,null,null,null,null,null,null,null,null,null,null,null,null,null,null,null,null,null,null,null,1,1900]
[null,null,null,null,null,null,null,null,null,null,null,null,null,null,null,null,null,null,null,null,null,null,null,null,null,null,null,null,null,null,null,null,null,null,null,null,null,null,null,null,null,null,null,null,null,null,null,null,null,null,1,1900]
[null,null,null,null,null,null,null,null,null,null,null,null,null,null,null,null,null,null,null,null,null,null,null,null,null,null,null,null,null,null,null,null,null,null,null,null,null,null,null,null,null,null,null,null,null,null,null,null,null,null,1,1900]
[null,null,null,null,null,null,null,null,null,null,null,null,null,null,null,null,null,null,null,null,null,null,null,null,null,null,null,null,null,null,null,null,null,null,null,null,null,null,null,null,null,null,null,null,null,null,null,null,null,null,1,1900]
[null,null,null,null,null,null,null,null,null,null,null,null,null,null,null,null,null,null,null,null,null,null,null,null,null,null,null,null,null,null,null,null,null,null,null,null,null,null,null,null,null,null,null,null,null,null,null,null,null,null,1,1900]
[null,null,null,null,null,null,null,null,null,null,null,null,null,null,null,null,null,null,null,null,null,null,null,null,null,null,null,null,null,null,null,null,null,null,null,null,null,null,null,null,null,null,null,null,null,null,null,null,null,null,1,1900]
[null,null,null,null,null,null,null,null,null,null,null,null,null,null,null,null,null,null,null,null,null,null,null,null,null,null,null,null,null,null,null,null,null,null,null,null,null,null,null,null,null,null,null,null,null,null,null,null,null,null,1,1900]
[null,null,null,null,null,null,null,null,null,null,null,null,null,null,null,null,null,null,null,null,null,null,null,null,null,null,null,null,null,null,null,null,null,null,null,null,null,null,null,null,null,null,null,null,null,null,null,null,null,null,1,1900]
[null,null,null,null,null,null,null,null,null,null,null,null,null,null,null,null,null,null,null,null,null,null,null,null,null,null,null,null,null,null,null,null,null,null,null,null,null,null,null,null,null,null,null,null,null,null,null,null,null,null,1,1900]
[null,null,null,null,null,null,null,null,null,null,null,null,null,null,null,null,null,null,null,null,null,null,null,null,null,null,null,null,null,null,null,null,null,null,null,null,null,null,null,null,null,null,null,null,null,null,null,null,null,null,1,1900]
[null,null,null,null,null,null,null,null,null,null,null,null,null,null,null,null,null,null,null,null,null,null,null,null,null,null,null,null,null,null,null,null,null,null,null,null,null,null,null,null,null,null,null,null,null,null,null,null,null,null,1,1900]
[null,null,null,null,null,null,null,null,null,null,null,null,null,null,null,null,null,null,null,null,null,null,null,null,null,null,null,null,null,null,null,null,null,null,null,null,null,null,null,null,null,null,null,null,null,null,null,null,null,null,1,1900]
[null,null,null,null,null,null,null,null,null,null,null,null,null,null,null,null,null,null,null,null,null,null,null,null,null,null,null,null,null,null,null,null,null,null,null,null,null,null,null,null,null,null,null,null,null,null,null,null,null,null,1,1900]
[null,null,null,null,null,null,null,null,null,null,null,null,null,null,null,null,null,null,null,null,null,null,null,null,null,null,null,null,null,null,null,null,null,null,null,null,null,null,null,null,null,null,null,null,null,null,null,null,null,null,1,1900]
[null,null,null,null,null,null,null,null,null,null,null,null,null,null,null,null,null,null,null,null,null,null,null,null,null,null,null,null,null,null,null,null,null,null,null,null,null,null,null,null,null,null,null,null,null,null,null,null,null,null,1,1900]
[null,null,null,null,null,null,null,null,null,null,null,null,null,null,null,null,null,null,null,null,null,null,null,null,null,null,null,null,null,null,null,null,null,null,null,null,null,null,null,null,null,null,null,null,null,null,null,null,null,null,1,1900]
[null,null,null,null,null,null,null,null,null,null,null,null,null,null,null,null,null,null,null,null,null,null,null,null,null,null,null,null,null,null,null,null,null,null,null,null,null,null,null,null,null,null,null,null,null,null,null,null,null,null,1,1900]
[null,null,null,null,null,null,null,null,null,null,null,null,null,null,null,null,null,null,null,null,null,null,null,null,null,null,null,null,null,null,null,null,null,null,null,null,null,null,null,null,null,null,null,null,null,null,null,null,null,null,1,1900]
[null,null,null,null,null,null,null,null,null,null,null,null,null,null,null,null,null,null,null,null,null,null,null,null,null,null,null,null,null,null,null,null,null,null,null,null,null,null,null,null,null,null,null,null,null,null,null,null,null,null,1,1900]
[null,null,null,null,null,null,null,null,null,null,null,null,null,null,null,null,null,null,null,null,null,null,null,null,null,null,null,null,null,null,null,null,null,null,null,null,null,null,null,null,null,null,null,null,null,null,null,null,null,null,1,1900]
[null,null,null,null,null,null,null,null,null,null,null,null,null,null,null,null,null,null,null,null,null,null,null,null,null,null,null,null,null,null,null,null,null,null,null,null,null,null,null,null,null,null,null,null,null,null,null,null,null,null,1,1900]
[null,null,null,null,null,null,null,null,null,null,null,null,null,null,null,null,null,null,null,null,null,null,null,null,null,null,null,null,null,null,null,null,null,null,null,null,null,null,null,null,null,null,null,null,null,null,null,null,null,null,1,1900]
[null,null,null,null,null,null,null,null,null,null,null,null,null,null,null,null,null,null,null,null,null,null,null,null,null,null,null,null,null,null,null,null,null,null,null,null,null,null,null,null,null,null,null,null,null,null,null,null,null,null,1,1900]
[null,null,null,null,null,null,null,null,null,null,null,null,null,null,null,null,null,null,null,null,null,null,null,null,null,null,null,null,null,null,null,null,null,null,null,null,null,null,null,null,null,null,null,null,null,null,null,null,null,null,1,1900]
[null,null,null,null,null,null,null,null,null,null,null,null,null,null,null,null,null,null,null,null,null,null,null,null,null,null,null,null,null,null,null,null,null,null,null,null,null,null,null,null,null,null,null,null,null,null,null,null,null,null,1,1900]
[null,null,null,null,null,null,null,null,null,null,null,null,null,null,null,null,null,null,null,null,null,null,null,null,null,null,null,null,null,null,null,null,null,null,null,null,null,null,null,null,null,null,null,null,null,null,null,null,null,null,1,1900]
[null,null,null,null,null,null,null,null,null,null,null,null,null,null,null,null,null,null,null,null,null,null,null,null,null,null,null,null,null,null,null,null,null,null,null,null,null,null,null,null,null,null,null,null,null,null,null,null,null,null,1,1900]
[null,null,null,null,null,null,null,null,null,null,null,null,null,null,null,null,null,null,null,null,null,null,null,null,null,null,null,null,null,null,null,null,null,null,null,null,null,null,null,null,null,null,null,null,null,null,null,null,null,null,1,1900]
[null,null,null,null,null,null,null,null,null,null,null,null,null,null,null,null,null,null,null,null,null,null,null,null,null,null,null,null,null,null,null,null,null,null,null,null,null,null,null,null,null,null,null,null,null,null,null,null,null,null,1,1900]
[null,null,null,null,null,null,null,null,null,null,null,null,null,null,null,null,null,null,null,null,null,null,null,null,null,null,null,null,null,null,null,null,null,null,null,null,null,null,null,null,null,null,null,null,null,null,null,null,null,null,{"$f":"MONTH(B3194)","v":1},{"$f":"YEAR(B3194)","v":1900}]
[null,null,null,null,null,null,null,null,null,null,null,null,null,null,null,null,null,null,null,null,null,null,null,null,null,null,null,null,null,null,null,null,null,null,null,null,null,null,null,null,null,null,null,null,null,null,null,null,null,null,1,1900]
[null,null,null,null,null,null,null,null,null,null,null,null,null,null,null,null,null,null,null,null,null,null,null,null,null,null,null,null,null,null,null,null,null,null,null,null,null,null,null,null,null,null,null,null,null,null,null,null,null,null,1,1900]
[null,null,null,null,null,null,null,null,null,null,null,null,null,null,null,null,null,null,null,null,null,null,null,null,null,null,null,null,null,null,null,null,null,null,null,null,null,null,null,null,null,null,null,null,null,null,null,null,null,null,1,1900]
[null,null,null,null,null,null,null,null,null,null,null,null,null,null,null,null,null,null,null,null,null,null,null,null,null,null,null,null,null,null,null,null,null,null,null,null,null,null,null,null,null,null,null,null,null,null,null,null,null,null,1,1900]
[null,null,null,null,null,null,null,null,null,null,null,null,null,null,null,null,null,null,null,null,null,null,null,null,null,null,null,null,null,null,null,null,null,null,null,null,null,null,null,null,null,null,null,null,null,null,null,null,null,null,1,1900]
[null,null,null,null,null,null,null,null,null,null,null,null,null,null,null,null,null,null,null,null,null,null,null,null,null,null,null,null,null,null,null,null,null,null,null,null,null,null,null,null,null,null,null,null,null,null,null,null,null,null,1,1900]
[null,null,null,null,null,null,null,null,null,null,null,null,null,null,null,null,null,null,null,null,null,null,null,null,null,null,null,null,null,null,null,null,null,null,null,null,null,null,null,null,null,null,null,null,null,null,null,null,null,null,1,1900]
[null,null,null,null,null,null,null,null,null,null,null,null,null,null,null,null,null,null,null,null,null,null,null,null,null,null,null,null,null,null,null,null,null,null,null,null,null,null,null,null,null,null,null,null,null,null,null,null,null,null,1,1900]
[null,null,null,null,null,null,null,null,null,null,null,null,null,null,null,null,null,null,null,null,null,null,null,null,null,null,null,null,null,null,null,null,null,null,null,null,null,null,null,null,null,null,null,null,null,null,null,null,null,null,1,1900]
[null,null,null,null,null,null,null,null,null,null,null,null,null,null,null,null,null,null,null,null,null,null,null,null,null,null,null,null,null,null,null,null,null,null,null,null,null,null,null,null,null,null,null,null,null,null,null,null,null,null,1,1900]
[null,null,null,null,null,null,null,null,null,null,null,null,null,null,null,null,null,null,null,null,null,null,null,null,null,null,null,null,null,null,null,null,null,null,null,null,null,null,null,null,null,null,null,null,null,null,null,null,null,null,1,1900]
[null,null,null,null,null,null,null,null,null,null,null,null,null,null,null,null,null,null,null,null,null,null,null,null,null,null,null,null,null,null,null,null,null,null,null,null,null,null,null,null,null,null,null,null,null,null,null,null,null,null,1,1900]
[null,null,null,null,null,null,null,null,null,null,null,null,null,null,null,null,null,null,null,null,null,null,null,null,null,null,null,null,null,null,null,null,null,null,null,null,null,null,null,null,null,null,null,null,null,null,null,null,null,null,1,1900]
[null,null,null,null,null,null,null,null,null,null,null,null,null,null,null,null,null,null,null,null,null,null,null,null,null,null,null,null,null,null,null,null,null,null,null,null,null,null,null,null,null,null,null,null,null,null,null,null,null,null,1,1900]
[null,null,null,null,null,null,null,null,null,null,null,null,null,null,null,null,null,null,null,null,null,null,null,null,null,null,null,null,null,null,null,null,null,null,null,null,null,null,null,null,null,null,null,null,null,null,null,null,null,null,1,1900]
[null,null,null,null,null,null,null,null,null,null,null,null,null,null,null,null,null,null,null,null,null,null,null,null,null,null,null,null,null,null,null,null,null,null,null,null,null,null,null,null,null,null,null,null,null,null,null,null,null,null,1,1900]
[null,null,null,null,null,null,null,null,null,null,null,null,null,null,null,null,null,null,null,null,null,null,null,null,null,null,null,null,null,null,null,null,null,null,null,null,null,null,null,null,null,null,null,null,null,null,null,null,null,null,1,1900]
[null,null,null,null,null,null,null,null,null,null,null,null,null,null,null,null,null,null,null,null,null,null,null,null,null,null,null,null,null,null,null,null,null,null,null,null,null,null,null,null,null,null,null,null,null,null,null,null,null,null,1,1900]
[null,null,null,null,null,null,null,null,null,null,null,null,null,null,null,null,null,null,null,null,null,null,null,null,null,null,null,null,null,null,null,null,null,null,null,null,null,null,null,null,null,null,null,null,null,null,null,null,null,null,1,1900]
[null,null,null,null,null,null,null,null,null,null,null,null,null,null,null,null,null,null,null,null,null,null,null,null,null,null,null,null,null,null,null,null,null,null,null,null,null,null,null,null,null,null,null,null,null,null,null,null,null,null,1,1900]
[null,null,null,null,null,null,null,null,null,null,null,null,null,null,null,null,null,null,null,null,null,null,null,null,null,null,null,null,null,null,null,null,null,null,null,null,null,null,null,null,null,null,null,null,null,null,null,null,null,null,1,1900]
[null,null,null,null,null,null,null,null,null,null,null,null,null,null,null,null,null,null,null,null,null,null,null,null,null,null,null,null,null,null,null,null,null,null,null,null,null,null,null,null,null,null,null,null,null,null,null,null,null,null,1,1900]
[null,null,null,null,null,null,null,null,null,null,null,null,null,null,null,null,null,null,null,null,null,null,null,null,null,null,null,null,null,null,null,null,null,null,null,null,null,null,null,null,null,null,null,null,null,null,null,null,null,null,1,1900]
[null,null,null,null,null,null,null,null,null,null,null,null,null,null,null,null,null,null,null,null,null,null,null,null,null,null,null,null,null,null,null,null,null,null,null,null,null,null,null,null,null,null,null,null,null,null,null,null,null,null,1,1900]
[null,null,null,null,null,null,null,null,null,null,null,null,null,null,null,null,null,null,null,null,null,null,null,null,null,null,null,null,null,null,null,null,null,null,null,null,null,null,null,null,null,null,null,null,null,null,null,null,null,null,1,1900]
[null,null,null,null,null,null,null,null,null,null,null,null,null,null,null,null,null,null,null,null,null,null,null,null,null,null,null,null,null,null,null,null,null,null,null,null,null,null,null,null,null,null,null,null,null,null,null,null,null,null,1,1900]
[null,null,null,null,null,null,null,null,null,null,null,null,null,null,null,null,null,null,null,null,null,null,null,null,null,null,null,null,null,null,null,null,null,null,null,null,null,null,null,null,null,null,null,null,null,null,null,null,null,null,1,1900]
[null,null,null,null,null,null,null,null,null,null,null,null,null,null,null,null,null,null,null,null,null,null,null,null,null,null,null,null,null,null,null,null,null,null,null,null,null,null,null,null,null,null,null,null,null,null,null,null,null,null,1,1900]
[null,null,null,null,null,null,null,null,null,null,null,null,null,null,null,null,null,null,null,null,null,null,null,null,null,null,null,null,null,null,null,null,null,null,null,null,null,null,null,null,null,null,null,null,null,null,null,null,null,null,1,1900]
[null,null,null,null,null,null,null,null,null,null,null,null,null,null,null,null,null,null,null,null,null,null,null,null,null,null,null,null,null,null,null,null,null,null,null,null,null,null,null,null,null,null,null,null,null,null,null,null,null,null,1,1900]
[null,null,null,null,null,null,null,null,null,null,null,null,null,null,null,null,null,null,null,null,null,null,null,null,null,null,null,null,null,null,null,null,null,null,null,null,null,null,null,null,null,null,null,null,null,null,null,null,null,null,1,1900]
[null,null,null,null,null,null,null,null,null,null,null,null,null,null,null,null,null,null,null,null,null,null,null,null,null,null,null,null,null,null,null,null,null,null,null,null,null,null,null,null,null,null,null,null,null,null,null,null,null,null,1,1900]
[null,null,null,null,null,null,null,null,null,null,null,null,null,null,null,null,null,null,null,null,null,null,null,null,null,null,null,null,null,null,null,null,null,null,null,null,null,null,null,null,null,null,null,null,null,null,null,null,null,null,1,1900]
[null,null,null,null,null,null,null,null,null,null,null,null,null,null,null,null,null,null,null,null,null,null,null,null,null,null,null,null,null,null,null,null,null,null,null,null,null,null,null,null,null,null,null,null,null,null,null,null,null,null,1,1900]
[null,null,null,null,null,null,null,null,null,null,null,null,null,null,null,null,null,null,null,null,null,null,null,null,null,null,null,null,null,null,null,null,null,null,null,null,null,null,null,null,null,null,null,null,null,null,null,null,null,null,1,1900]
[null,null,null,null,null,null,null,null,null,null,null,null,null,null,null,null,null,null,null,null,null,null,null,null,null,null,null,null,null,null,null,null,null,null,null,null,null,null,null,null,null,null,null,null,null,null,null,null,null,null,1,1900]
[null,null,null,null,null,null,null,null,null,null,null,null,null,null,null,null,null,null,null,null,null,null,null,null,null,null,null,null,null,null,null,null,null,null,null,null,null,null,null,null,null,null,null,null,null,null,null,null,null,null,1,1900]
[null,null,null,null,null,null,null,null,null,null,null,null,null,null,null,null,null,null,null,null,null,null,null,null,null,null,null,null,null,null,null,null,null,null,null,null,null,null,null,null,null,null,null,null,null,null,null,null,null,null,1,1900]
[null,null,null,null,null,null,null,null,null,null,null,null,null,null,null,null,null,null,null,null,null,null,null,null,null,null,null,null,null,null,null,null,null,null,null,null,null,null,null,null,null,null,null,null,null,null,null,null,null,null,{"$f":"MONTH(B3514)","v":1},{"$f":"YEAR(B3514)","v":1900}]
[null,null,null,null,null,null,null,null,null,null,null,null,null,null,null,null,null,null,null,null,null,null,null,null,null,null,null,null,null,null,null,null,null,null,null,null,null,null,null,null,null,null,null,null,null,null,null,null,null,null,1,1900]
[null,null,null,null,null,null,null,null,null,null,null,null,null,null,null,null,null,null,null,null,null,null,null,null,null,null,null,null,null,null,null,null,null,null,null,null,null,null,null,null,null,null,null,null,null,null,null,null,null,null,1,1900]
[null,null,null,null,null,null,null,null,null,null,null,null,null,null,null,null,null,null,null,null,null,null,null,null,null,null,null,null,null,null,null,null,null,null,null,null,null,null,null,null,null,null,null,null,null,null,null,null,null,null,1,1900]
[null,null,null,null,null,null,null,null,null,null,null,null,null,null,null,null,null,null,null,null,null,null,null,null,null,null,null,null,null,null,null,null,null,null,null,null,null,null,null,null,null,null,null,null,null,null,null,null,null,null,1,1900]
[null,null,null,null,null,null,null,null,null,null,null,null,null,null,null,null,null,null,null,null,null,null,null,null,null,null,null,null,null,null,null,null,null,null,null,null,null,null,null,null,null,null,null,null,null,null,null,null,null,null,1,1900]
[null,null,null,null,null,null,null,null,null,null,null,null,null,null,null,null,null,null,null,null,null,null,null,null,null,null,null,null,null,null,null,null,null,null,null,null,null,null,null,null,null,null,null,null,null,null,null,null,null,null,1,1900]
[null,null,null,null,null,null,null,null,null,null,null,null,null,null,null,null,null,null,null,null,null,null,null,null,null,null,null,null,null,null,null,null,null,null,null,null,null,null,null,null,null,null,null,null,null,null,null,null,null,null,1,1900]
[null,null,null,null,null,null,null,null,null,null,null,null,null,null,null,null,null,null,null,null,null,null,null,null,null,null,null,null,null,null,null,null,null,null,null,null,null,null,null,null,null,null,null,null,null,null,null,null,null,null,1,1900]
[null,null,null,null,null,null,null,null,null,null,null,null,null,null,null,null,null,null,null,null,null,null,null,null,null,null,null,null,null,null,null,null,null,null,null,null,null,null,null,null,null,null,null,null,null,null,null,null,null,null,1,1900]
[null,null,null,null,null,null,null,null,null,null,null,null,null,null,null,null,null,null,null,null,null,null,null,null,null,null,null,null,null,null,null,null,null,null,null,null,null,null,null,null,null,null,null,null,null,null,null,null,null,null,1,1900]
[null,null,null,null,null,null,null,null,null,null,null,null,null,null,null,null,null,null,null,null,null,null,null,null,null,null,null,null,null,null,null,null,null,null,null,null,null,null,null,null,null,null,null,null,null,null,null,null,null,null,1,1900]
[null,null,null,null,null,null,null,null,null,null,null,null,null,null,null,null,null,null,null,null,null,null,null,null,null,null,null,null,null,null,null,null,null,null,null,null,null,null,null,null,null,null,null,null,null,null,null,null,null,null,1,1900]
[null,null,null,null,null,null,null,null,null,null,null,null,null,null,null,null,null,null,null,null,null,null,null,null,null,null,null,null,null,null,null,null,null,null,null,null,null,null,null,null,null,null,null,null,null,null,null,null,null,null,1,1900]
[null,null,null,null,null,null,null,null,null,null,null,null,null,null,null,null,null,null,null,null,null,null,null,null,null,null,null,null,null,null,null,null,null,null,null,null,null,null,null,null,null,null,null,null,null,null,null,null,null,null,1,1900]
[null,null,null,null,null,null,null,null,null,null,null,null,null,null,null,null,null,null,null,null,null,null,null,null,null,null,null,null,null,null,null,null,null,null,null,null,null,null,null,null,null,null,null,null,null,null,null,null,null,null,1,1900]
[null,null,null,null,null,null,null,null,null,null,null,null,null,null,null,null,null,null,null,null,null,null,null,null,null,null,null,null,null,null,null,null,null,null,null,null,null,null,null,null,null,null,null,null,null,null,null,null,null,null,1,1900]
[null,null,null,null,null,null,null,null,null,null,null,null,null,null,null,null,null,null,null,null,null,null,null,null,null,null,null,null,null,null,null,null,null,null,null,null,null,null,null,null,null,null,null,null,null,null,null,null,null,null,1,1900]
[null,null,null,null,null,null,null,null,null,null,null,null,null,null,null,null,null,null,null,null,null,null,null,null,null,null,null,null,null,null,null,null,null,null,null,null,null,null,null,null,null,null,null,null,null,null,null,null,null,null,1,1900]
[null,null,null,null,null,null,null,null,null,null,null,null,null,null,null,null,null,null,null,null,null,null,null,null,null,null,null,null,null,null,null,null,null,null,null,null,null,null,null,null,null,null,null,null,null,null,null,null,null,null,1,1900]
[null,null,null,null,null,null,null,null,null,null,null,null,null,null,null,null,null,null,null,null,null,null,null,null,null,null,null,null,null,null,null,null,null,null,null,null,null,null,null,null,null,null,null,null,null,null,null,null,null,null,1,1900]
[null,null,null,null,null,null,null,null,null,null,null,null,null,null,null,null,null,null,null,null,null,null,null,null,null,null,null,null,null,null,null,null,null,null,null,null,null,null,null,null,null,null,null,null,null,null,null,null,null,null,1,1900]
[null,null,null,null,null,null,null,null,null,null,null,null,null,null,null,null,null,null,null,null,null,null,null,null,null,null,null,null,null,null,null,null,null,null,null,null,null,null,null,null,null,null,null,null,null,null,null,null,null,null,1,1900]
[null,null,null,null,null,null,null,null,null,null,null,null,null,null,null,null,null,null,null,null,null,null,null,null,null,null,null,null,null,null,null,null,null,null,null,null,null,null,null,null,null,null,null,null,null,null,null,null,null,null,1,1900]
[null,null,null,null,null,null,null,null,null,null,null,null,null,null,null,null,null,null,null,null,null,null,null,null,null,null,null,null,null,null,null,null,null,null,null,null,null,null,null,null,null,null,null,null,null,null,null,null,null,null,1,1900]
[null,null,null,null,null,null,null,null,null,null,null,null,null,null,null,null,null,null,null,null,null,null,null,null,null,null,null,null,null,null,null,null,null,null,null,null,null,null,null,null,null,null,null,null,null,null,null,null,null,null,1,1900]
[null,null,null,null,null,null,null,null,null,null,null,null,null,null,null,null,null,null,null,null,null,null,null,null,null,null,null,null,null,null,null,null,null,null,null,null,null,null,null,null,null,null,null,null,null,null,null,null,null,null,1,1900]
[null,null,null,null,null,null,null,null,null,null,null,null,null,null,null,null,null,null,null,null,null,null,null,null,null,null,null,null,null,null,null,null,null,null,null,null,null,null,null,null,null,null,null,null,null,null,null,null,null,null,1,1900]
[null,null,null,null,null,null,null,null,null,null,null,null,null,null,null,null,null,null,null,null,null,null,null,null,null,null,null,null,null,null,null,null,null,null,null,null,null,null,null,null,null,null,null,null,null,null,null,null,null,null,1,1900]
[null,null,null,null,null,null,null,null,null,null,null,null,null,null,null,null,null,null,null,null,null,null,null,null,null,null,null,null,null,null,null,null,null,null,null,null,null,null,null,null,null,null,null,null,null,null,null,null,null,null,1,1900]
[null,null,null,null,null,null,null,null,null,null,null,null,null,null,null,null,null,null,null,null,null,null,null,null,null,null,null,null,null,null,null,null,null,null,null,null,null,null,null,null,null,null,null,null,null,null,null,null,null,null,1,1900]
[null,null,null,null,null,null,null,null,null,null,null,null,null,null,null,null,null,null,null,null,null,null,null,null,null,null,null,null,null,null,null,null,null,null,null,null,null,null,null,null,null,null,null,null,null,null,null,null,null,null,1,1900]
[null,null,null,null,null,null,null,null,null,null,null,null,null,null,null,null,null,null,null,null,null,null,null,null,null,null,null,null,null,null,null,null,null,null,null,null,null,null,null,null,null,null,null,null,null,null,null,null,null,null,1,1900]
[null,null,null,null,null,null,null,null,null,null,null,null,null,null,null,null,null,null,null,null,null,null,null,null,null,null,null,null,null,null,null,null,null,null,null,null,null,null,null,null,null,null,null,null,null,null,null,null,null,null,1,1900]
[null,null,null,null,null,null,null,null,null,null,null,null,null,null,null,null,null,null,null,null,null,null,null,null,null,null,null,null,null,null,null,null,null,null,null,null,null,null,null,null,null,null,null,null,null,null,null,null,null,null,1,1900]
[null,null,null,null,null,null,null,null,null,null,null,null,null,null,null,null,null,null,null,null,null,null,null,null,null,null,null,null,null,null,null,null,null,null,null,null,null,null,null,null,null,null,null,null,null,null,null,null,null,null,1,1900]
[null,null,null,null,null,null,null,null,null,null,null,null,null,null,null,null,null,null,null,null,null,null,null,null,null,null,null,null,null,null,null,null,null,null,null,null,null,null,null,null,null,null,null,null,null,null,null,null,null,null,1,1900]
[null,null,null,null,null,null,null,null,null,null,null,null,null,null,null,null,null,null,null,null,null,null,null,null,null,null,null,null,null,null,null,null,null,null,null,null,null,null,null,null,null,null,null,null,null,null,null,null,null,null,1,1900]
[null,null,null,null,null,null,null,null,null,null,null,null,null,null,null,null,null,null,null,null,null,null,null,null,null,null,null,null,null,null,null,null,null,null,null,null,null,null,null,null,null,null,null,null,null,null,null,null,null,null,1,1900]
[null,null,null,null,null,null,null,null,null,null,null,null,null,null,null,null,null,null,null,null,null,null,null,null,null,null,null,null,null,null,null,null,null,null,null,null,null,null,null,null,null,null,null,null,null,null,null,null,null,null,1,1900]
[null,null,null,null,null,null,null,null,null,null,null,null,null,null,null,null,null,null,null,null,null,null,null,null,null,null,null,null,null,null,null,null,null,null,null,null,null,null,null,null,null,null,null,null,null,null,null,null,null,null,1,1900]
[null,null,null,null,null,null,null,null,null,null,null,null,null,null,null,null,null,null,null,null,null,null,null,null,null,null,null,null,null,null,null,null,null,null,null,null,null,null,null,null,null,null,null,null,null,null,null,null,null,null,1,1900]
[null,null,null,null,null,null,null,null,null,null,null,null,null,null,null,null,null,null,null,null,null,null,null,null,null,null,null,null,null,null,null,null,null,null,null,null,null,null,null,null,null,null,null,null,null,null,null,null,null,null,1,1900]
[null,null,null,null,null,null,null,null,null,null,null,null,null,null,null,null,null,null,null,null,null,null,null,null,null,null,null,null,null,null,null,null,null,null,null,null,null,null,null,null,null,null,null,null,null,null,null,null,null,null,1,1900]
[null,null,null,null,null,null,null,null,null,null,null,null,null,null,null,null,null,null,null,null,null,null,null,null,null,null,null,null,null,null,null,null,null,null,null,null,null,null,null,null,null,null,null,null,null,null,null,null,null,null,1,1900]
[null,null,null,null,null,null,null,null,null,null,null,null,null,null,null,null,null,null,null,null,null,null,null,null,null,null,null,null,null,null,null,null,null,null,null,null,null,null,null,null,null,null,null,null,null,null,null,null,null,null,1,1900]
[null,null,null,null,null,null,null,null,null,null,null,null,null,null,null,null,null,null,null,null,null,null,null,null,null,null,null,null,null,null,null,null,null,null,null,null,null,null,null,null,null,null,null,null,null,null,null,null,null,null,1,1900]
[null,null,null,null,null,null,null,null,null,null,null,null,null,null,null,null,null,null,null,null,null,null,null,null,null,null,null,null,null,null,null,null,null,null,null,null,null,null,null,null,null,null,null,null,null,null,null,null,null,null,1,1900]
[null,null,null,null,null,null,null,null,null,null,null,null,null,null,null,null,null,null,null,null,null,null,null,null,null,null,null,null,null,null,null,null,null,null,null,null,null,null,null,null,null,null,null,null,null,null,null,null,null,null,1,1900]
[null,null,null,null,null,null,null,null,null,null,null,null,null,null,null,null,null,null,null,null,null,null,null,null,null,null,null,null,null,null,null,null,null,null,null,null,null,null,null,null,null,null,null,null,null,null,null,null,null,null,1,1900]
[null,null,null,null,null,null,null,null,null,null,null,null,null,null,null,null,null,null,null,null,null,null,null,null,null,null,null,null,null,null,null,null,null,null,null,null,null,null,null,null,null,null,null,null,null,null,null,null,null,null,1,1900]
[null,null,null,null,null,null,null,null,null,null,null,null,null,null,null,null,null,null,null,null,null,null,null,null,null,null,null,null,null,null,null,null,null,null,null,null,null,null,null,null,null,null,null,null,null,null,null,null,null,null,1,1900]
[null,null,null,null,null,null,null,null,null,null,null,null,null,null,null,null,null,null,null,null,null,null,null,null,null,null,null,null,null,null,null,null,null,null,null,null,null,null,null,null,null,null,null,null,null,null,null,null,null,null,1,1900]
[null,null,null,null,null,null,null,null,null,null,null,null,null,null,null,null,null,null,null,null,null,null,null,null,null,null,null,null,null,null,null,null,null,null,null,null,null,null,null,null,null,null,null,null,null,null,null,null,null,null,1,1900]
[null,null,null,null,null,null,null,null,null,null,null,null,null,null,null,null,null,null,null,null,null,null,null,null,null,null,null,null,null,null,null,null,null,null,null,null,null,null,null,null,null,null,null,null,null,null,null,null,null,null,1,1900]
[null,null,null,null,null,null,null,null,null,null,null,null,null,null,null,null,null,null,null,null,null,null,null,null,null,null,null,null,null,null,null,null,null,null,null,null,null,null,null,null,null,null,null,null,null,null,null,null,null,null,1,1900]
[null,null,null,null,null,null,null,null,null,null,null,null,null,null,null,null,null,null,null,null,null,null,null,null,null,null,null,null,null,null,null,null,null,null,null,null,null,null,null,null,null,null,null,null,null,null,null,null,null,null,1,1900]
[null,null,null,null,null,null,null,null,null,null,null,null,null,null,null,null,null,null,null,null,null,null,null,null,null,null,null,null,null,null,null,null,null,null,null,null,null,null,null,null,null,null,null,null,null,null,null,null,null,null,1,1900]
[null,null,null,null,null,null,null,null,null,null,null,null,null,null,null,null,null,null,null,null,null,null,null,null,null,null,null,null,null,null,null,null,null,null,null,null,null,null,null,null,null,null,null,null,null,null,null,null,null,null,1,1900]
[null,null,null,null,null,null,null,null,null,null,null,null,null,null,null,null,null,null,null,null,null,null,null,null,null,null,null,null,null,null,null,null,null,null,null,null,null,null,null,null,null,null,null,null,null,null,null,null,null,null,1,1900]
[null,null,null,null,null,null,null,null,null,null,null,null,null,null,null,null,null,null,null,null,null,null,null,null,null,null,null,null,null,null,null,null,null,null,null,null,null,null,null,null,null,null,null,null,null,null,null,null,null,null,1,1900]
[null,null,null,null,null,null,null,null,null,null,null,null,null,null,null,null,null,null,null,null,null,null,null,null,null,null,null,null,null,null,null,null,null,null,null,null,null,null,null,null,null,null,null,null,null,null,null,null,null,null,1,1900]
[null,null,null,null,null,null,null,null,null,null,null,null,null,null,null,null,null,null,null,null,null,null,null,null,null,null,null,null,null,null,null,null,null,null,null,null,null,null,null,null,null,null,null,null,null,null,null,null,null,null,1,1900]
[null,null,null,null,null,null,null,null,null,null,null,null,null,null,null,null,null,null,null,null,null,null,null,null,null,null,null,null,null,null,null,null,null,null,null,null,null,null,null,null,null,null,null,null,null,null,null,null,null,null,1,1900]
[null,null,null,null,null,null,null,null,null,null,null,null,null,null,null,null,null,null,null,null,null,null,null,null,null,null,null,null,null,null,null,null,null,null,null,null,null,null,null,null,null,null,null,null,null,null,null,null,null,null,1,1900]
[null,null,null,null,null,null,null,null,null,null,null,null,null,null,null,null,null,null,null,null,null,null,null,null,null,null,null,null,null,null,null,null,null,null,null,null,null,null,null,null,null,null,null,null,null,null,null,null,null,null,1,1900]
[null,null,null,null,null,null,null,null,null,null,null,null,null,null,null,null,null,null,null,null,null,null,null,null,null,null,null,null,null,null,null,null,null,null,null,null,null,null,null,null,null,null,null,null,null,null,null,null,null,null,1,1900]
[null,null,null,null,null,null,null,null,null,null,null,null,null,null,null,null,null,null,null,null,null,null,null,null,null,null,null,null,null,null,null,null,null,null,null,null,null,null,null,null,null,null,null,null,null,null,null,null,null,null,1,1900]
[null,null,null,null,null,null,null,null,null,null,null,null,null,null,null,null,null,null,null,null,null,null,null,null,null,null,null,null,null,null,null,null,null,null,null,null,null,null,null,null,null,null,null,null,null,null,null,null,null,null,1,1900]
[null,null,null,null,null,null,null,null,null,null,null,null,null,null,null,null,null,null,null,null,null,null,null,null,null,null,null,null,null,null,null,null,null,null,null,null,null,null,null,null,null,null,null,null,null,null,null,null,null,null,1,1900]
[null,null,null,null,null,null,null,null,null,null,null,null,null,null,null,null,null,null,null,null,null,null,null,null,null,null,null,null,null,null,null,null,null,null,null,null,null,null,null,null,null,null,null,null,null,null,null,null,null,null,1,1900]
[null,null,null,null,null,null,null,null,null,null,null,null,null,null,null,null,null,null,null,null,null,null,null,null,null,null,null,null,null,null,null,null,null,null,null,null,null,null,null,null,null,null,null,null,null,null,null,null,null,null,1,1900]
[null,null,null,null,null,null,null,null,null,null,null,null,null,null,null,null,null,null,null,null,null,null,null,null,null,null,null,null,null,null,null,null,null,null,null,null,null,null,null,null,null,null,null,null,null,null,null,null,null,null,1,1900]
[null,null,null,null,null,null,null,null,null,null,null,null,null,null,null,null,null,null,null,null,null,null,null,null,null,null,null,null,null,null,null,null,null,null,null,null,null,null,null,null,null,null,null,null,null,null,null,null,null,null,1,1900]
[null,null,null,null,null,null,null,null,null,null,null,null,null,null,null,null,null,null,null,null,null,null,null,null,null,null,null,null,null,null,null,null,null,null,null,null,null,null,null,null,null,null,null,null,null,null,null,null,null,null,1,1900]
[null,null,null,null,null,null,null,null,null,null,null,null,null,null,null,null,null,null,null,null,null,null,null,null,null,null,null,null,null,null,null,null,null,null,null,null,null,null,null,null,null,null,null,null,null,null,null,null,null,null,1,1900]
[null,null,null,null,null,null,null,null,null,null,null,null,null,null,null,null,null,null,null,null,null,null,null,null,null,null,null,null,null,null,null,null,null,null,null,null,null,null,null,null,null,null,null,null,null,null,null,null,null,null,1,1900]
[null,null,null,null,null,null,null,null,null,null,null,null,null,null,null,null,null,null,null,null,null,null,null,null,null,null,null,null,null,null,null,null,null,null,null,null,null,null,null,null,null,null,null,null,null,null,null,null,null,null,1,1900]
[null,null,null,null,null,null,null,null,null,null,null,null,null,null,null,null,null,null,null,null,null,null,null,null,null,null,null,null,null,null,null,null,null,null,null,null,null,null,null,null,null,null,null,null,null,null,null,null,null,null,1,1900]
[null,null,null,null,null,null,null,null,null,null,null,null,null,null,null,null,null,null,null,null,null,null,null,null,null,null,null,null,null,null,null,null,null,null,null,null,null,null,null,null,null,null,null,null,null,null,null,null,null,null,1,1900]
[null,null,null,null,null,null,null,null,null,null,null,null,null,null,null,null,null,null,null,null,null,null,null,null,null,null,null,null,null,null,null,null,null,null,null,null,null,null,null,null,null,null,null,null,null,null,null,null,null,null,1,1900]
[null,null,null,null,null,null,null,null,null,null,null,null,null,null,null,null,null,null,null,null,null,null,null,null,null,null,null,null,null,null,null,null,null,null,null,null,null,null,null,null,null,null,null,null,null,null,null,null,null,null,1,1900]
[null,null,null,null,null,null,null,null,null,null,null,null,null,null,null,null,null,null,null,null,null,null,null,null,null,null,null,null,null,null,null,null,null,null,null,null,null,null,null,null,null,null,null,null,null,null,null,null,null,null,1,1900]
[null,null,null,null,null,null,null,null,null,null,null,null,null,null,null,null,null,null,null,null,null,null,null,null,null,null,null,null,null,null,null,null,null,null,null,null,null,null,null,null,null,null,null,null,null,null,null,null,null,null,1,1900]
[null,null,null,null,null,null,null,null,null,null,null,null,null,null,null,null,null,null,null,null,null,null,null,null,null,null,null,null,null,null,null,null,null,null,null,null,null,null,null,null,null,null,null,null,null,null,null,null,null,null,1,1900]
[null,null,null,null,null,null,null,null,null,null,null,null,null,null,null,null,null,null,null,null,null,null,null,null,null,null,null,null,null,null,null,null,null,null,null,null,null,null,null,null,null,null,null,null,null,null,null,null,null,null,1,1900]
[null,null,null,null,null,null,null,null,null,null,null,null,null,null,null,null,null,null,null,null,null,null,null,null,null,null,null,null,null,null,null,null,null,null,null,null,null,null,null,null,null,null,null,null,null,null,null,null,null,null,1,1900]
[null,null,null,null,null,null,null,null,null,null,null,null,null,null,null,null,null,null,null,null,null,null,null,null,null,null,null,null,null,null,null,null,null,null,null,null,null,null,null,null,null,null,null,null,null,null,null,null,null,null,1,1900]
[null,null,null,null,null,null,null,null,null,null,null,null,null,null,null,null,null,null,null,null,null,null,null,null,null,null,null,null,null,null,null,null,null,null,null,null,null,null,null,null,null,null,null,null,null,null,null,null,null,null,1,1900]
[null,null,null,null,null,null,null,null,null,null,null,null,null,null,null,null,null,null,null,null,null,null,null,null,null,null,null,null,null,null,null,null,null,null,null,null,null,null,null,null,null,null,null,null,null,null,null,null,null,null,1,1900]
[null,null,null,null,null,null,null,null,null,null,null,null,null,null,null,null,null,null,null,null,null,null,null,null,null,null,null,null,null,null,null,null,null,null,null,null,null,null,null,null,null,null,null,null,null,null,null,null,null,null,1,1900]
[null,null,null,null,null,null,null,null,null,null,null,null,null,null,null,null,null,null,null,null,null,null,null,null,null,null,null,null,null,null,null,null,null,null,null,null,null,null,null,null,null,null,null,null,null,null,null,null,null,null,1,1900]
[null,null,null,null,null,null,null,null,null,null,null,null,null,null,null,null,null,null,null,null,null,null,null,null,null,null,null,null,null,null,null,null,null,null,null,null,null,null,null,null,null,null,null,null,null,null,null,null,null,null,1,1900]
[null,null,null,null,null,null,null,null,null,null,null,null,null,null,null,null,null,null,null,null,null,null,null,null,null,null,null,null,null,null,null,null,null,null,null,null,null,null,null,null,null,null,null,null,null,null,null,null,null,null,1,1900]
[null,null,null,null,null,null,null,null,null,null,null,null,null,null,null,null,null,null,null,null,null,null,null,null,null,null,null,null,null,null,null,null,null,null,null,null,null,null,null,null,null,null,null,null,null,null,null,null,null,null,1,1900]
[null,null,null,null,null,null,null,null,null,null,null,null,null,null,null,null,null,null,null,null,null,null,null,null,null,null,null,null,null,null,null,null,null,null,null,null,null,null,null,null,null,null,null,null,null,null,null,null,null,null,1,1900]
[null,null,null,null,null,null,null,null,null,null,null,null,null,null,null,null,null,null,null,null,null,null,null,null,null,null,null,null,null,null,null,null,null,null,null,null,null,null,null,null,null,null,null,null,null,null,null,null,null,null,1,1900]
[null,null,null,null,null,null,null,null,null,null,null,null,null,null,null,null,null,null,null,null,null,null,null,null,null,null,null,null,null,null,null,null,null,null,null,null,null,null,null,null,null,null,null,null,null,null,null,null,null,null,1,1900]
[null,null,null,null,null,null,null,null,null,null,null,null,null,null,null,null,null,null,null,null,null,null,null,null,null,null,null,null,null,null,null,null,null,null,null,null,null,null,null,null,null,null,null,null,null,null,null,null,null,null,1,1900]
[null,null,null,null,null,null,null,null,null,null,null,null,null,null,null,null,null,null,null,null,null,null,null,null,null,null,null,null,null,null,null,null,null,null,null,null,null,null,null,null,null,null,null,null,null,null,null,null,null,null,1,1900]
[null,null,null,null,null,null,null,null,null,null,null,null,null,null,null,null,null,null,null,null,null,null,null,null,null,null,null,null,null,null,null,null,null,null,null,null,null,null,null,null,null,null,null,null,null,null,null,null,null,null,1,1900]
[null,null,null,null,null,null,null,null,null,null,null,null,null,null,null,null,null,null,null,null,null,null,null,null,null,null,null,null,null,null,null,null,null,null,null,null,null,null,null,null,null,null,null,null,null,null,null,null,null,null,1,1900]
[null,null,null,null,null,null,null,null,null,null,null,null,null,null,null,null,null,null,null,null,null,null,null,null,null,null,null,null,null,null,null,null,null,null,null,null,null,null,null,null,null,null,null,null,null,null,null,null,null,null,1,1900]
[null,null,null,null,null,null,null,null,null,null,null,null,null,null,null,null,null,null,null,null,null,null,null,null,null,null,null,null,null,null,null,null,null,null,null,null,null,null,null,null,null,null,null,null,null,null,null,null,null,null,1,1900]
[null,null,null,null,null,null,null,null,null,null,null,null,null,null,null,null,null,null,null,null,null,null,null,null,null,null,null,null,null,null,null,null,null,null,null,null,null,null,null,null,null,null,null,null,null,null,null,null,null,null,1,1900]
[null,null,null,null,null,null,null,null,null,null,null,null,null,null,null,null,null,null,null,null,null,null,null,null,null,null,null,null,null,null,null,null,null,null,null,null,null,null,null,null,null,null,null,null,null,null,null,null,null,null,1,1900]
[null,null,null,null,null,null,null,null,null,null,null,null,null,null,null,null,null,null,null,null,null,null,null,null,null,null,null,null,null,null,null,null,null,null,null,null,null,null,null,null,null,null,null,null,null,null,null,null,null,null,1,1900]
[null,null,null,null,null,null,null,null,null,null,null,null,null,null,null,null,null,null,null,null,null,null,null,null,null,null,null,null,null,null,null,null,null,null,null,null,null,null,null,null,null,null,null,null,null,null,null,null,null,null,1,1900]
[null,null,null,null,null,null,null,null,null,null,null,null,null,null,null,null,null,null,null,null,null,null,null,null,null,null,null,null,null,null,null,null,null,null,null,null,null,null,null,null,null,null,null,null,null,null,null,null,null,null,1,1900]
[null,null,null,null,null,null,null,null,null,null,null,null,null,null,null,null,null,null,null,null,null,null,null,null,null,null,null,null,null,null,null,null,null,null,null,null,null,null,null,null,null,null,null,null,null,null,null,null,null,null,1,1900]
[null,null,null,null,null,null,null,null,null,null,null,null,null,null,null,null,null,null,null,null,null,null,null,null,null,null,null,null,null,null,null,null,null,null,null,null,null,null,null,null,null,null,null,null,null,null,null,null,null,null,1,1900]
[null,null,null,null,null,null,null,null,null,null,null,null,null,null,null,null,null,null,null,null,null,null,null,null,null,null,null,null,null,null,null,null,null,null,null,null,null,null,null,null,null,null,null,null,null,null,null,null,null,null,1,1900]
[null,null,null,null,null,null,null,null,null,null,null,null,null,null,null,null,null,null,null,null,null,null,null,null,null,null,null,null,null,null,null,null,null,null,null,null,null,null,null,null,null,null,null,null,null,null,null,null,null,null,1,1900]
[null,null,null,null,null,null,null,null,null,null,null,null,null,null,null,null,null,null,null,null,null,null,null,null,null,null,null,null,null,null,null,null,null,null,null,null,null,null,null,null,null,null,null,null,null,null,null,null,null,null,1,1900]
[null,null,null,null,null,null,null,null,null,null,null,null,null,null,null,null,null,null,null,null,null,null,null,null,null,null,null,null,null,null,null,null,null,null,null,null,null,null,null,null,null,null,null,null,null,null,null,null,null,null,1,1900]
[null,null,null,null,null,null,null,null,null,null,null,null,null,null,null,null,null,null,null,null,null,null,null,null,null,null,null,null,null,null,null,null,null,null,null,null,null,null,null,null,null,null,null,null,null,null,null,null,null,null,1,1900]
[null,null,null,null,null,null,null,null,null,null,null,null,null,null,null,null,null,null,null,null,null,null,null,null,null,null,null,null,null,null,null,null,null,null,null,null,null,null,null,null,null,null,null,null,null,null,null,null,null,null,1,1900]
[null,null,null,null,null,null,null,null,null,null,null,null,null,null,null,null,null,null,null,null,null,null,null,null,null,null,null,null,null,null,null,null,null,null,null,null,null,null,null,null,null,null,null,null,null,null,null,null,null,null,1,1900]
[null,null,null,null,null,null,null,null,null,null,null,null,null,null,null,null,null,null,null,null,null,null,null,null,null,null,null,null,null,null,null,null,null,null,null,null,null,null,null,null,null,null,null,null,null,null,null,null,null,null,1,1900]
[null,null,null,null,null,null,null,null,null,null,null,null,null,null,null,null,null,null,null,null,null,null,null,null,null,null,null,null,null,null,null,null,null,null,null,null,null,null,null,null,null,null,null,null,null,null,null,null,null,null,1,1900]
[null,null,null,null,null,null,null,null,null,null,null,null,null,null,null,null,null,null,null,null,null,null,null,null,null,null,null,null,null,null,null,null,null,null,null,null,null,null,null,null,null,null,null,null,null,null,null,null,null,null,1,1900]
[null,null,null,null,null,null,null,null,null,null,null,null,null,null,null,null,null,null,null,null,null,null,null,null,null,null,null,null,null,null,null,null,null,null,null,null,null,null,null,null,null,null,null,null,null,null,null,null,null,null,1,1900]
[null,null,null,null,null,null,null,null,null,null,null,null,null,null,null,null,null,null,null,null,null,null,null,null,null,null,null,null,null,null,null,null,null,null,null,null,null,null,null,null,null,null,null,null,null,null,null,null,null,null,1,1900]
[null,null,null,null,null,null,null,null,null,null,null,null,null,null,null,null,null,null,null,null,null,null,null,null,null,null,null,null,null,null,null,null,null,null,null,null,null,null,null,null,null,null,null,null,null,null,null,null,null,null,1,1900]
[null,null,null,null,null,null,null,null,null,null,null,null,null,null,null,null,null,null,null,null,null,null,null,null,null,null,null,null,null,null,null,null,null,null,null,null,null,null,null,null,null,null,null,null,null,null,null,null,null,null,1,1900]
[null,null,null,null,null,null,null,null,null,null,null,null,null,null,null,null,null,null,null,null,null,null,null,null,null,null,null,null,null,null,null,null,null,null,null,null,null,null,null,null,null,null,null,null,null,null,null,null,null,null,1,1900]
[null,null,null,null,null,null,null,null,null,null,null,null,null,null,null,null,null,null,null,null,null,null,null,null,null,null,null,null,null,null,null,null,null,null,null,null,null,null,null,null,null,null,null,null,null,null,null,null,null,null,1,1900]
[null,null,null,null,null,null,null,null,null,null,null,null,null,null,null,null,null,null,null,null,null,null,null,null,null,null,null,null,null,null,null,null,null,null,null,null,null,null,null,null,null,null,null,null,null,null,null,null,null,null,1,1900]
[null,null,null,null,null,null,null,null,null,null,null,null,null,null,null,null,null,null,null,null,null,null,null,null,null,null,null,null,null,null,null,null,null,null,null,null,null,null,null,null,null,null,null,null,null,null,null,null,null,null,1,1900]
[null,null,null,null,null,null,null,null,null,null,null,null,null,null,null,null,null,null,null,null,null,null,null,null,null,null,null,null,null,null,null,null,null,null,null,null,null,null,null,null,null,null,null,null,null,null,null,null,null,null,1,1900]
[null,null,null,null,null,null,null,null,null,null,null,null,null,null,null,null,null,null,null,null,null,null,null,null,null,null,null,null,null,null,null,null,null,null,null,null,null,null,null,null,null,null,null,null,null,null,null,null,null,null,1,1900]
[null,null,null,null,null,null,null,null,null,null,null,null,null,null,null,null,null,null,null,null,null,null,null,null,null,null,null,null,null,null,null,null,null,null,null,null,null,null,null,null,null,null,null,null,null,null,null,null,null,null,1,1900]
[null,null,null,null,null,null,null,null,null,null,null,null,null,null,null,null,null,null,null,null,null,null,null,null,null,null,null,null,null,null,null,null,null,null,null,null,null,null,null,null,null,null,null,null,null,null,null,null,null,null,1,1900]
[null,null,null,null,null,null,null,null,null,null,null,null,null,null,null,null,null,null,null,null,null,null,null,null,null,null,null,null,null,null,null,null,null,null,null,null,null,null,null,null,null,null,null,null,null,null,null,null,null,null,1,1900]
[null,null,null,null,null,null,null,null,null,null,null,null,null,null,null,null,null,null,null,null,null,null,null,null,null,null,null,null,null,null,null,null,null,null,null,null,null,null,null,null,null,null,null,null,null,null,null,null,null,null,1,1900]
[null,null,null,null,null,null,null,null,null,null,null,null,null,null,null,null,null,null,null,null,null,null,null,null,null,null,null,null,null,null,null,null,null,null,null,null,null,null,null,null,null,null,null,null,null,null,null,null,null,null,1,1900]
[null,null,null,null,null,null,null,null,null,null,null,null,null,null,null,null,null,null,null,null,null,null,null,null,null,null,null,null,null,null,null,null,null,null,null,null,null,null,null,null,null,null,null,null,null,null,null,null,null,null,1,1900]
[null,null,null,null,null,null,null,null,null,null,null,null,null,null,null,null,null,null,null,null,null,null,null,null,null,null,null,null,null,null,null,null,null,null,null,null,null,null,null,null,null,null,null,null,null,null,null,null,null,null,1,1900]
[null,null,null,null,null,null,null,null,null,null,null,null,null,null,null,null,null,null,null,null,null,null,null,null,null,null,null,null,null,null,null,null,null,null,null,null,null,null,null,null,null,null,null,null,null,null,null,null,null,null,1,1900]
[null,null,null,null,null,null,null,null,null,null,null,null,null,null,null,null,null,null,null,null,null,null,null,null,null,null,null,null,null,null,null,null,null,null,null,null,null,null,null,null,null,null,null,null,null,null,null,null,null,null,1,1900]
[null,null,null,null,null,null,null,null,null,null,null,null,null,null,null,null,null,null,null,null,null,null,null,null,null,null,null,null,null,null,null,null,null,null,null,null,null,null,null,null,null,null,null,null,null,null,null,null,null,null,1,1900]
[null,null,null,null,null,null,null,null,null,null,null,null,null,null,null,null,null,null,null,null,null,null,null,null,null,null,null,null,null,null,null,null,null,null,null,null,null,null,null,null,null,null,null,null,null,null,null,null,null,null,1,1900]
[null,null,null,null,null,null,null,null,null,null,null,null,null,null,null,null,null,null,null,null,null,null,null,null,null,null,null,null,null,null,null,null,null,null,null,null,null,null,null,null,null,null,null,null,null,null,null,null,null,null,1,1900]
[null,null,null,null,null,null,null,null,null,null,null,null,null,null,null,null,null,null,null,null,null,null,null,null,null,null,null,null,null,null,null,null,null,null,null,null,null,null,null,null,null,null,null,null,null,null,null,null,null,null,1,1900]
[null,null,null,null,null,null,null,null,null,null,null,null,null,null,null,null,null,null,null,null,null,null,null,null,null,null,null,null,null,null,null,null,null,null,null,null,null,null,null,null,null,null,null,null,null,null,null,null,null,null,1,1900]
[null,null,null,null,null,null,null,null,null,null,null,null,null,null,null,null,null,null,null,null,null,null,null,null,null,null,null,null,null,null,null,null,null,null,null,null,null,null,null,null,null,null,null,null,null,null,null,null,null,null,1,1900]
[null,null,null,null,null,null,null,null,null,null,null,null,null,null,null,null,null,null,null,null,null,null,null,null,null,null,null,null,null,null,null,null,null,null,null,null,null,null,null,null,null,null,null,null,null,null,null,null,null,null,1,1900]
[null,null,null,null,null,null,null,null,null,null,null,null,null,null,null,null,null,null,null,null,null,null,null,null,null,null,null,null,null,null,null,null,null,null,null,null,null,null,null,null,null,null,null,null,null,null,null,null,null,null,1,1900]
[null,null,null,null,null,null,null,null,null,null,null,null,null,null,null,null,null,null,null,null,null,null,null,null,null,null,null,null,null,null,null,null,null,null,null,null,null,null,null,null,null,null,null,null,null,null,null,null,null,null,1,1900]
[null,null,null,null,null,null,null,null,null,null,null,null,null,null,null,null,null,null,null,null,null,null,null,null,null,null,null,null,null,null,null,null,null,null,null,null,null,null,null,null,null,null,null,null,null,null,null,null,null,null,1,1900]
[null,null,null,null,null,null,null,null,null,null,null,null,null,null,null,null,null,null,null,null,null,null,null,null,null,null,null,null,null,null,null,null,null,null,null,null,null,null,null,null,null,null,null,null,null,null,null,null,null,null,1,1900]
[null,null,null,null,null,null,null,null,null,null,null,null,null,null,null,null,null,null,null,null,null,null,null,null,null,null,null,null,null,null,null,null,null,null,null,null,null,null,null,null,null,null,null,null,null,null,null,null,null,null,1,1900]
[null,null,null,null,null,null,null,null,null,null,null,null,null,null,null,null,null,null,null,null,null,null,null,null,null,null,null,null,null,null,null,null,null,null,null,null,null,null,null,null,null,null,null,null,null,null,null,null,null,null,1,1900]
[null,null,null,null,null,null,null,null,null,null,null,null,null,null,null,null,null,null,null,null,null,null,null,null,null,null,null,null,null,null,null,null,null,null,null,null,null,null,null,null,null,null,null,null,null,null,null,null,null,null,1,1900]
[null,null,null,null,null,null,null,null,null,null,null,null,null,null,null,null,null,null,null,null,null,null,null,null,null,null,null,null,null,null,null,null,null,null,null,null,null,null,null,null,null,null,null,null,null,null,null,null,null,null,1,1900]
[null,null,null,null,null,null,null,null,null,null,null,null,null,null,null,null,null,null,null,null,null,null,null,null,null,null,null,null,null,null,null,null,null,null,null,null,null,null,null,null,null,null,null,null,null,null,null,null,null,null,1,1900]
[null,null,null,null,null,null,null,null,null,null,null,null,null,null,null,null,null,null,null,null,null,null,null,null,null,null,null,null,null,null,null,null,null,null,null,null,null,null,null,null,null,null,null,null,null,null,null,null,null,null,1,1900]
[null,null,null,null,null,null,null,null,null,null,null,null,null,null,null,null,null,null,null,null,null,null,null,null,null,null,null,null,null,null,null,null,null,null,null,null,null,null,null,null,null,null,null,null,null,null,null,null,null,null,1,1900]
[null,null,null,null,null,null,null,null,null,null,null,null,null,null,null,null,null,null,null,null,null,null,null,null,null,null,null,null,null,null,null,null,null,null,null,null,null,null,null,null,null,null,null,null,null,null,null,null,null,null,1,1900]
[null,null,null,null,null,null,null,null,null,null,null,null,null,null,null,null,null,null,null,null,null,null,null,null,null,null,null,null,null,null,null,null,null,null,null,null,null,null,null,null,null,null,null,null,null,null,null,null,null,null,1,1900]
[null,null,null,null,null,null,null,null,null,null,null,null,null,null,null,null,null,null,null,null,null,null,null,null,null,null,null,null,null,null,null,null,null,null,null,null,null,null,null,null,null,null,null,null,null,null,null,null,null,null,1,1900]
[null,null,null,null,null,null,null,null,null,null,null,null,null,null,null,null,null,null,null,null,null,null,null,null,null,null,null,null,null,null,null,null,null,null,null,null,null,null,null,null,null,null,null,null,null,null,null,null,null,null,1,1900]
[null,null,null,null,null,null,null,null,null,null,null,null,null,null,null,null,null,null,null,null,null,null,null,null,null,null,null,null,null,null,null,null,null,null,null,null,null,null,null,null,null,null,null,null,null,null,null,null,null,null,1,1900]
[null,null,null,null,null,null,null,null,null,null,null,null,null,null,null,null,null,null,null,null,null,null,null,null,null,null,null,null,null,null,null,null,null,null,null,null,null,null,null,null,null,null,null,null,null,null,null,null,null,null,1,1900]
[null,null,null,null,null,null,null,null,null,null,null,null,null,null,null,null,null,null,null,null,null,null,null,null,null,null,null,null,null,null,null,null,null,null,null,null,null,null,null,null,null,null,null,null,null,null,null,null,null,null,1,1900]
[null,null,null,null,null,null,null,null,null,null,null,null,null,null,null,null,null,null,null,null,null,null,null,null,null,null,null,null,null,null,null,null,null,null,null,null,null,null,null,null,null,null,null,null,null,null,null,null,null,null,1,1900]
[null,null,null,null,null,null,null,null,null,null,null,null,null,null,null,null,null,null,null,null,null,null,null,null,null,null,null,null,null,null,null,null,null,null,null,null,null,null,null,null,null,null,null,null,null,null,null,null,null,null,1,1900]
[null,null,null,null,null,null,null,null,null,null,null,null,null,null,null,null,null,null,null,null,null,null,null,null,null,null,null,null,null,null,null,null,null,null,null,null,null,null,null,null,null,null,null,null,null,null,null,null,null,null,1,1900]
[null,null,null,null,null,null,null,null,null,null,null,null,null,null,null,null,null,null,null,null,null,null,null,null,null,null,null,null,null,null,null,null,null,null,null,null,null,null,null,null,null,null,null,null,null,null,null,null,null,null,1,1900]
[null,null,null,null,null,null,null,null,null,null,null,null,null,null,null,null,null,null,null,null,null,null,null,null,null,null,null,null,null,null,null,null,null,null,null,null,null,null,null,null,null,null,null,null,null,null,null,null,null,null,1,1900]
[null,null,null,null,null,null,null,null,null,null,null,null,null,null,null,null,null,null,null,null,null,null,null,null,null,null,null,null,null,null,null,null,null,null,null,null,null,null,null,null,null,null,null,null,null,null,null,null,null,null,1,1900]
[null,null,null,null,null,null,null,null,null,null,null,null,null,null,null,null,null,null,null,null,null,null,null,null,null,null,null,null,null,null,null,null,null,null,null,null,null,null,null,null,null,null,null,null,null,null,null,null,null,null,1,1900]
[null,null,null,null,null,null,null,null,null,null,null,null,null,null,null,null,null,null,null,null,null,null,null,null,null,null,null,null,null,null,null,null,null,null,null,null,null,null,null,null,null,null,null,null,null,null,null,null,null,null,1,1900]
[null,null,null,null,null,null,null,null,null,null,null,null,null,null,null,null,null,null,null,null,null,null,null,null,null,null,null,null,null,null,null,null,null,null,null,null,null,null,null,null,null,null,null,null,null,null,null,null,null,null,1,1900]
[null,null,null,null,null,null,null,null,null,null,null,null,null,null,null,null,null,null,null,null,null,null,null,null,null,null,null,null,null,null,null,null,null,null,null,null,null,null,null,null,null,null,null,null,null,null,null,null,null,null,1,1900]
[null,null,null,null,null,null,null,null,null,null,null,null,null,null,null,null,null,null,null,null,null,null,null,null,null,null,null,null,null,null,null,null,null,null,null,null,null,null,null,null,null,null,null,null,null,null,null,null,null,null,1,1900]
[null,null,null,null,null,null,null,null,null,null,null,null,null,null,null,null,null,null,null,null,null,null,null,null,null,null,null,null,null,null,null,null,null,null,null,null,null,null,null,null,null,null,null,null,null,null,null,null,null,null,1,1900]
[null,null,null,null,null,null,null,null,null,null,null,null,null,null,null,null,null,null,null,null,null,null,null,null,null,null,null,null,null,null,null,null,null,null,null,null,null,null,null,null,null,null,null,null,null,null,null,null,null,null,1,1900]
[null,null,null,null,null,null,null,null,null,null,null,null,null,null,null,null,null,null,null,null,null,null,null,null,null,null,null,null,null,null,null,null,null,null,null,null,null,null,null,null,null,null,null,null,null,null,null,null,null,null,1,1900]
[null,null,null,null,null,null,null,null,null,null,null,null,null,null,null,null,null,null,null,null,null,null,null,null,null,null,null,null,null,null,null,null,null,null,null,null,null,null,null,null,null,null,null,null,null,null,null,null,null,null,1,1900]
[null,null,null,null,null,null,null,null,null,null,null,null,null,null,null,null,null,null,null,null,null,null,null,null,null,null,null,null,null,null,null,null,null,null,null,null,null,null,null,null,null,null,null,null,null,null,null,null,null,null,{"$f":"MONTH(B4666)","v":1},{"$f":"YEAR(B4666)","v":1900}]
[null,null,null,null,null,null,null,null,null,null,null,null,null,null,null,null,null,null,null,null,null,null,null,null,null,null,null,null,null,null,null,null,null,null,null,null,null,null,null,null,null,null,null,null,null,null,null,null,null,null,1,1900]
[null,null,null,null,null,null,null,null,null,null,null,null,null,null,null,null,null,null,null,null,null,null,null,null,null,null,null,null,null,null,null,null,null,null,null,null,null,null,null,null,null,null,null,null,null,null,null,null,null,null,1,1900]
[null,null,null,null,null,null,null,null,null,null,null,null,null,null,null,null,null,null,null,null,null,null,null,null,null,null,null,null,null,null,null,null,null,null,null,null,null,null,null,null,null,null,null,null,null,null,null,null,null,null,1,1900]
[null,null,null,null,null,null,null,null,null,null,null,null,null,null,null,null,null,null,null,null,null,null,null,null,null,null,null,null,null,null,null,null,null,null,null,null,null,null,null,null,null,null,null,null,null,null,null,null,null,null,1,1900]
[null,null,null,null,null,null,null,null,null,null,null,null,null,null,null,null,null,null,null,null,null,null,null,null,null,null,null,null,null,null,null,null,null,null,null,null,null,null,null,null,null,null,null,null,null,null,null,null,null,null,1,1900]
[null,null,null,null,null,null,null,null,null,null,null,null,null,null,null,null,null,null,null,null,null,null,null,null,null,null,null,null,null,null,null,null,null,null,null,null,null,null,null,null,null,null,null,null,null,null,null,null,null,null,1,1900]
[null,null,null,null,null,null,null,null,null,null,null,null,null,null,null,null,null,null,null,null,null,null,null,null,null,null,null,null,null,null,null,null,null,null,null,null,null,null,null,null,null,null,null,null,null,null,null,null,null,null,1,1900]
[null,null,null,null,null,null,null,null,null,null,null,null,null,null,null,null,null,null,null,null,null,null,null,null,null,null,null,null,null,null,null,null,null,null,null,null,null,null,null,null,null,null,null,null,null,null,null,null,null,null,1,1900]
[null,null,null,null,null,null,null,null,null,null,null,null,null,null,null,null,null,null,null,null,null,null,null,null,null,null,null,null,null,null,null,null,null,null,null,null,null,null,null,null,null,null,null,null,null,null,null,null,null,null,1,1900]
[null,null,null,null,null,null,null,null,null,null,null,null,null,null,null,null,null,null,null,null,null,null,null,null,null,null,null,null,null,null,null,null,null,null,null,null,null,null,null,null,null,null,null,null,null,null,null,null,null,null,1,1900]
[null,null,null,null,null,null,null,null,null,null,null,null,null,null,null,null,null,null,null,null,null,null,null,null,null,null,null,null,null,null,null,null,null,null,null,null,null,null,null,null,null,null,null,null,null,null,null,null,null,null,1,1900]
[null,null,null,null,null,null,null,null,null,null,null,null,null,null,null,null,null,null,null,null,null,null,null,null,null,null,null,null,null,null,null,null,null,null,null,null,null,null,null,null,null,null,null,null,null,null,null,null,null,null,1,1900]
[null,null,null,null,null,null,null,null,null,null,null,null,null,null,null,null,null,null,null,null,null,null,null,null,null,null,null,null,null,null,null,null,null,null,null,null,null,null,null,null,null,null,null,null,null,null,null,null,null,null,1,1900]
[null,null,null,null,null,null,null,null,null,null,null,null,null,null,null,null,null,null,null,null,null,null,null,null,null,null,null,null,null,null,null,null,null,null,null,null,null,null,null,null,null,null,null,null,null,null,null,null,null,null,1,1900]
[null,null,null,null,null,null,null,null,null,null,null,null,null,null,null,null,null,null,null,null,null,null,null,null,null,null,null,null,null,null,null,null,null,null,null,null,null,null,null,null,null,null,null,null,null,null,null,null,null,null,1,1900]
[null,null,null,null,null,null,null,null,null,null,null,null,null,null,null,null,null,null,null,null,null,null,null,null,null,null,null,null,null,null,null,null,null,null,null,null,null,null,null,null,null,null,null,null,null,null,null,null,null,null,1,1900]
[null,null,null,null,null,null,null,null,null,null,null,null,null,null,null,null,null,null,null,null,null,null,null,null,null,null,null,null,null,null,null,null,null,null,null,null,null,null,null,null,null,null,null,null,null,null,null,null,null,null,1,1900]
[null,null,null,null,null,null,null,null,null,null,null,null,null,null,null,null,null,null,null,null,null,null,null,null,null,null,null,null,null,null,null,null,null,null,null,null,null,null,null,null,null,null,null,null,null,null,null,null,null,null,1,1900]
[null,null,null,null,null,null,null,null,null,null,null,null,null,null,null,null,null,null,null,null,null,null,null,null,null,null,null,null,null,null,null,null,null,null,null,null,null,null,null,null,null,null,null,null,null,null,null,null,null,null,1,1900]
[null,null,null,null,null,null,null,null,null,null,null,null,null,null,null,null,null,null,null,null,null,null,null,null,null,null,null,null,null,null,null,null,null,null,null,null,null,null,null,null,null,null,null,null,null,null,null,null,null,null,1,1900]
[null,null,null,null,null,null,null,null,null,null,null,null,null,null,null,null,null,null,null,null,null,null,null,null,null,null,null,null,null,null,null,null,null,null,null,null,null,null,null,null,null,null,null,null,null,null,null,null,null,null,1,1900]
[null,null,null,null,null,null,null,null,null,null,null,null,null,null,null,null,null,null,null,null,null,null,null,null,null,null,null,null,null,null,null,null,null,null,null,null,null,null,null,null,null,null,null,null,null,null,null,null,null,null,1,1900]
[null,null,null,null,null,null,null,null,null,null,null,null,null,null,null,null,null,null,null,null,null,null,null,null,null,null,null,null,null,null,null,null,null,null,null,null,null,null,null,null,null,null,null,null,null,null,null,null,null,null,1,1900]
[null,null,null,null,null,null,null,null,null,null,null,null,null,null,null,null,null,null,null,null,null,null,null,null,null,null,null,null,null,null,null,null,null,null,null,null,null,null,null,null,null,null,null,null,null,null,null,null,null,null,1,1900]
[null,null,null,null,null,null,null,null,null,null,null,null,null,null,null,null,null,null,null,null,null,null,null,null,null,null,null,null,null,null,null,null,null,null,null,null,null,null,null,null,null,null,null,null,null,null,null,null,null,null,1,1900]
[null,null,null,null,null,null,null,null,null,null,null,null,null,null,null,null,null,null,null,null,null,null,null,null,null,null,null,null,null,null,null,null,null,null,null,null,null,null,null,null,null,null,null,null,null,null,null,null,null,null,1,1900]
[null,null,null,null,null,null,null,null,null,null,null,null,null,null,null,null,null,null,null,null,null,null,null,null,null,null,null,null,null,null,null,null,null,null,null,null,null,null,null,null,null,null,null,null,null,null,null,null,null,null,1,1900]
[null,null,null,null,null,null,null,null,null,null,null,null,null,null,null,null,null,null,null,null,null,null,null,null,null,null,null,null,null,null,null,null,null,null,null,null,null,null,null,null,null,null,null,null,null,null,null,null,null,null,1,1900]
[null,null,null,null,null,null,null,null,null,null,null,null,null,null,null,null,null,null,null,null,null,null,null,null,null,null,null,null,null,null,null,null,null,null,null,null,null,null,null,null,null,null,null,null,null,null,null,null,null,null,1,1900]
[null,null,null,null,null,null,null,null,null,null,null,null,null,null,null,null,null,null,null,null,null,null,null,null,null,null,null,null,null,null,null,null,null,null,null,null,null,null,null,null,null,null,null,null,null,null,null,null,null,null,1,1900]
[null,null,null,null,null,null,null,null,null,null,null,null,null,null,null,null,null,null,null,null,null,null,null,null,null,null,null,null,null,null,null,null,null,null,null,null,null,null,null,null,null,null,null,null,null,null,null,null,null,null,1,1900]
[null,null,null,null,null,null,null,null,null,null,null,null,null,null,null,null,null,null,null,null,null,null,null,null,null,null,null,null,null,null,null,null,null,null,null,null,null,null,null,null,null,null,null,null,null,null,null,null,null,null,1,1900]
[null,null,null,null,null,null,null,null,null,null,null,null,null,null,null,null,null,null,null,null,null,null,null,null,null,null,null,null,null,null,null,null,null,null,null,null,null,null,null,null,null,null,null,null,null,null,null,null,null,null,1,1900]
[null,null,null,null,null,null,null,null,null,null,null,null,null,null,null,null,null,null,null,null,null,null,null,null,null,null,null,null,null,null,null,null,null,null,null,null,null,null,null,null,null,null,null,null,null,null,null,null,null,null,1,1900]
[null,null,null,null,null,null,null,null,null,null,null,null,null,null,null,null,null,null,null,null,null,null,null,null,null,null,null,null,null,null,null,null,null,null,null,null,null,null,null,null,null,null,null,null,null,null,null,null,null,null,1,1900]
[null,null,null,null,null,null,null,null,null,null,null,null,null,null,null,null,null,null,null,null,null,null,null,null,null,null,null,null,null,null,null,null,null,null,null,null,null,null,null,null,null,null,null,null,null,null,null,null,null,null,1,1900]
[null,null,null,null,null,null,null,null,null,null,null,null,null,null,null,null,null,null,null,null,null,null,null,null,null,null,null,null,null,null,null,null,null,null,null,null,null,null,null,null,null,null,null,null,null,null,null,null,null,null,1,1900]
[null,null,null,null,null,null,null,null,null,null,null,null,null,null,null,null,null,null,null,null,null,null,null,null,null,null,null,null,null,null,null,null,null,null,null,null,null,null,null,null,null,null,null,null,null,null,null,null,null,null,1,1900]
[null,null,null,null,null,null,null,null,null,null,null,null,null,null,null,null,null,null,null,null,null,null,null,null,null,null,null,null,null,null,null,null,null,null,null,null,null,null,null,null,null,null,null,null,null,null,null,null,null,null,1,1900]
[null,null,null,null,null,null,null,null,null,null,null,null,null,null,null,null,null,null,null,null,null,null,null,null,null,null,null,null,null,null,null,null,null,null,null,null,null,null,null,null,null,null,null,null,null,null,null,null,null,null,1,1900]
[null,null,null,null,null,null,null,null,null,null,null,null,null,null,null,null,null,null,null,null,null,null,null,null,null,null,null,null,null,null,null,null,null,null,null,null,null,null,null,null,null,null,null,null,null,null,null,null,null,null,1,1900]
[null,null,null,null,null,null,null,null,null,null,null,null,null,null,null,null,null,null,null,null,null,null,null,null,null,null,null,null,null,null,null,null,null,null,null,null,null,null,null,null,null,null,null,null,null,null,null,null,null,null,1,1900]
[null,null,null,null,null,null,null,null,null,null,null,null,null,null,null,null,null,null,null,null,null,null,null,null,null,null,null,null,null,null,null,null,null,null,null,null,null,null,null,null,null,null,null,null,null,null,null,null,null,null,1,1900]
[null,null,null,null,null,null,null,null,null,null,null,null,null,null,null,null,null,null,null,null,null,null,null,null,null,null,null,null,null,null,null,null,null,null,null,null,null,null,null,null,null,null,null,null,null,null,null,null,null,null,1,1900]
[null,null,null,null,null,null,null,null,null,null,null,null,null,null,null,null,null,null,null,null,null,null,null,null,null,null,null,null,null,null,null,null,null,null,null,null,null,null,null,null,null,null,null,null,null,null,null,null,null,null,1,1900]
[null,null,null,null,null,null,null,null,null,null,null,null,null,null,null,null,null,null,null,null,null,null,null,null,null,null,null,null,null,null,null,null,null,null,null,null,null,null,null,null,null,null,null,null,null,null,null,null,null,null,1,1900]
[null,null,null,null,null,null,null,null,null,null,null,null,null,null,null,null,null,null,null,null,null,null,null,null,null,null,null,null,null,null,null,null,null,null,null,null,null,null,null,null,null,null,null,null,null,null,null,null,null,null,1,1900]
[null,null,null,null,null,null,null,null,null,null,null,null,null,null,null,null,null,null,null,null,null,null,null,null,null,null,null,null,null,null,null,null,null,null,null,null,null,null,null,null,null,null,null,null,null,null,null,null,null,null,1,1900]
[null,null,null,null,null,null,null,null,null,null,null,null,null,null,null,null,null,null,null,null,null,null,null,null,null,null,null,null,null,null,null,null,null,null,null,null,null,null,null,null,null,null,null,null,null,null,null,null,null,null,1,1900]
[null,null,null,null,null,null,null,null,null,null,null,null,null,null,null,null,null,null,null,null,null,null,null,null,null,null,null,null,null,null,null,null,null,null,null,null,null,null,null,null,null,null,null,null,null,null,null,null,null,null,1,1900]
[null,null,null,null,null,null,null,null,null,null,null,null,null,null,null,null,null,null,null,null,null,null,null,null,null,null,null,null,null,null,null,null,null,null,null,null,null,null,null,null,null,null,null,null,null,null,null,null,null,null,1,1900]
[null,null,null,null,null,null,null,null,null,null,null,null,null,null,null,null,null,null,null,null,null,null,null,null,null,null,null,null,null,null,null,null,null,null,null,null,null,null,null,null,null,null,null,null,null,null,null,null,null,null,1,1900]
[null,null,null,null,null,null,null,null,null,null,null,null,null,null,null,null,null,null,null,null,null,null,null,null,null,null,null,null,null,null,null,null,null,null,null,null,null,null,null,null,null,null,null,null,null,null,null,null,null,null,1,1900]
[null,null,null,null,null,null,null,null,null,null,null,null,null,null,null,null,null,null,null,null,null,null,null,null,null,null,null,null,null,null,null,null,null,null,null,null,null,null,null,null,null,null,null,null,null,null,null,null,null,null,1,1900]
[null,null,null,null,null,null,null,null,null,null,null,null,null,null,null,null,null,null,null,null,null,null,null,null,null,null,null,null,null,null,null,null,null,null,null,null,null,null,null,null,null,null,null,null,null,null,null,null,null,null,1,1900]
[null,null,null,null,null,null,null,null,null,null,null,null,null,null,null,null,null,null,null,null,null,null,null,null,null,null,null,null,null,null,null,null,null,null,null,null,null,null,null,null,null,null,null,null,null,null,null,null,null,null,1,1900]
[null,null,null,null,null,null,null,null,null,null,null,null,null,null,null,null,null,null,null,null,null,null,null,null,null,null,null,null,null,null,null,null,null,null,null,null,null,null,null,null,null,null,null,null,null,null,null,null,null,null,1,1900]
[null,null,null,null,null,null,null,null,null,null,null,null,null,null,null,null,null,null,null,null,null,null,null,null,null,null,null,null,null,null,null,null,null,null,null,null,null,null,null,null,null,null,null,null,null,null,null,null,null,null,1,1900]
[null,null,null,null,null,null,null,null,null,null,null,null,null,null,null,null,null,null,null,null,null,null,null,null,null,null,null,null,null,null,null,null,null,null,null,null,null,null,null,null,null,null,null,null,null,null,null,null,null,null,1,1900]
[null,null,null,null,null,null,null,null,null,null,null,null,null,null,null,null,null,null,null,null,null,null,null,null,null,null,null,null,null,null,null,null,null,null,null,null,null,null,null,null,null,null,null,null,null,null,null,null,null,null,1,1900]
[null,null,null,null,null,null,null,null,null,null,null,null,null,null,null,null,null,null,null,null,null,null,null,null,null,null,null,null,null,null,null,null,null,null,null,null,null,null,null,null,null,null,null,null,null,null,null,null,null,null,1,1900]
[null,null,null,null,null,null,null,null,null,null,null,null,null,null,null,null,null,null,null,null,null,null,null,null,null,null,null,null,null,null,null,null,null,null,null,null,null,null,null,null,null,null,null,null,null,null,null,null,null,null,1,1900]
[null,null,null,null,null,null,null,null,null,null,null,null,null,null,null,null,null,null,null,null,null,null,null,null,null,null,null,null,null,null,null,null,null,null,null,null,null,null,null,null,null,null,null,null,null,null,null,null,null,null,1,1900]
[null,null,null,null,null,null,null,null,null,null,null,null,null,null,null,null,null,null,null,null,null,null,null,null,null,null,null,null,null,null,null,null,null,null,null,null,null,null,null,null,null,null,null,null,null,null,null,null,null,null,{"$f":"MONTH(B4730)","v":1},{"$f":"YEAR(B4730)","v":1900}]
[null,null,null,null,null,null,null,null,null,null,null,null,null,null,null,null,null,null,null,null,null,null,null,null,null,null,null,null,null,null,null,null,null,null,null,null,null,null,null,null,null,null,null,null,null,null,null,null,null,null,1,1900]
[null,null,null,null,null,null,null,null,null,null,null,null,null,null,null,null,null,null,null,null,null,null,null,null,null,null,null,null,null,null,null,null,null,null,null,null,null,null,null,null,null,null,null,null,null,null,null,null,null,null,1,1900]
[null,null,null,null,null,null,null,null,null,null,null,null,null,null,null,null,null,null,null,null,null,null,null,null,null,null,null,null,null,null,null,null,null,null,null,null,null,null,null,null,null,null,null,null,null,null,null,null,null,null,1,1900]
[null,null,null,null,null,null,null,null,null,null,null,null,null,null,null,null,null,null,null,null,null,null,null,null,null,null,null,null,null,null,null,null,null,null,null,null,null,null,null,null,null,null,null,null,null,null,null,null,null,null,1,1900]
[null,null,null,null,null,null,null,null,null,null,null,null,null,null,null,null,null,null,null,null,null,null,null,null,null,null,null,null,null,null,null,null,null,null,null,null,null,null,null,null,null,null,null,null,null,null,null,null,null,null,1,1900]
[null,null,null,null,null,null,null,null,null,null,null,null,null,null,null,null,null,null,null,null,null,null,null,null,null,null,null,null,null,null,null,null,null,null,null,null,null,null,null,null,null,null,null,null,null,null,null,null,null,null,1,1900]
[null,null,null,null,null,null,null,null,null,null,null,null,null,null,null,null,null,null,null,null,null,null,null,null,null,null,null,null,null,null,null,null,null,null,null,null,null,null,null,null,null,null,null,null,null,null,null,null,null,null,1,1900]
[null,null,null,null,null,null,null,null,null,null,null,null,null,null,null,null,null,null,null,null,null,null,null,null,null,null,null,null,null,null,null,null,null,null,null,null,null,null,null,null,null,null,null,null,null,null,null,null,null,null,1,1900]
[null,null,null,null,null,null,null,null,null,null,null,null,null,null,null,null,null,null,null,null,null,null,null,null,null,null,null,null,null,null,null,null,null,null,null,null,null,null,null,null,null,null,null,null,null,null,null,null,null,null,1,1900]
[null,null,null,null,null,null,null,null,null,null,null,null,null,null,null,null,null,null,null,null,null,null,null,null,null,null,null,null,null,null,null,null,null,null,null,null,null,null,null,null,null,null,null,null,null,null,null,null,null,null,1,1900]
[null,null,null,null,null,null,null,null,null,null,null,null,null,null,null,null,null,null,null,null,null,null,null,null,null,null,null,null,null,null,null,null,null,null,null,null,null,null,null,null,null,null,null,null,null,null,null,null,null,null,1,1900]
[null,null,null,null,null,null,null,null,null,null,null,null,null,null,null,null,null,null,null,null,null,null,null,null,null,null,null,null,null,null,null,null,null,null,null,null,null,null,null,null,null,null,null,null,null,null,null,null,null,null,1,1900]
[null,null,null,null,null,null,null,null,null,null,null,null,null,null,null,null,null,null,null,null,null,null,null,null,null,null,null,null,null,null,null,null,null,null,null,null,null,null,null,null,null,null,null,null,null,null,null,null,null,null,1,1900]
[null,null,null,null,null,null,null,null,null,null,null,null,null,null,null,null,null,null,null,null,null,null,null,null,null,null,null,null,null,null,null,null,null,null,null,null,null,null,null,null,null,null,null,null,null,null,null,null,null,null,1,1900]
[null,null,null,null,null,null,null,null,null,null,null,null,null,null,null,null,null,null,null,null,null,null,null,null,null,null,null,null,null,null,null,null,null,null,null,null,null,null,null,null,null,null,null,null,null,null,null,null,null,null,1,1900]

{"sheet":"SAUVEGARDE","index":1,"n_rows":5,"n_cols":35,"rows_kept":5,"cut":false,"hidden":false,"merged":[[1,0,2,3],[0,10,0,16],[3,7,3,17]]}
["0"]
["ETAT DES FACTURES SOLDEES"]
[]
[null,null,null,null,null,null,null,"Détails du devis"]
["N° DEVIS","DATE DU DEVIS","CLIENTS","Montants  Initial devis","Collaborateurs demandeurs","Conditions economiques du mois de …","ETATS DEVIS","Remises accordees","Produit1","Qt1","P.U1","Produit2","Qt2","P.U2","Produit3","Qt3","P.U3","Produit4","Qt4","P.U4","Produit5","Qt5","P.U5","Produit6","Qt6","P.U6","Produit7","Qt7","P.U7","Produit8","Qt8","P.U8","Produit9","Qt9","P.U9"]